Workbook

Sheet BASE RP (hidden)
A1: NO OLVIDAR ORDENAR EL LISTADO, DEJANDO LOS NIT ARRIBA | H1: 2016-03-01 | J1: 14:30:00
A2: Identificacion | B2: Numero Documento Soporte 1 | C2: Numero Documento Soporte 2 | D2: Numero Documento Soporte 3 | E2: Numero Documento Soporte 4 | F2: Numero Documento | G2: Fecha de Registro | H2: Fecha de Creacion | I2: Estado | J2: Dependencia | K2: Dependencia Descripcion | L2: Rubro | M2: Descripcion | N2: Fuente | O2: Recurso | P2: Situacion | Q2: Valor Inicial | R2: Valor Operaciones | S2: Valor Actual | T2: Saldo por Utilizar | U2: Tipo Identificacion | V2: Identificacion | W2: Nombre Razon Social | X2: Medio de Pago | Y2: Tipo Cuenta | Z2: Numero Cuenta | AA2: Estado Cuenta | AB2: Entidad Nit | AC2: Entidad Descripcion | AD2: Solicitud CDP | AE2: CDP | AF2: Compromisos | AG2: Cuentas por Pagar | AH2: Obligaciones | AI2: Ordenes de Pago | AJ2: Reintegros | AK2: Fecha Documento Soporte | AL2: Tipo Documento Soporte | AM2: Numero Documento Soporte | AN2: Observaciones
A3: =+V3+0 -> 819006966 | B3: =IFERROR(MID(AM3,SEARCH("CTO.",AM3)+5,7),0) -> 0 | C3: =IFERROR(MID(AM3,SEARCH("CTO ",AM3)+4,7),0) -> 0 | D3: =IFERROR(AM3+0,0) -> 0 | E3: =B3+C3+D3 -> 0 | F3: 119 | G3: 2019-01-02 00:00:00 | H3: 2019-01-02 11:58:11 | I3: Con Obligacion | J3: 02 | K3: IDEAM-GG-SECRETARIA GENERAL | L3: A-02-02-02-008 | M3: SERVICIOS PRESTADOS A LAS EMPRESAS Y SERVICIOS DE PRODUCCIÓN | N3: Nación | O3: RECURSOS CORRIENTES | P3: CSF | Q3: 629406283 | R3: -629406283 | S3: 0 | T3: 0 | U3: NIT | V3: 819006966 | W3: MEDIA COMMERCE PARTNERS S A S | X3: Abono en cuenta | Y3: Corriente | Z3: 703016188 | AA3: Activa | AB3: 860003020 | AC3: BANCO BILBAO VIZCAYA ARGENTARIA COLOMBIA S.A. BBVA | AD3: 119 | AE3: 119 | AF3: 119 | AG3: 50619, 110319, 152819, 222019, 281219 | AH3: 83419, 227119, 270219, 342219, 405819 | AI3: 25307119, 51425519, 81696319, 117426319, 151478419 | AK3: 2019-01-02 00:00:00 | AL3: ORDEN DE COMPRA | AM3: 3262018 0 OC 33491 | AN3: RENGLON 005, ACT PAA 07, PRESTAR EL SERVICIO DE CONEXIÓN Y ACCESO A INTERNET MEDIANTE CANALES DEDICADOS PARA EL IDEAM-APALANCAMIENTO VF 2019
A4: 819006966 | B4: 0 | C4: 0 | D4: 0 | E4: 0 | F4: 119 | G4: 2019-01-02 00:00:00 | H4: 2019-01-02 11:58:11 | I4: Con Obligacion | J4: 03 | K4: IDEAM-GG-DG.OFICINA INFORMATICA | L4: A-02-02-02-008 | M4: SERVICIOS PRESTADOS A LAS EMPRESAS Y SERVICIOS DE PRODUCCIÓN | N4: Nación | O4: RECURSOS CORRIENTES | P4: CSF | Q4: 629406283 | R4: 0 | S4: 629406283 | T4: 355760311 | U4: NIT | V4: 819006966 | W4: MEDIA COMMERCE PARTNERS S A S | X4: Abono en cuenta | Y4: Corriente | Z4: 703016188 | AA4: Activa | AB4: 860003020 | AC4: BANCO BILBAO VIZCAYA ARGENTARIA COLOMBIA S.A. BBVA | AD4: 119 | AE4: 119 | AF4: 119 | AG4: 50619, 110319, 152819, 222019, 281219 | AH4: 83419, 227119, 270219, 342219, 405819 | AI4: 25307119, 51425519, 81696319, 117426319, 151478419 | AK4: 2019-01-02 00:00:00 | AL4: ORDEN DE COMPRA | AM4: 3262018 0 OC 33491 | AN4: RENGLON 005, ACT PAA 07, PRESTAR EL SERVICIO DE CONEXIÓN Y ACCESO A INTERNET MEDIANTE CANALES DEDICADOS PARA EL IDEAM-APALANCAMIENTO VF 2019
A5: 890309152 | B5: 0 | C5: 0 | D5: 3292018 | E5: 3292018 | F5: 219 | G5: 2019-01-02 00:00:00 | H5: 2019-01-02 14:56:28 | I5: Con Obligacion | J5: 02 | K5: IDEAM-GG-SECRETARIA GENERAL | L5: A-02-02-02-008 | M5: SERVICIOS PRESTADOS A LAS EMPRESAS Y SERVICIOS DE PRODUCCIÓN | N5: Nación | O5: RECURSOS CORRIENTES | P5: CSF | Q5: 1812800000 | R5: -1812800000 | S5: 0 | T5: 0 | U5: NIT | V5: 890309152 | W5: IMPRENTA DEPARTAMENTAL DEL VALLE | X5: Abono en cuenta | Y5: Corriente | Z5: 484880976 | AA5: Activa | AB5: 860002964 | AC5: BANCO DE BOGOTA S. A. | AD5: 319 | AE5: 219 | AF5: 219 | AG5: 50719, 50819, 116519, 207319, 278819 | AH5: 83519, 228619, 329419, 415719 | AI5: 25311119, 54384419, 111246619, 159491019 | AK5: 2019-01-02 00:00:00 | AL5: CONTRATO INTERADMINISTRATIVO | AM5: 3292018 | AN5: RENGLON 030, ACT PAA 07, CONTRATAR EL SERVICIO DE SOPORTE, ADMINISTRACIÓN Y OPERACIÓN DE LA PLATAFORMA TECNOLÓGICA DEL IDEAM - APALANCAMIENTO VF 2019
A6: =+V6+0 -> 890309152 | B6: =IFERROR(MID(AM6,SEARCH("CTO.",AM6)+5,7),0) -> 0 | C6: =IFERROR(MID(AM6,SEARCH("CTO ",AM6)+4,7),0) -> 0 | D6: =IFERROR(AM6+0,0) -> 3292018 | E6: =B6+C6+D6 -> 3292018 | F6: 219 | G6: 2019-01-02 00:00:00 | H6: 2019-01-02 14:56:28 | I6: Con Obligacion | J6: 03 | K6: IDEAM-GG-DG.OFICINA INFORMATICA | L6: A-02-02-02-008 | M6: SERVICIOS PRESTADOS A LAS EMPRESAS Y SERVICIOS DE PRODUCCIÓN | N6: Nación | O6: RECURSOS CORRIENTES | P6: CSF | Q6: 1812800000 | R6: 0 | S6: 1812800000 | T6: 1246677026 | U6: NIT | V6: 890309152 | W6: IMPRENTA DEPARTAMENTAL DEL VALLE | X6: Abono en cuenta | Y6: Corriente | Z6: 484880976 | AA6: Activa | AB6: 860002964 | AC6: BANCO DE BOGOTA S. A. | AD6: 319 | AE6: 219 | AF6: 219 | AG6: 50719, 50819, 116519, 207319, 278819 | AH6: 83519, 228619, 329419, 415719 | AI6: 25311119, 54384419, 111246619, 159491019 | AK6: 2019-01-02 00:00:00 | AL6: CONTRATO INTERADMINISTRATIVO | AM6: 3292018 | AN6: RENGLON 030, ACT PAA 07, CONTRATAR EL SERVICIO DE SOPORTE, ADMINISTRACIÓN Y OPERACIÓN DE LA PLATAFORMA TECNOLÓGICA DEL IDEAM - APALANCAMIENTO VF 2019
A7: 900332558 | B7: 0 | C7: 0 | D7: 3302018 | E7: 3302018 | F7: 319 | G7: 2019-01-02 00:00:00 | H7: 2019-01-02 15:07:19 | I7: Con Obligacion | J7: 02 | K7: IDEAM-GG-SECRETARIA GENERAL | L7: A-02-02-02-007 | M7: SERVICIOS FINANCIEROS Y SERVICIOS CONEXOS, SERVICIOS INMOBILIARIOS Y SERVICIOS DE LEASING | N7: Nación | O7: RECURSOS CORRIENTES | P7: CSF | Q7: 43145018 | R7: 0 | S7: 43145018 | T7: 21626306 | U7: NIT | V7: 900332558 | W7: SANTA MARTA INMOBILIARIA S.A.S | X7: Abono en cuenta | Y7: Corriente | Z7: 51658821756 | AA7: Activa | AB7: 890903938 | AC7: BANCOLOMBIA S.A. | AD7: 419 | AE7: 319 | AF7: 319 | AG7: 9419, 10119, 48419, 110819, 152519, 210319, 282819 | AH7: 8719, 81419, 226719, 270719, 332719, 406619 | AI7: 11878119, 25321819, 66595419, 81699719, 116843419, 151024119 | AK7: 2019-01-02 00:00:00 | AL7: CONTRATO DE ARRENDAMIENTO | AM7: 3302018 | AN7: RENGLON 165, ACT PAA 04, APALANCAR VIGENCIAS FUTURAS 2019 - CONTRATACIÓN DEL ARRENDAMIENTO PARA EL FUNCIONAMIENTO DE LA SEDE DEL ÁREA OPERATIVA N° 5 DEL IDEAM - SANTA MARTA
A8: 900062917 | B8: 0 | C8: 0 | D8: 3312018 | E8: 3312018 | F8: 419 | G8: 2019-01-02 00:00:00 | H8: 2019-01-02 15:21:43 | I8: Con Obligacion | J8: 02 | K8: IDEAM-GG-SECRETARIA GENERAL | L8: A-02-02-02-006 | M8: SERVICIOS DE ALOJAMIENTO; SERVICIOS DE SUMINISTRO DE COMIDAS Y BEBIDAS; SERVICIOS DE TRANSPORTE; Y SERVICIOS DE DISTRIBUCIÓN DE ELECTRICIDAD, GAS Y AGUA | N8: Nación | O8: RECURSOS CORRIENTES | P8: CSF | Q8: 105000000 | R8: 0 | S8: 105000000 | T8: 44603274 | U8: NIT | V8: 900062917 | W8: SERVICIOS POSTALES NACIONALES S.A | X8: Abono en cuenta | Y8: Ahorro | Z8: 221806300 | AA8: Activa | AB8: 890300279 | AC8: BANCO DE OCCIDENTE | AD8: 519 | AE8: 419 | AF8: 419 | AG8: 48319, 50419, 110919, 170419, 205819, 278119 | AH8: 83319, 227519, 289819, 329219, 397019 | AI8: 25313719, 51434119, 89790519, 110192219, 148388919 | AK8: 2019-01-02 00:00:00 | AL8: CONTRATO INTERADMINISTRATIVO | AM8: 3312018 | AN8: RENGLON 179, ACT PAA 04, APALANCAR VIGENCIAS FUTURAS 2019 - PRESTACIÓN DE SERVICIOS DE ADMINISTRACIÓN, GESTIÓN DE MANEJO DE CORREO Y CORRESPONDENCIA POR EL SISTEMA DE COSTOS VARIABLES CONFORME AL PORTAFOLIO DE SERVICIOS POSTALES
A9: 900325566 | B9: 0 | C9: 0 | D9: 3322018 | E9: 3322018 | F9: 519 | G9: 2019-01-02 00:00:00 | H9: 2019-01-02 15:30:47 | I9: Con Obligacion | J9: 02 | K9: IDEAM-GG-SECRETARIA GENERAL | L9: A-02-02-02-007 | M9: SERVICIOS FINANCIEROS Y SERVICIOS CONEXOS, SERVICIOS INMOBILIARIOS Y SERVICIOS DE LEASING | N9: Nación | O9: RECURSOS CORRIENTES | P9: CSF | Q9: 96408000 | R9: 0 | S9: 96408000 | T9: 48204000 | U9: NIT | V9: 900325566 | W9: JM INMOBILIARIA S.A.S | X9: Abono en cuenta | Y9: Corriente | Z9: 06055007130 | AA9: Activa | AB9: 890903938 | AC9: BANCOLOMBIA S.A. | AD9: 619 | AE9: 519 | AF9: 519 | AG9: 9519, 9919, 10019, 10319, 48519, 110219, 152919, 210019, 282719 | AH9: 8819, 81319, 226819, 270319, 332319, 406519 | AI9: 11876219, 25333919, 51470019, 81117119, 113513019, 151007619 | AK9: 2019-01-02 00:00:00 | AL9: CONTRATO DE ARRENDAMIENTO | AM9: 3322018 | AN9: RENGLON 167, ACT PAA 04, APALANCAR VIGENCIAS FUTURAS 2019 - ARRENDAMIENTO PARA EL FUNCIONAMIENTO DE LA SEDE DEL ÁREA OPERATIVA N° 9 DEL IDEAM - CALI
A10: 800017763 | B10: 0 | C10: 0 | D10: 3332018 | E10: 3332018 | F10: 619 | G10: 2019-01-02 00:00:00 | H10: 2019-01-02 15:41:00 | I10: Con Obligacion | J10: 02 | K10: IDEAM-GG-SECRETARIA GENERAL | L10: A-02-02-02-007 | M10: SERVICIOS FINANCIEROS Y SERVICIOS CONEXOS, SERVICIOS INMOBILIARIOS Y SERVICIOS DE LEASING | N10: Nación | O10: RECURSOS CORRIENTES | P10: CSF | Q10: 66000000 | R10: 0 | S10: 66000000 | T10: 33000000 | U10: NIT | V10: 800017763 | W10: INMOBILIARIA DEL ORIENTE LIMITADA | X10: Abono en cuenta | Y10: Corriente | Z10: 84443113178 | AA10: Activa | AB10: 890903938 | AC10: BANCOLOMBIA S.A. | AD10: 1219 | AE10: 619 | AF10: 619 | AG10: 9819, 47819, 110519, 152319, 208819, 282919 | AH10: 8919, 81219, 226919, 270819, 331319, 406719 | AI10: 11879219, 26076019, 52651619, 81702819, 111248619, 151029519 | AK10: 2019-01-02 00:00:00 | AL10: CONTRATO DE ARRENDAMIENTO | AM10: 3332018 | AN10: RENGLON 166, ACT PAA 04, APALANCAR VIGENCIAS FUTURAS 2019 - ARRENDAMIENTO PARA EL FUNCIONAMIENTO DE LA SEDE DEL ÁREA OPERATIVA N° 3 DEL IDEAM - VILLAVICENCIO
A11: 860090247 | B11: 0 | C11: 0 | D11: 3352018 | E11: 3352018 | F11: 719 | G11: 2019-01-02 00:00:00 | H11: 2019-01-02 15:48:22 | I11: Con Obligacion | J11: 02 | K11: IDEAM-GG-SECRETARIA GENERAL | L11: A-02-02-02-008 | M11: SERVICIOS PRESTADOS A LAS EMPRESAS Y SERVICIOS DE PRODUCCIÓN | N11: Nación | O11: RECURSOS CORRIENTES | P11: CSF | Q11: 5665000 | R11: -5665000 | S11: 0 | T11: 0 | U11: NIT | V11: 860090247 | W11: TANDEM S.A.S | X11: Abono en cuenta | Y11: Ahorro | Z11: 07101568100 | AA11: Activa | AB11: 890903938 | AC11: BANCOLOMBIA S.A. | AD11: 1819 | AE11: 719 | AF11: 719 | AG11: 50919, 111519, 168519, 206219, 280319 | AH11: 83919, 227419, 286419, 328719, 404919 | AI11: 26074319, 51438919, 88222319, 111251619, 149399019 | AK11: 2019-01-02 00:00:00 | AL11: ACEPTACION DE OFERTAS | AM11: 3352018 | AN11: RENGLON 032, ACT PAA 08, PRESTAR LOS SERVICIOS DE ALMACENAJE, CUSTODIA Y TRANSPORTE DE MEDIOS MAGNÉTICOS DE BACKUP DEL IDEAM - APALANCAMIENTO VF 2019
A12: 860090247 | B12: 0 | C12: 0 | D12: 3352018 | E12: 3352018 | F12: 719 | G12: 2019-01-02 00:00:00 | H12: 2019-01-02 15:48:22 | I12: Con Obligacion | J12: 03 | K12: IDEAM-GG-DG.OFICINA INFORMATICA | L12: A-02-02-02-008 | M12: SERVICIOS PRESTADOS A LAS EMPRESAS Y SERVICIOS DE PRODUCCIÓN | N12: Nación | O12: RECURSOS CORRIENTES | P12: CSF | Q12: 5665000 | R12: 0 | S12: 5665000 | T12: 4301912 | U12: NIT | V12: 860090247 | W12: TANDEM S.A.S | X12: Abono en cuenta | Y12: Ahorro | Z12: 07101568100 | AA12: Activa | AB12: 890903938 | AC12: BANCOLOMBIA S.A. | AD12: 1819 | AE12: 719 | AF12: 719 | AG12: 50919, 111519, 168519, 206219, 280319 | AH12: 83919, 227419, 286419, 328719, 404919 | AI12: 26074319, 51438919, 88222319, 111251619, 149399019 | AK12: 2019-01-02 00:00:00 | AL12: ACEPTACION DE OFERTAS | AM12: 3352018 | AN12: RENGLON 032, ACT PAA 08, PRESTAR LOS SERVICIOS DE ALMACENAJE, CUSTODIA Y TRANSPORTE DE MEDIOS MAGNÉTICOS DE BACKUP DEL IDEAM - APALANCAMIENTO VF 2019
A13: 800163265 | B13: 0 | C13: 0 | D13: 0 | E13: 0 | F13: 819 | G13: 2019-01-02 00:00:00 | H13: 2019-01-02 16:04:37 | I13: Con Obligacion | J13: 02 | K13: IDEAM-GG-SECRETARIA GENERAL | L13: A-02-02-02-008 | M13: SERVICIOS PRESTADOS A LAS EMPRESAS Y SERVICIOS DE PRODUCCIÓN | N13: Nación | O13: RECURSOS CORRIENTES | P13: CSF | Q13: 1812518541 | R13: 0 | S13: 1812518541 | T13: 969562405 | U13: NIT | V13: 800163265 | W13: COMPAÑIA DE SERVICIOS DE VIGILANCIA PRIVADA PORTILLA Y PORTILLA LTDA. COSER | X13: Abono en cuenta | Y13: Corriente | Z13: 04244176321 | AA13: Activa | AB13: 890903938 | AC13: BANCOLOMBIA S.A. | AD13: 3019 | AE13: 819 | AF13: 819 | AG13: 50319, 64419, 64519, 96619, 96719, 155019, 155219, 155319, 155419, 160519, 160619, 161119, 161219, 165819, 165919, 213519, 214119, 214419, 282419, 282519 | AH13: 84219, 149819, 180219, 180319, 212619, 212719, 272119, 272219, 277819, 278219, 283019, 335319, 335719, 398119, 398219 | AI13: 34680319, 34714119, 51772219, 51783919, 82137319, 82138719, 85461119, 85470019, 85484319, 114177419, 114192219, 147004219, 147009419 | AK13: 2019-01-02 00:00:00 | AL13: ORDEN ADMINISTRATIVA | AM13: 3552018 OMA 33550771.0 0 | AN13: RENGLON 181, ACT PAA 04, NEGOCIACION OPERACIÓN MERCADO ABIERTO No 33550771.0 APALANCAR VIGENCIAS FUTURAS 2019 - PRESTACIÓN DEL SERVICIO DE VIGILANCIA PARA LAS SEDES DEL IDEAM A NIVEL NACIONAL
A14: 830103828 | B14: 0 | C14: 0 | D14: 0 | E14: 0 | F14: 919 | G14: 2019-01-02 00:00:00 | H14: 2019-01-02 16:06:37 | I14: Con Obligacion | J14: 02 | K14: IDEAM-GG-SECRETARIA GENERAL | L14: A-02-02-02-008 | M14: SERVICIOS PRESTADOS A LAS EMPRESAS Y SERVICIOS DE PRODUCCIÓN | N14: Nación | O14: RECURSOS CORRIENTES | P14: CSF | Q14: 11493065 | R14: 0 | S14: 11493065 | T14: 5746532 | U14: NIT | V14: 830103828 | W14: AGROBOLSA S.A. COMISIONISTA DE BOLSA | X14: Abono en cuenta | Y14: Corriente | Z14: 265041954 | AA14: Activa | AB14: 890300279 | AC14: BANCO DE OCCIDENTE | AD14: 3319 | AE14: 919 | AF14: 919 | AG14: 66519 | AH14: 182119, 190919 | AI14: 62238619 | AK14: 2019-01-02 00:00:00 | AL14: ORDEN ADMINISTRATIVA | AM14: 3552018 OMA 33550771.0 0 | AN14: RENGLON 181, ACT PAA 04, COMISION-IVA OPERACIÓN MERCADO ABIERTO No 33550771.0 APALANCAR VIGENCIAS FUTURAS 2019 - PRESTACIÓN DEL SERVICIO DE VIGILANCIA PARA LAS SEDES DEL IDEAM A NIVEL NACIONAL.
A15: 860071250 | B15: 0 | C15: 0 | D15: 0 | E15: 0 | F15: 1019 | G15: 2019-01-02 00:00:00 | H15: 2019-01-02 16:10:39 | I15: Con Obligacion | J15: 02 | K15: IDEAM-GG-SECRETARIA GENERAL | L15: A-02-02-02-008 | M15: SERVICIOS PRESTADOS A LAS EMPRESAS Y SERVICIOS DE PRODUCCIÓN | N15: Nación | O15: RECURSOS CORRIENTES | P15: CSF | Q15: 6442213 | R15: 0 | S15: 6442213 | T15: 0 | U15: NIT | V15: 860071250 | W15: BMC BOLSA MERCANTIL DE COLOMBIA S.A. | X15: Abono en cuenta | Y15: Corriente | Z15: 080020977 | AA15: Activa | AB15: 860002964 | AC15: BANCO DE BOGOTA S. A. | AD15: 3719 | AE15: 1019 | AF15: 1019 | AG15: 66419 | AH15: 182019, 190719 | AI15: 55146019 | AK15: 2019-01-02 00:00:00 | AL15: ORDEN ADMINISTRATIVA | AM15: 3552018 OMA 33550771.0 0 | AN15: RENGLON 181, ACT PAA 04, SERVICIO REGISTRO-IVA OPERACIÓN MERCADO ABIERTO No 33550771.0 APALANCAR VIGENCIAS FUTURAS 2019 - PRESTACIÓN DEL SERVICIO DE VIGILANCIA PARA LAS SEDES DEL IDEAM A NIVEL NACIONAL
A16: 860071250 | B16: 0 | C16: 0 | D16: 0 | E16: 0 | F16: 1119 | G16: 2019-01-02 00:00:00 | H16: 2019-01-02 16:13:32 | I16: Con Obligacion | J16: 02 | K16: IDEAM-GG-SECRETARIA GENERAL | L16: A-02-02-02-008 | M16: SERVICIOS PRESTADOS A LAS EMPRESAS Y SERVICIOS DE PRODUCCIÓN | N16: Nación | O16: RECURSOS CORRIENTES | P16: CSF | Q16: 4509526 | R16: 0 | S16: 4509526 | T16: 0 | U16: NIT | V16: 860071250 | W16: BMC BOLSA MERCANTIL DE COLOMBIA S.A. | X16: Abono en cuenta | Y16: Corriente | Z16: 080020977 | AA16: Activa | AB16: 860002964 | AC16: BANCO DE BOGOTA S. A. | AD16: 3919 | AE16: 1119 | AF16: 1119 | AG16: 66319 | AH16: 181919, 190819 | AI16: 55142719 | AK16: 2019-01-02 00:00:00 | AL16: ORDEN ADMINISTRATIVA | AM16: 3552018 OMA 33550771.0 0 | AN16: RENGLON 181, ACT PAA 04, COMPENSACION Y LIQUIDACION-IVA OPERACIÓN MERCADO ABIERTO No 33550771.0 APALANCAR VIGENCIAS FUTURAS 2019 - PRESTACIÓN DEL SERVICIO DE VIGILANCIA PARA LAS SEDES DEL IDEAM A NIVEL NACIONAL
A17: 860531315 | B17: 0 | C17: 0 | D17: 3802018 | E17: 3802018 | F17: 1219 | G17: 2019-01-02 00:00:00 | H17: 2019-01-02 16:21:20 | I17: Con Obligacion | J17: 02 | K17: IDEAM-GG-SECRETARIA GENERAL | L17: A-02-02-02-007 | M17: SERVICIOS FINANCIEROS Y SERVICIOS CONEXOS, SERVICIOS INMOBILIARIOS Y SERVICIOS DE LEASING | N17: Nación | O17: RECURSOS CORRIENTES | P17: CSF | Q17: 3131486508 | R17: 0 | S17: 3131486508 | T17: 1565743254 | U17: NIT | V17: 860531315 | W17: ALIANZA FIDUCIARIA S.A. | X17: Abono en cuenta | Y17: Corriente | Z17: 270033582 | AA17: Activa | AB17: 890300279 | AC17: BANCO DE OCCIDENTE | AD17: 4619 | AE17: 1219 | AF17: 1219 | AG17: 10219, 48219, 110719, 152419, 206419, 283119 | AH17: 8619, 81519, 227019, 270919, 328919, 406919 | AI17: 11885919, 25442919, 51743419, 82130719, 111218719, 151392419 | AK17: 2019-01-02 00:00:00 | AL17: CONTRATO DE ARRENDAMIENTO | AM17: 3802018 | AN17: RENGLON 164, APALANCAR VIGENCIAS FUTURAS 2019-2020-2021-2022 - CONTRATACIÓN DEL ARRENDAMIENTO DE LA SEDE CENTRAL DEL IDEAM, INMUEBLE UBICADO EN LA CALLE 25D NO. 96B-70 DE LA CIUDAD DE BOGOTÁ D.C.
A18: 901031838 | B18: 0 | C18: 0 | D18: 0 | E18: 0 | F18: 1319 | G18: 2019-01-02 00:00:00 | H18: 2019-01-02 16:31:00 | I18: Con Obligacion | J18: 02 | K18: IDEAM-GG-SECRETARIA GENERAL | L18: A-02-02-02-008 | M18: SERVICIOS PRESTADOS A LAS EMPRESAS Y SERVICIOS DE PRODUCCIÓN | N18: Nación | O18: RECURSOS CORRIENTES | P18: CSF | Q18: 5209620 | R18: 0 | S18: 5209620 | T18: 0 | U18: NIT | V18: 901031838 | W18: UNION TEMPORAL ASEO COLOMBIA | X18: Abono en cuenta | Y18: Ahorro | Z18: 61169869331 | AA18: Activa | AB18: 890903938 | AC18: BANCOLOMBIA S.A. | AD18: 5419 | AE18: 1319 | AF18: 1319 | AG18: 116419, 159319 | AH18: 228219, 275219 | AI18: 51479819, 83200919 | AK18: 2019-01-02 00:00:00 | AL18: ORDEN DE COMPRA | AM18: 2302018 OC 28030 ADICION 3 | AN18: RENGLON 180, ACT PAA 04, APALANCAR VIGENCIAS FUTURAS 2019 - PRESTACIÓN DEL SERVICIO INTEGRAL DE ASEO Y CAFETERÍA PARA EL AREA OPERATIVA No. 1
A19: 890107386 | B19: 0 | C19: 0 | D19: 0 | E19: 0 | F19: 1419 | G19: 2019-01-02 00:00:00 | H19: 2019-01-02 16:35:15 | I19: Generado | J19: 02 | K19: IDEAM-GG-SECRETARIA GENERAL | L19: A-02-02-02-008 | M19: SERVICIOS PRESTADOS A LAS EMPRESAS Y SERVICIOS DE PRODUCCIÓN | N19: Nación | O19: RECURSOS CORRIENTES | P19: CSF | Q19: 5163676 | R19: 0 | S19: 5163676 | T19: 5163676 | U19: NIT | V19: 890107386 | W19: COMPAÑIA DE ASEOS ASEOCAR LIMITADA | X19: Abono en cuenta | Y19: Corriente | Z19: 151077369 | AA19: Activa | AB19: 860002964 | AC19: BANCO DE BOGOTA S. A. | AD19: 5819 | AE19: 1419 | AF19: 1419 | AG19: 168319 | AH19: 286219 | AK19: 2019-01-02 00:00:00 | AL19: ORDEN DE COMPRA | AM19: 2292018 OC 28029 ADICION 3 | AN19: RENGLON 180, ACT PAA 04, APALANCAR VIGENCIAS FUTURAS 2019 - PRESTACIÓN DEL SERVICIO INTEGRAL DE ASEO Y CAFETERÍA PARA EL AREA OPERATIVA No. 2
A20: 800062177 | B20: 0 | C20: 0 | D20: 0 | E20: 0 | F20: 1519 | G20: 2019-01-02 00:00:00 | H20: 2019-01-02 16:38:38 | I20: Con Obligacion | J20: 02 | K20: IDEAM-GG-SECRETARIA GENERAL | L20: A-02-02-02-008 | M20: SERVICIOS PRESTADOS A LAS EMPRESAS Y SERVICIOS DE PRODUCCIÓN | N20: Nación | O20: RECURSOS CORRIENTES | P20: CSF | Q20: 5324242 | R20: 0 | S20: 5324242 | T20: 0 | U20: NIT | V20: 800062177 | W20: MR CLEAN S.A. | X20: Abono en cuenta | Y20: Ahorro | Z20: 20725881572 | AA20: Activa | AB20: 890903938 | AC20: BANCOLOMBIA S.A. | AD20: 6119 | AE20: 1519 | AF20: 1519 | AG20: 116719, 159119 | AH20: 229019, 275719 | AI20: 52632419, 83142119 | AK20: 2019-01-02 00:00:00 | AL20: ORDEN DE COMPRA | AM20: 2392018 OC 28145 ADICION 3 | AN20: RENGLON 180, ACT PAA 04, APALANCAR VIGENCIAS FUTURAS 2019 - PRESTACIÓN DEL SERVICIO INTEGRAL DE ASEO Y CAFETERÍA PARA EL AREA OPERATIVA No. 3-VILLAVICENCIO
A21: 800093388 | B21: 0 | C21: 0 | D21: 0 | E21: 0 | F21: 1619 | G21: 2019-01-02 00:00:00 | H21: 2019-01-02 16:42:26 | I21: Con Obligacion | J21: 02 | K21: IDEAM-GG-SECRETARIA GENERAL | L21: A-02-02-02-008 | M21: SERVICIOS PRESTADOS A LAS EMPRESAS Y SERVICIOS DE PRODUCCIÓN | N21: Nación | O21: RECURSOS CORRIENTES | P21: CSF | Q21: 5193379 | R21: 0 | S21: 5193379 | T21: 0 | U21: NIT | V21: 800093388 | W21: CONSERJES INMOBILIARIOS LTDA. | X21: Abono en cuenta | Y21: Corriente | Z21: 251027868 | AA21: Activa | AB21: 890300279 | AC21: BANCO DE OCCIDENTE | AD21: 6519 | AE21: 1619 | AF21: 1619 | AG21: 116619, 154819 | AH21: 229419, 229919, 276119 | AI21: 52627619, 83924919 | AK21: 2019-01-02 00:00:00 | AL21: ORDEN DE COMPRA | AM21: 2402018 OC 28146 ADICION 3 | AN21: RENGLON 180, ACT PAA 04, APALANCAR VIGENCIAS FUTURAS 2019 - PRESTACIÓN DEL SERVICIO INTEGRAL DE ASEO Y CAFETERÍA PARA EL AREA OPERATIVA No. 4-NEIVA
A22: 800093388 | B22: 0 | C22: 0 | D22: 0 | E22: 0 | F22: 1719 | G22: 2019-01-02 00:00:00 | H22: 2019-01-02 16:44:36 | I22: Con Obligacion | J22: 02 | K22: IDEAM-GG-SECRETARIA GENERAL | L22: A-02-02-02-008 | M22: SERVICIOS PRESTADOS A LAS EMPRESAS Y SERVICIOS DE PRODUCCIÓN | N22: Nación | O22: RECURSOS CORRIENTES | P22: CSF | Q22: 9099224 | R22: 0 | S22: 9099224 | T22: 385179 | U22: NIT | V22: 800093388 | W22: CONSERJES INMOBILIARIOS LTDA. | X22: Abono en cuenta | Y22: Corriente | Z22: 251027868 | AA22: Activa | AB22: 890300279 | AC22: BANCO DE OCCIDENTE | AD22: 6719 | AE22: 1719 | AF22: 1719 | AG22: 111119, 157019 | AH22: 228019, 275019 | AI22: 52609019, 83162419 | AK22: 2019-01-02 00:00:00 | AL22: ORDEN DE COMPRA | AM22: 2282018 OC 28027 ADICION 3 | AN22: RENGLON 180, ACT PAA 04, APALANCAR VIGENCIAS FUTURAS 2019 - PRESTACIÓN DEL SERVICIO INTEGRAL DE ASEO Y CAFETERÍA PARA EL AREA OPERATIVA No. 5-SANTA MARTA
A23: 800041433 | B23: 0 | C23: 0 | D23: 0 | E23: 0 | F23: 1819 | G23: 2019-01-02 00:00:00 | H23: 2019-01-02 16:46:54 | I23: Con Obligacion | J23: 02 | K23: IDEAM-GG-SECRETARIA GENERAL | L23: A-02-02-02-008 | M23: SERVICIOS PRESTADOS A LAS EMPRESAS Y SERVICIOS DE PRODUCCIÓN | N23: Nación | O23: RECURSOS CORRIENTES | P23: CSF | Q23: 8783347 | R23: 0 | S23: 8783347 | T23: 0 | U23: NIT | V23: 800041433 | W23: CLEANER S.A. | X23: Abono en cuenta | Y23: Ahorro | Z23: 010200073590 | AA23: Activa | AB23: 860034313 | AC23: BANCO DAVIVIENDA S.A. | AD23: 6819 | AE23: 1819 | AF23: 1819 | AG23: 111019, 178319 | AH23: 227819, 327119 | AI23: 54389019, 113480719 | AK23: 2019-01-02 00:00:00 | AL23: ORDEN DE COMPRA | AM23: 2342018 OC 28035 ADICION 3 | AN23: RENGLON 180, ACT PAA 04, APALANCAR VIGENCIAS FUTURAS 2019 - PRESTACIÓN DEL SERVICIO INTEGRAL DE ASEO Y CAFETERÍA PARA EL AREA OPERATIVA No. 6-DUITAMA
A24: 800093388 | B24: 0 | C24: 0 | D24: 0 | E24: 0 | F24: 1919 | G24: 2019-01-02 00:00:00 | H24: 2019-01-02 16:50:00 | I24: Con Obligacion | J24: 02 | K24: IDEAM-GG-SECRETARIA GENERAL | L24: A-02-02-02-008 | M24: SERVICIOS PRESTADOS A LAS EMPRESAS Y SERVICIOS DE PRODUCCIÓN | N24: Nación | O24: RECURSOS CORRIENTES | P24: CSF | Q24: 5737609 | R24: 0 | S24: 5737609 | T24: 0 | U24: NIT | V24: 800093388 | W24: CONSERJES INMOBILIARIOS LTDA. | X24: Abono en cuenta | Y24: Corriente | Z24: 251027868 | AA24: Activa | AB24: 890300279 | AC24: BANCO DE OCCIDENTE | AD24: 6919 | AE24: 1919 | AF24: 1919 | AG24: 116319, 174819 | AH24: 228119, 292919 | AI24: 52606319, 94895419 | AK24: 2019-01-02 00:00:00 | AL24: ORDEN DE COMPRA | AM24: 2322018 OC 28033 ADICION 3 | AN24: RENGLON 180, ACT PAA 04, APALANCAR VIGENCIAS FUTURAS 2019 - PRESTACIÓN DEL SERVICIO INTEGRAL DE ASEO Y CAFETERÍA PARA EL AREA OPERATIVA No. 7-PASTO
A25: 800093388 | B25: 0 | C25: 0 | D25: 0 | E25: 0 | F25: 2019 | G25: 2019-01-02 00:00:00 | H25: 2019-01-02 16:51:57 | I25: Con Obligacion | J25: 02 | K25: IDEAM-GG-SECRETARIA GENERAL | L25: A-02-02-02-008 | M25: SERVICIOS PRESTADOS A LAS EMPRESAS Y SERVICIOS DE PRODUCCIÓN | N25: Nación | O25: RECURSOS CORRIENTES | P25: CSF | Q25: 5777624 | R25: 0 | S25: 5777624 | T25: 4021 | U25: NIT | V25: 800093388 | W25: CONSERJES INMOBILIARIOS LTDA. | X25: Abono en cuenta | Y25: Corriente | Z25: 251027868 | AA25: Activa | AB25: 890300279 | AC25: BANCO DE OCCIDENTE | AD25: 7119 | AE25: 2019 | AF25: 2019 | AG25: 111419, 157719 | AH25: 229519, 230019, 275519 | AI25: 52602219, 83147219 | AK25: 2019-01-02 00:00:00 | AL25: ORDEN DE COMPRA | AM25: 2352018 OC 28036 ADICION 3 | AN25: RENGLON 180, ACT PAA 04, APALANCAR VIGENCIAS FUTURAS 2019 - PRESTACIÓN DEL SERVICIO INTEGRAL DE ASEO Y CAFETERÍA PARA EL AREA OPERATIVA No. 8-BUCARAMANGA
A26: 800093388 | B26: 0 | C26: 0 | D26: 0 | E26: 0 | F26: 2119 | G26: 2019-01-02 00:00:00 | H26: 2019-01-02 16:54:22 | I26: Con Obligacion | J26: 02 | K26: IDEAM-GG-SECRETARIA GENERAL | L26: A-02-02-02-008 | M26: SERVICIOS PRESTADOS A LAS EMPRESAS Y SERVICIOS DE PRODUCCIÓN | N26: Nación | O26: RECURSOS CORRIENTES | P26: CSF | Q26: 5097333 | R26: 0 | S26: 5097333 | T26: 0 | U26: NIT | V26: 800093388 | W26: CONSERJES INMOBILIARIOS LTDA. | X26: Abono en cuenta | Y26: Corriente | Z26: 251027868 | AA26: Activa | AB26: 890300279 | AC26: BANCO DE OCCIDENTE | AD26: 7319 | AE26: 2119 | AF26: 2119 | AG26: 116819, 156619 | AH26: 228919, 276319 | AI26: 52612519, 83191419 | AK26: 2019-01-02 00:00:00 | AL26: ORDEN DE COMPRA | AM26: 2312018 OC 28031 ADICION 3 | AN26: RENGLON 180, ACT PAA 04, APALANCAR VIGENCIAS FUTURAS 2019 - PRESTACIÓN DEL SERVICIO INTEGRAL DE ASEO Y CAFETERÍA PARA EL AREA OPERATIVA No. 9-CALI
A27: 800093388 | B27: 0 | C27: 0 | D27: 0 | E27: 0 | F27: 2219 | G27: 2019-01-02 00:00:00 | H27: 2019-01-02 16:57:10 | I27: Con Obligacion | J27: 02 | K27: IDEAM-GG-SECRETARIA GENERAL | L27: A-02-02-02-008 | M27: SERVICIOS PRESTADOS A LAS EMPRESAS Y SERVICIOS DE PRODUCCIÓN | N27: Nación | O27: RECURSOS CORRIENTES | P27: CSF | Q27: 5807662 | R27: 0 | S27: 5807662 | T27: 0 | U27: NIT | V27: 800093388 | W27: CONSERJES INMOBILIARIOS LTDA. | X27: Abono en cuenta | Y27: Corriente | Z27: 251027868 | AA27: Activa | AB27: 890300279 | AC27: BANCO DE OCCIDENTE | AD27: 7619 | AE27: 2219 | AF27: 2219 | AG27: 111319, 158219, 158819 | AH27: 227919, 276519 | AI27: 52574319, 83174619 | AK27: 2019-01-02 00:00:00 | AL27: ORDEN DE COMPRA | AM27: 2332018 OC 28034 ADICION 3 | AN27: RENGLON 180, ACT PAA 04, APALANCAR VIGENCIAS FUTURAS 2019 - PRESTACIÓN DEL SERVICIO INTEGRAL DE ASEO Y CAFETERÍA PARA EL AREA OPERATIVA No. 10-IBAGUE
A28: 901031994 | B28: 0 | C28: 0 | D28: 0 | E28: 0 | F28: 2319 | G28: 2019-01-02 00:00:00 | H28: 2019-01-02 16:59:45 | I28: Con Obligacion | J28: 02 | K28: IDEAM-GG-SECRETARIA GENERAL | L28: A-02-02-02-008 | M28: SERVICIOS PRESTADOS A LAS EMPRESAS Y SERVICIOS DE PRODUCCIÓN | N28: Nación | O28: RECURSOS CORRIENTES | P28: CSF | Q28: 70701498 | R28: 0 | S28: 70701498 | T28: 1051388 | U28: NIT | V28: 901031994 | W28: UNION TEMPORAL EMINSER-SOLOASEO 2016 | X28: Abono en cuenta | Y28: Ahorro | Z28: 250838901 | AA28: Activa | AB28: 890300279 | AC28: BANCO DE OCCIDENTE | AD28: 7819 | AE28: 2319 | AF28: 2319 | AG28: 116919, 153919 | AH28: 229219, 271819 | AI28: 52643819, 81684119 | AK28: 2019-01-02 00:00:00 | AL28: ORDEN DE COMPRA | AM28: 2362018 OC 28038 ADICION 3 | AN28: RENGLON 180, ACT PAA 04, APALANCAR VIGENCIAS FUTURAS 2019 - PRESTACIÓN DEL SERVICIO INTEGRAL DE ASEO Y CAFETERÍA PARA EL AREA OPERATIVA No. 11-BOGOTÁ
A29: 800093388 | B29: 0 | C29: 0 | D29: 0 | E29: 0 | F29: 2419 | G29: 2019-01-02 00:00:00 | H29: 2019-01-02 17:02:24 | I29: Con Obligacion | J29: 02 | K29: IDEAM-GG-SECRETARIA GENERAL | L29: A-02-02-02-008 | M29: SERVICIOS PRESTADOS A LAS EMPRESAS Y SERVICIOS DE PRODUCCIÓN | N29: Nación | O29: RECURSOS CORRIENTES | P29: CSF | Q29: 22302561 | R29: 0 | S29: 22302561 | T29: 3139489 | U29: NIT | V29: 800093388 | W29: CONSERJES INMOBILIARIOS LTDA. | X29: Abono en cuenta | Y29: Corriente | Z29: 251027868 | AA29: Activa | AB29: 890300279 | AC29: BANCO DE OCCIDENTE | AD29: 8119 | AE29: 2419 | AF29: 2419 | AG29: 111219, 154719 | AH29: 227619, 275119 | AI29: 52597119, 83157919 | AK29: 2019-01-02 00:00:00 | AL29: ORDEN DE COMPRA | AM29: 2382018 OC 28144 ADICION 3 | AN29: RENGLON 180, ACT PAA 04, APALANCAR VIGENCIAS FUTURAS 2019 - PRESTACIÓN DEL SERVICIO INTEGRAL DE ASEO Y CAFETERÍA PARA EL AREA AEROPUERTOS
A30: 900889896 | B30: 0 | C30: 0 | D30: 0 | E30: 0 | F30: 2519 | G30: 2019-01-02 00:00:00 | H30: 2019-01-02 17:06:58 | I30: Con Obligacion | J30: 02 | K30: IDEAM-GG-SECRETARIA GENERAL | L30: A-02-02-02-006 | M30: SERVICIOS DE ALOJAMIENTO; SERVICIOS DE SUMINISTRO DE COMIDAS Y BEBIDAS; SERVICIOS DE TRANSPORTE; Y SERVICIOS DE DISTRIBUCIÓN DE ELECTRICIDAD, GAS Y AGUA | N30: Nación | O30: RECURSOS CORRIENTES | P30: CSF | Q30: 63521062 | R30: 0 | S30: 63521062 | T30: 36233 | U30: NIT | V30: 900889896 | W30: UNION TEMPORAL NOVATOURS - VISION TOURS 04-2015 | X30: Abono en cuenta | Y30: Ahorro | Z30: 007470462669 | AA30: Activa | AB30: 860034313 | AC30: BANCO DAVIVIENDA S.A. | AD30: 8419 | AE30: 2519 | AF30: 2519 | AG30: 51019, 117019, 154019, 154319 | AH30: 83219, 237819, 271919 | AI30: 25377019, 64146319, 81711819 | AK30: 2019-01-02 00:00:00 | AL30: ORDEN DE COMPRA | AM30: 1232018 OC 24673 | AN30: RENGLON 190, ACT PAA 04, SUSTITUCIÓN VIGENCIA CONTRATO Nº 123 EL CUAL TIENE POR OBJETO: "CONTRATAR EL SUMINISTRO DE TIQUETES PARA EL TRANSPORTE AÉREO EN RUTAS NACIONALES E INTERNACIONALES A FUNCIONARIOS Y COLABORADORES DEL IDEAM
A31: 1049615243 | B31: 0 | C31: 0 | D31: 12019 | E31: 12019 | F31: 2619 | G31: 2019-01-03 00:00:00 | H31: 2019-01-03 19:45:14 | I31: Con Obligacion | J31: 02 | K31: IDEAM-GG-SECRETARIA GENERAL | L31: A-02-02-02-008 | M31: SERVICIOS PRESTADOS A LAS EMPRESAS Y SERVICIOS DE PRODUCCIÓN | N31: Nación | O31: RECURSOS CORRIENTES | P31: CSF | Q31: 77219000 | R31: 0 | S31: 77219000 | T31: 45360000 | U31: Cédula de Ciudadanía | V31: 1049615243 | W31: MUÑOZ LOPEZ MARIA FERNANDA | X31: Abono en cuenta | Y31: Ahorro | Z31: 24045743027 | AA31: Activa | AB31: 860007335 | AC31: BCSC S A | AD31: 919 | AE31: 2919 | AF31: 2619 | AG31: 21719, 77719, 129419, 188219, 257319 | AH31: 25219, 193719, 247619, 310519, 377819 | AI31: 17931919, 41272919, 71387019, 104281619, 144535919 | AK31: 2019-01-03 00:00:00 | AL31: CONTRATO DE PRESTACION DE SERVICIOS - PROFESIONALES | AM31: 0012019 | AN31: RENGLON 023, ACT PAA 00, PRESTAR LOS SERVICIOS PROFESIONALES EN LA OFICINA ASESORA JURÍDICA DEL INSTITUTO EN ASUNTOS DE CARÁCTER PRECONTRACTUAL, CONTRACTUAL Y POST-CONTRACTUAL QUE SE REQUIERAN.
A32: 1013602988 | B32: 0 | C32: 0 | D32: 22019 | E32: 22019 | F32: 2719 | G32: 2019-01-03 00:00:00 | H32: 2019-01-03 19:58:19 | I32: Con Obligacion | J32: 02 | K32: IDEAM-GG-SECRETARIA GENERAL | L32: A-02-02-02-008 | M32: SERVICIOS PRESTADOS A LAS EMPRESAS Y SERVICIOS DE PRODUCCIÓN | N32: Propios | O32: OTROS RECURSOS DE TESORERIA | P32: CSF | Q32: 61576000 | R32: 0 | S32: 61576000 | T32: 36120000 | U32: Cédula de Ciudadanía | V32: 1013602988 | W32: QUINCHE BEDOYA JEISSON RICARDO | X32: Abono en cuenta | Y32: Ahorro | Z32: 58294005810 | AA32: Activa | AB32: 890903938 | AC32: BANCOLOMBIA S.A. | AD32: 2819 | AE32: 4619 | AF32: 2719 | AG32: 42919, 83519, 136119, 200119, 248719 | AH32: 76619, 199719, 252319, 322819, 370919 | AI32: 21005019, 43086019, 72842519, 107496519, 138080219 | AK32: 2019-01-03 00:00:00 | AL32: CONTRATO DE PRESTACION DE SERVICIOS - PROFESIONALES | AM32: 0022019 | AN32: RENGLON 040, ACT PAA 00, PRESTAR LOS SERVICIOS PROFESIONALES PARA LA VERIFICACIÓN, ANÁLISIS Y REGISTRO DE LAS OPERACIONES ASOCIADAS A LA EJECUCIÓN PRESUPUESTAL Y SUS MODIFICACIONES, ASÍ COMO EL REGISTRO PRESUPUESTAL DE LOS COMPR
A33: 37748506 | B33: 0 | C33: 0 | D33: 32019 | E33: 32019 | F33: 2819 | G33: 2019-01-03 00:00:00 | H33: 2019-01-03 20:25:41 | I33: Con Obligacion | J33: 02 | K33: IDEAM-GG-SECRETARIA GENERAL | L33: A-02-02-02-008 | M33: SERVICIOS PRESTADOS A LAS EMPRESAS Y SERVICIOS DE PRODUCCIÓN | N33: Propios | O33: OTROS RECURSOS DE TESORERIA | P33: CSF | Q33: 100598000 | R33: 0 | S33: 100598000 | T33: 59010000 | U33: Cédula de Ciudadanía | V33: 37748506 | W33: QUINTERO GNECCO AISLETH YUSETH | X33: Abono en cuenta | Y33: Ahorro | Z33: 008900723902 | AA33: Activa | AB33: 860034313 | AC33: BANCO DAVIVIENDA S.A. | AD33: 2919 | AE33: 4719 | AF33: 2819 | AG33: 67519, 80019, 164719, 208719, 289519 | AH33: 183019, 196019, 281919, 331519, 407319 | AI33: 31698319, 41391319, 84191219, 110157019, 151017319 | AK33: 2019-01-03 00:00:00 | AL33: CONTRATO DE PRESTACION DE SERVICIOS - PROFESIONALES | AM33: 0032019 | AN33: RENGLON 041, ACT PAA 00, BRINDAR APOYO A LA SECRETARÍA GENERAL EN LA PROGRAMACIÓN, REVISIÓN Y SEGUIMIENTO PRESUPUESTAL DE LOS GRUPOS ADSCRITOS A ESTA.
A34: 79504808 | B34: 0 | C34: 0 | D34: 42019 | E34: 42019 | F34: 2919 | G34: 2019-01-03 00:00:00 | H34: 2019-01-03 20:48:30 | I34: Con Obligacion | J34: 02 | K34: IDEAM-GG-SECRETARIA GENERAL | L34: A-02-02-02-008 | M34: SERVICIOS PRESTADOS A LAS EMPRESAS Y SERVICIOS DE PRODUCCIÓN | N34: Nación | O34: RECURSOS CORRIENTES | P34: CSF | Q34: 100165000 | R34: 0 | S34: 100165000 | T34: 59010000 | U34: Cédula de Ciudadanía | V34: 79504808 | W34: HERNANDEZ RODRIGUEZ RICARDO AUGUSTO | X34: Abono en cuenta | Y34: Corriente | Z34: 001072760776 | AA34: Activa | AB34: 860034313 | AC34: BANCO DAVIVIENDA S.A. | AD34: 4719 | AE34: 6019 | AF34: 2919 | AG34: 21819, 77319, 128919, 205519, 258919 | AH34: 25319, 193019, 247119, 327819, 378819 | AI34: 17938419, 39937319, 71413019, 108470719, 144536919 | AK34: 2019-01-03 00:00:00 | AL34: CONTRATO DE PRESTACION DE SERVICIOS - PROFESIONALES | AM34: 0042019 | AN34: RENGLON 054, ACT PAA 00, PRESTAR LOS SERVICIOS PROFESIONALES PARA APOYAR AL GRUPO DE SERVICIOS ADMINISTRATIVOS EN LA ESTRUCTURACIÓN Y EJECUCIÓN TÉCNICA DE LOS PROYECTOS DE INFRAESTRUCTURA QUE DESARROLLE EL IDEAM
A35: 800021272 | B35: 0 | C35: 0 | D35: 119005 | E35: 119005 | F35: 3019 | G35: 2019-01-04 00:00:00 | H35: 2019-01-04 11:38:11 | I35: Con Obligacion | J35: 02 | K35: IDEAM-GG-SECRETARIA GENERAL | L35: A-02-02-02-006 | M35: SERVICIOS DE ALOJAMIENTO; SERVICIOS DE SUMINISTRO DE COMIDAS Y BEBIDAS; SERVICIOS DE TRANSPORTE; Y SERVICIOS DE DISTRIBUCIÓN DE ELECTRICIDAD, GAS Y AGUA | N35: Nación | O35: RECURSOS CORRIENTES | P35: CSF | Q35: 16144 | R35: 0 | S35: 16144 | T35: 0 | U35: NIT | V35: 800021272 | W35: GASES DEL LLANO S.A EMPRESA DE SERVICIOS PUBLICOS | X35: Abono en cuenta | Y35: Ahorro | Z35: 096000278752 | AA35: Activa | AB35: 860034313 | AC35: BANCO DAVIVIENDA S.A. | AD35: 8719 | AE35: 7019 | AF35: 3019 | AG35: 819 | AH35: 919 | AI35: 1266619 | AK35: 2019-01-04 00:00:00 | AL35: FACTURA | AM35: 119005 | AN35: ORFEO 20187030001862, FACTURA DE 26 NOVIEMBRE A 26 DIC/2018, PRESTADO EN META, PAGO A LLANOGAS, CONCEPTO: SERVICIO GAS NATURAL DOMICILIAIRO SEDE VILLAVICENCIO AOP. NO. 03
A36: 890101691 | B36: 0 | C36: 0 | D36: 2046904590 | E36: 2046904590 | F36: 3119 | G36: 2019-01-04 00:00:00 | H36: 2019-01-04 11:43:19 | I36: Con Obligacion | J36: 02 | K36: IDEAM-GG-SECRETARIA GENERAL | L36: A-02-02-02-006 | M36: SERVICIOS DE ALOJAMIENTO; SERVICIOS DE SUMINISTRO DE COMIDAS Y BEBIDAS; SERVICIOS DE TRANSPORTE; Y SERVICIOS DE DISTRIBUCIÓN DE ELECTRICIDAD, GAS Y AGUA | N36: Nación | O36: RECURSOS CORRIENTES | P36: CSF | Q36: 39675 | R36: 0 | S36: 39675 | T36: 0 | U36: NIT | V36: 890101691 | W36: GASES DEL CARIBE S A EMPRESA DE SERVICIOS PUBLICOS GASCARIBE S A E S P | X36: Giro | AD36: 8719 | AE36: 7019 | AF36: 3119 | AG36: 519 | AH36: 619 | AI36: 1266319 | AK36: 2019-01-04 00:00:00 | AL36: FACTURA | AM36: 2046904590 | AN36: ORFEO 20197050000012, FACTURA DE 15 NOVIEMBRE A 13 DIC/2018, PRESTADO EN MAGDALENA, PAGO A GASES DEL CARIBE, CONCEPTO: SERVICIO GAS NATURAL DOMICILIAIRO SEDE SANTA MARTA AOP. NO. 05
A37: 809011444 | B37: 0 | C37: 0 | D37: 89688834 | E37: 89688834 | F37: 3219 | G37: 2019-01-04 00:00:00 | H37: 2019-01-04 11:49:25 | I37: Con Obligacion | J37: 02 | K37: IDEAM-GG-SECRETARIA GENERAL | L37: A-02-02-02-006 | M37: SERVICIOS DE ALOJAMIENTO; SERVICIOS DE SUMINISTRO DE COMIDAS Y BEBIDAS; SERVICIOS DE TRANSPORTE; Y SERVICIOS DE DISTRIBUCIÓN DE ELECTRICIDAD, GAS Y AGUA | N37: Nación | O37: RECURSOS CORRIENTES | P37: CSF | Q37: 975416 | R37: 0 | S37: 975416 | T37: 0 | U37: NIT | V37: 809011444 | W37: COMPAÑIA ENERGETICA DEL TOLIMA SOCIEDAD POR ACCIONES EMPRESA DE SERVICIOS PUBLICOS | X37: Giro | AD37: 8619 | AE37: 6919 | AF37: 3219 | AG37: 719 | AH37: 819 | AI37: 1260619 | AK37: 2019-01-04 00:00:00 | AL37: FACTURA | AM37: 89688834 | AN37: ORFEO 20187100004753, FACTURA DE 27 NOVIEMBRE A 27 DIC/2018, PRESTADO EN TOLIMA, PAGO A ENERTOLIMA, CONCEPTO: SERVICIO ENERGIA SEDE IBAGUE AOP. NO. 10
A38: 819000939 | B38: 0 | C38: 0 | D38: 89699934 | E38: 89699934 | F38: 3319 | G38: 2019-01-04 00:00:00 | H38: 2019-01-04 11:59:53 | I38: Con Obligacion | J38: 02 | K38: IDEAM-GG-SECRETARIA GENERAL | L38: A-02-02-02-009 | M38: SERVICIOS PARA LA COMUNIDAD, SOCIALES Y PERSONALES | N38: Nación | O38: RECURSOS CORRIENTES | P38: CSF | Q38: 59824 | R38: 0 | S38: 59824 | T38: 0 | U38: NIT | V38: 819000939 | W38: INTERASEO SA ESP | X38: Giro | AD38: 9419 | AE38: 7119 | AF38: 3319 | AG38: 919 | AH38: 1019 | AI38: 1260819 | AK38: 2019-01-04 00:00:00 | AL38: FACTURA | AM38: 89699934 | AN38: ORFEO 20187100004753, FACTURA DE 27 NOVIEMBRE A 27 DIC/2018, PRESTADO EN TOLIMA, PAGO A INTERASEO, CONCEPTO: SERVICIO ASEO SEDE IBAGUE AOP. NO. 10
A39: 1121865984 | B39: 0 | C39: 0 | D39: 3392018 | E39: 3392018 | F39: 3419 | G39: 2019-01-04 00:00:00 | H39: 2019-01-04 14:18:46 | I39: Con Obligacion | J39: 04 | K39: IDEAM-GG-DG.OFICINA DEL SERVICIO DE PRONOSTICOS Y ALERTAS | L39: C-3204-0900-3-0-3204047-02 | M39: ADQUISICIÓN DE BIENES Y SERVICIOS | N39: Nación | O39: OTROS RECURSOS DEL TESORO | P39: CSF | Q39: 61380000 | R39: 0 | S39: 61380000 | T39: 33480000 | U39: Cédula de Ciudadanía | V39: 1121865984 | W39: MACIAS RODRIGUEZ LAURA DANIELA | X39: Abono en cuenta | Y39: Ahorro | Z39: 36428364117 | AA39: Activa | AB39: 890903938 | AC39: BANCOLOMBIA S.A. | AD39: 9619 | AE39: 8919 | AF39: 3419 | AG39: 22319, 81019, 147719, 185219, 253119 | AH39: 25819, 197119, 268919, 307419, 373819 | AI39: 17932619, 43073119, 80363119, 104274919, 140482319 | AK39: 2019-01-04 00:00:00 | AL39: CONTRATO DE PRESTACION DE SERVICIOS - PROFESIONALES | AM39: 3392018 | AN39: RENGLON 083, ACT PAA 11, PARA AMPARAR VIGENCIA FUTURA 2019 - PRESTAR LOS SERVICIOS PROFESIONALES EN LA OFICINA DEL SERVICIO DE PRONÓSTICOS Y ALERTAS DEL IDEAM, MEDIANTE LA PRESTACIÓN DE TURNOS DE MONITOREO DIURNO Y NOCTURNO
A40: 79957529 | B40: 0 | C40: 0 | D40: 3402018 | E40: 3402018 | F40: 3519 | G40: 2019-01-04 00:00:00 | H40: 2019-01-04 14:35:09 | I40: Con Obligacion | J40: 04 | K40: IDEAM-GG-DG.OFICINA DEL SERVICIO DE PRONOSTICOS Y ALERTAS | L40: C-3204-0900-3-0-3204047-02 | M40: ADQUISICIÓN DE BIENES Y SERVICIOS | N40: Nación | O40: OTROS RECURSOS DEL TESORO | P40: CSF | Q40: 58590000 | R40: 0 | S40: 58590000 | T40: 30690000 | U40: Cédula de Ciudadanía | V40: 79957529 | W40: FIGUEROA ORTIZ CARLOS ALBEIRO | X40: Abono en cuenta | Y40: Ahorro | Z40: 007770251937 | AA40: Activa | AB40: 860034313 | AC40: BANCO DAVIVIENDA S.A. | AD40: 9719 | AE40: 9019 | AF40: 3519 | AG40: 19519, 80819, 144919, 185419, 253219 | AH40: 16919, 196919, 265819, 307619, 373919 | AI40: 17929819, 44819919, 80331119, 104275419, 140482619 | AK40: 2019-01-04 00:00:00 | AL40: CONTRATO DE PRESTACION DE SERVICIOS - PROFESIONALES | AM40: 3402018 | AN40: RENGLON 087, ACT PAA 11, PARA AMPARAR VIGENCIA FUTURA 2019 - PRESTAR LOS SERVICIOS PROFESIONALES EN LA OFICINA DEL SERVICIO DE PRONÓSTICOS Y ALERTAS DEL IDEAM, MEDIANTE LA PRESTACIÓN DE TURNOS DE MONITOREO DIURNO Y NOCTURNO
A41: 1075215818 | B41: 0 | C41: 0 | D41: 3412018 | E41: 3412018 | F41: 3619 | G41: 2019-01-04 00:00:00 | H41: 2019-01-04 14:47:31 | I41: Con Obligacion | J41: 04 | K41: IDEAM-GG-DG.OFICINA DEL SERVICIO DE PRONOSTICOS Y ALERTAS | L41: C-3204-0900-3-0-3204047-02 | M41: ADQUISICIÓN DE BIENES Y SERVICIOS | N41: Nación | O41: OTROS RECURSOS DEL TESORO | P41: CSF | Q41: 40590000 | R41: 0 | S41: 40590000 | T41: 22140000 | U41: Cédula de Ciudadanía | V41: 1075215818 | W41: GUZMAN LOPEZ HELMER ALEXIS | X41: Abono en cuenta | Y41: Ahorro | Z41: 17657261459 | AA41: Activa | AB41: 890903938 | AC41: BANCOLOMBIA S.A. | AD41: 9819 | AE41: 9119 | AF41: 3619 | AG41: 29219, 84619, 84719, 147119, 180919, 250019 | AH41: 26319, 200819, 268519, 302519, 371619 | AI41: 17933719, 46647119, 80357819, 100667319, 140476019 | AK41: 2019-01-04 00:00:00 | AL41: CONTRATO DE PRESTACION DE SERVICIOS - PROFESIONALES | AM41: 3412018 | AN41: RENGLON 079, ACT PAA 11, PARA AMPARAR VIGENCIA FUTURA 2019 - PRESTAR LOS SERVICIOS PROFESIONALES PARA EL ACOMPAÑAMIENTO Y REALIZACIÓN DE PRODUCTOS ESPECÍFICOS, ENCAMINADOS A LA ELABORACIÓN DE PRONÓSTICOS DEL ESTADO DEL TIEMPO
A42: 52884546 | B42: 0 | C42: 0 | D42: 3422018 | E42: 3422018 | F42: 3719 | G42: 2019-01-04 00:00:00 | H42: 2019-01-04 14:54:16 | I42: Con Obligacion | J42: 04 | K42: IDEAM-GG-DG.OFICINA DEL SERVICIO DE PRONOSTICOS Y ALERTAS | L42: C-3204-0900-3-0-3204047-02 | M42: ADQUISICIÓN DE BIENES Y SERVICIOS | N42: Nación | O42: OTROS RECURSOS DEL TESORO | P42: CSF | Q42: 63945000 | R42: 0 | S42: 63945000 | T42: 33495000 | U42: Cédula de Ciudadanía | V42: 52884546 | W42: GARZON VARGAS VIVIAN FARLEY | X42: Abono en cuenta | Y42: Ahorro | Z42: 24078187292 | AA42: Activa | AB42: 860007335 | AC42: BCSC S A | AD42: 9919 | AE42: 9219 | AF42: 3719 | AG42: 20219, 91319, 147619, 184419, 249919 | AH42: 24719, 207419, 268819, 306819, 371919 | AI42: 17931319, 46650419, 80361819, 104273619, 140476719 | AK42: 2019-01-04 00:00:00 | AL42: CONTRATO DE PRESTACION DE SERVICIOS - PROFESIONALES | AM42: 3422018 | AN42: RENGLON 093, ACT PAA 11, PARA AMPARAR VIGENCIA FUTURA 2019 - PRESTAR LOS SERVICIOS PROFESIONALES EN LA OFICINA DEL SERVICIO DE PRONÓSTICOS Y ALERTAS PARA EL DESARROLLO DE ACTIVIDADES ENMARCADAS EN EL COMPONENTE
A43: 79947744 | B43: 0 | C43: 0 | D43: 3432018 | E43: 3432018 | F43: 3819 | G43: 2019-01-04 00:00:00 | H43: 2019-01-04 15:29:59 | I43: Con Obligacion | J43: 04 | K43: IDEAM-GG-DG.OFICINA DEL SERVICIO DE PRONOSTICOS Y ALERTAS | L43: C-3204-0900-3-0-3204047-02 | M43: ADQUISICIÓN DE BIENES Y SERVICIOS | N43: Nación | O43: OTROS RECURSOS DEL TESORO | P43: CSF | Q43: 62370000 | R43: 0 | S43: 62370000 | T43: 32670000 | U43: Cédula de Ciudadanía | V43: 79947744 | W43: SANABRIA MEJIA JESUS ALFREDO | X43: Abono en cuenta | Y43: Ahorro | Z43: 18812185477 | AA43: Activa | AB43: 890903938 | AC43: BANCOLOMBIA S.A. | AD43: 10019 | AE43: 9319 | AF43: 3819 | AG43: 19619, 19819, 83619, 144519, 183819, 250119 | AH43: 17019, 199819, 265619, 305919, 371719 | AI43: 17930019, 43087019, 80329419, 102318319, 140476419 | AK43: 2019-01-04 00:00:00 | AL43: CONTRATO DE PRESTACION DE SERVICIOS - PROFESIONALES | AM43: 3432018 | AN43: RENGLON 095, ACT PAA 11, ORFEO 20181050001573 PARA AMPARAR VIGENCIA FUTURA 2019 - PRESTAR LOS SERVICIOS PROFESIONALES EN LA OFICINA DEL SERVICIO DE PRONÓSTICOS Y ALERTAS DEL IDEAM, CON EL FIN DE ESTABLECER Y GENERAR PRODUCTOS METEOROLÓGICOS QUE APOR
A44: 79542107 | B44: 0 | C44: 0 | D44: 3442018 | E44: 3442018 | F44: 3919 | G44: 2019-01-04 00:00:00 | H44: 2019-01-04 15:34:03 | I44: Con Obligacion | J44: 04 | K44: IDEAM-GG-DG.OFICINA DEL SERVICIO DE PRONOSTICOS Y ALERTAS | L44: C-3204-0900-3-0-3204047-02 | M44: ADQUISICIÓN DE BIENES Y SERVICIOS | N44: Nación | O44: OTROS RECURSOS DEL TESORO | P44: CSF | Q44: 61380000 | R44: 0 | S44: 61380000 | T44: 33480000 | U44: Cédula de Ciudadanía | V44: 79542107 | W44: RODRIGUEZ AMAYA BENJAMIN ENRIQUE | X44: Abono en cuenta | Y44: Ahorro | Z44: 082862926 | AA44: Activa | AB44: 860035827 | AC44: BANCO COMERCIAL AV VILLAS S.A. | AD44: 10119 | AE44: 9419 | AF44: 3919 | AG44: 30119, 80319, 145619, 196119, 258419 | AH44: 27119, 196319, 266419, 317419, 377619 | AI44: 17934719, 43070319, 80337419, 107473119, 144535719 | AK44: 2019-01-04 00:00:00 | AL44: CONTRATO DE PRESTACION DE SERVICIOS - PROFESIONALES | AM44: 3442018 | AN44: RENGLON 086, ACT PAA 11, ORFEO 20181050001483 PARA AMPARAR VIGENCIA FUTURA 2019 - PRESTAR LOS SERVICIOS PROFESIONALES EN LA OFICINA DEL SERVICIO DE PRONÓSTICOS Y ALERTAS DEL IDEAM, MEDIANTE LA PRESTACIÓN DE TURNOS DE MONITOREO DIURNO Y NOCTURNO
A45: 80130414 | B45: 0 | C45: 0 | D45: 3452018 | E45: 3452018 | F45: 4019 | G45: 2019-01-04 00:00:00 | H45: 2019-01-04 16:01:44 | I45: Con Obligacion | J45: 04 | K45: IDEAM-GG-DG.OFICINA DEL SERVICIO DE PRONOSTICOS Y ALERTAS | L45: C-3204-0900-3-0-3204047-02 | M45: ADQUISICIÓN DE BIENES Y SERVICIOS | N45: Nación | O45: OTROS RECURSOS DEL TESORO | P45: CSF | Q45: 65205000 | R45: 0 | S45: 65205000 | T45: 34155000 | U45: Cédula de Ciudadanía | V45: 80130414 | W45: SUAREZ VARGAS DIEGO ALEJANDRO | X45: Abono en cuenta | Y45: Ahorro | Z45: 24523416135 | AA45: Activa | AB45: 860007335 | AC45: BCSC S A | AD45: 11319 | AE45: 10619 | AF45: 4019 | AG45: 18819, 83719, 147419, 184119, 250519 | AH45: 17419, 199919, 268619, 306419, 372219 | AI45: 17930219, 43087519, 80359219, 102318919, 140477419 | AK45: 2019-01-04 00:00:00 | AL45: CONTRATO DE PRESTACION DE SERVICIOS - PROFESIONALES | AM45: 3452018 | AN45: RENGLON 074, ACT PAA 11, ORFEO 20181050001363 PARA AMPARAR VIGENCIA FUTURA 2019 - PRESTAR LOS SERVICIOS PROFESIONALES EN LA ELABORACIÓN DE PRONÓSTICOS DEL ESTADO DEL TIEMPO, ESPECIALES, VARIABILIDAD CLIMÁTICA, METEOMARINOS, AGROMETEOROLOGICOS Y DEMÁ
A46: 33375219 | B46: 0 | C46: 0 | D46: 52019 | E46: 52019 | F46: 4119 | G46: 2019-01-04 00:00:00 | H46: 2019-01-04 16:17:04 | I46: Con Obligacion | J46: 02 | K46: IDEAM-GG-SECRETARIA GENERAL | L46: A-02-02-02-008 | M46: SERVICIOS PRESTADOS A LAS EMPRESAS Y SERVICIOS DE PRODUCCIÓN | N46: Nación | O46: RECURSOS CORRIENTES | P46: CSF | Q46: 77112000 | R46: 0 | S46: 77112000 | T46: 45360000 | U46: Cédula de Ciudadanía | V46: 33375219 | W46: OCHOA CASTRO FANNY ANDREA | X46: Abono en cuenta | Y46: Ahorro | Z46: 50213567184 | AA46: Activa | AB46: 890903938 | AC46: BANCOLOMBIA S.A. | AD46: 1119 | AE46: 3119 | AF46: 4119 | AG46: 22019, 78019, 134219, 188019, 254319 | AH46: 25519, 194019, 251319, 310319, 375119 | AI46: 17932119, 41274519, 72836419, 104281419, 140486019 | AK46: 2019-01-04 00:00:00 | AL46: CONTRATO DE PRESTACION DE SERVICIOS - PROFESIONALES | AM46: 0052019 | AN46: RENGLON 025, ACT PAA 00, PRESTAR LOS SERVICIOS PROFESIONALES EN LA OFICINA ASESORA JURÍDICA DEL INSTITUTO EN ASUNTOS DE CARÁCTER PRECONTRACTUAL, CONTRACTUAL Y POST-CONTRACTUAL QUE SE REQUIERAN.
A47: 52780086 | B47: 0 | C47: 0 | D47: 62019 | E47: 62019 | F47: 4219 | G47: 2019-01-04 00:00:00 | H47: 2019-01-04 16:49:25 | I47: Con Obligacion | J47: 02 | K47: IDEAM-GG-SECRETARIA GENERAL | L47: A-02-02-02-008 | M47: SERVICIOS PRESTADOS A LAS EMPRESAS Y SERVICIOS DE PRODUCCIÓN | N47: Nación | O47: RECURSOS CORRIENTES | P47: CSF | Q47: 77112000 | R47: 0 | S47: 77112000 | T47: 45360000 | U47: Cédula de Ciudadanía | V47: 52780086 | W47: GUTIERREZ VEGA NURY YASMIN | X47: Abono en cuenta | Y47: Ahorro | Z47: 191024793 | AA47: Activa | AB47: 860002964 | AC47: BANCO DE BOGOTA S. A. | AD47: 1019 | AE47: 3019 | AF47: 4219 | AG47: 20919, 21019, 77519, 134419, 187419, 254119 | AH47: 18219, 193519, 250919, 309619, 374919 | AI47: 17931219, 41271219, 72835619, 104280119, 140485119 | AK47: 2019-01-04 00:00:00 | AL47: CONTRATO DE PRESTACION DE SERVICIOS - PROFESIONALES | AM47: 0062019 | AN47: RENGLON 024, ACT PAA 00, PRESTAR LOS SERVICIOS PROFESIONALES EN LA OFICINA ASESORA JURÍDICA DEL INSTITUTO EN ASUNTOS DE CARÁCTER PRECONTRACTUAL, CONTRACTUAL Y POST-CONTRACTUAL QUE SE REQUIERAN.
A48: 33368340 | B48: 0 | C48: 0 | D48: 72019 | E48: 72019 | F48: 4319 | G48: 2019-01-04 00:00:00 | H48: 2019-01-04 17:24:56 | I48: Con Obligacion | J48: 02 | K48: IDEAM-GG-SECRETARIA GENERAL | L48: A-02-02-02-008 | M48: SERVICIOS PRESTADOS A LAS EMPRESAS Y SERVICIOS DE PRODUCCIÓN | N48: Nación | O48: RECURSOS CORRIENTES | P48: CSF | Q48: 77112000 | R48: 0 | S48: 77112000 | T48: 45360000 | U48: Cédula de Ciudadanía | V48: 33368340 | W48: ALFONSO VALDERRAMA JAZMIN ROCIO | X48: Abono en cuenta | Y48: Ahorro | Z48: 25808378496 | AA48: Activa | AB48: 890903938 | AC48: BANCOLOMBIA S.A. | AD48: 1419 | AE48: 3319 | AF48: 4319 | AG48: 36819, 92419, 146219, 201519, 272219 | AH48: 30319, 208519, 256319, 324619, 393019 | AI48: 17936719, 46654119, 80306919, 108412619, 146161019 | AK48: 2019-01-04 00:00:00 | AL48: CONTRATO DE PRESTACION DE SERVICIOS - PROFESIONALES | AM48: 0072019 | AN48: RENGLON 027, ACT PAA 00, PRESTAR LOS SERVICIOS PROFESIONALES EN LA OFICINA ASESORA JURÍDICA DEL INSTITUTO EN ASUNTOS DE CARÁCTER PRECONTRACTUAL, CONTRACTUAL Y POST-CONTRACTUAL QUE SE REQUIERAN.
A49: 1085276112 | B49: 0 | C49: 0 | D49: 82019 | E49: 82019 | F49: 4419 | G49: 2019-01-04 00:00:00 | H49: 2019-01-04 17:49:26 | I49: Con Obligacion | J49: 02 | K49: IDEAM-GG-SECRETARIA GENERAL | L49: A-02-02-02-008 | M49: SERVICIOS PRESTADOS A LAS EMPRESAS Y SERVICIOS DE PRODUCCIÓN | N49: Nación | O49: RECURSOS CORRIENTES | P49: CSF | Q49: 77112000 | R49: 0 | S49: 77112000 | T49: 45360000 | U49: Cédula de Ciudadanía | V49: 1085276112 | W49: JAIMEZ URRESTY ELIANA | X49: Abono en cuenta | Y49: Ahorro | Z49: 88187583513 | AA49: Activa | AB49: 890903938 | AC49: BANCOLOMBIA S.A. | AD49: 1319 | AE49: 3219 | AF49: 4419 | AG49: 21119, 78119, 139319, 190419, 257219 | AH49: 26919, 194119, 253319, 312519, 377719 | AI49: 17934419, 41275619, 73608619, 105717019, 144535819 | AK49: 2019-01-04 00:00:00 | AL49: CONTRATO DE PRESTACION DE SERVICIOS - PROFESIONALES | AM49: 0082019 | AN49: RENGLON 026, ACT PAA 00, PRESTAR LOS SERVICIOS PROFESIONALES EN LA OFICINA ASESORA JURÍDICA DEL INSTITUTO EN ASUNTOS DE CARÁCTER PRECONTRACTUAL, CONTRACTUAL Y POST-CONTRACTUAL QUE SE REQUIERAN.
A50: 1000322301 | B50: 0 | C50: 0 | D50: 92019 | E50: 92019 | F50: 4519 | G50: 2019-01-04 00:00:00 | H50: 2019-01-04 17:58:42 | I50: Con Obligacion | J50: 02 | K50: IDEAM-GG-SECRETARIA GENERAL | L50: A-02-02-02-008 | M50: SERVICIOS PRESTADOS A LAS EMPRESAS Y SERVICIOS DE PRODUCCIÓN | N50: Nación | O50: RECURSOS CORRIENTES | P50: CSF | Q50: 77112000 | R50: 0 | S50: 77112000 | T50: 45360000 | U50: Cédula de Ciudadanía | V50: 1000322301 | W50: RAMIREZ ZAMBRANO JULIANA FERNANDA | X50: Abono en cuenta | Y50: Ahorro | Z50: 24079779074 | AA50: Activa | AB50: 860007335 | AC50: BCSC S A | AD50: 4519 | AE50: 5919 | AF50: 4519 | AG50: 18319, 18419, 79119, 129019, 186019, 257419 | AH50: 16219, 195119, 247219, 308219, 377919 | AI50: 17929219, 41280519, 71400419, 104276819, 144536019 | AK50: 2019-01-04 00:00:00 | AL50: CONTRATO DE PRESTACION DE SERVICIOS - PROFESIONALES | AM50: 0092019 | AN50: RENGLON 053, ACT PAA 00, PRESTAR LOS SERVICIOS PROFESIONALES DE ABOGADO COMO APOYO A LA ETAPA PRECONTRACTUAL DE LOS PROCESOS DE CONTRATACIÓN ASÍ COMO DE SELECCIÓN ABREVIADA POR BOLSA DE PRODUCTOS, ACUERDOS MARCO DE PRECIOS, GRA
A51: 1032393512 | B51: 0 | C51: 0 | D51: 102019 | E51: 102019 | F51: 4619 | G51: 2019-01-04 00:00:00 | H51: 2019-01-04 18:25:41 | I51: Con Obligacion | J51: 02 | K51: IDEAM-GG-SECRETARIA GENERAL | L51: A-02-02-02-008 | M51: SERVICIOS PRESTADOS A LAS EMPRESAS Y SERVICIOS DE PRODUCCIÓN | N51: Nación | O51: RECURSOS CORRIENTES | P51: CSF | Q51: 77112000 | R51: 0 | S51: 77112000 | T51: 45360000 | U51: Cédula de Ciudadanía | V51: 1032393512 | W51: HERRERA CORTES ANDREA VERONICA | X51: Abono en cuenta | Y51: Ahorro | Z51: 15362172095 | AA51: Activa | AB51: 890903938 | AC51: BANCOLOMBIA S.A. | AD51: 1919 | AE51: 3719 | AF51: 4619 | AG51: 18619, 74719, 129319, 188119, 248519 | AH51: 16319, 189919, 247519, 310419, 370719 | AI51: 17929519, 39135819, 71397619, 104281519, 138079719 | AK51: 2019-01-04 00:00:00 | AL51: CONTRATO DE PRESTACION DE SERVICIOS - PROFESIONALES | AM51: 0102019 | AN51: RENGLON 031, ACT PAA 00, PRESTAR LOS SERVICIOS PROFESIONALES EN LA OFICINA ASESORA JURÍDICA DEL INSTITUTO EN ASUNTOS DE CARÁCTER PRECONTRACTUAL, CONTRACTUAL Y POST-CONTRACTUAL DE LOS PROCESOS DE SELECCIÓN QUE SE REQUIERAN EN
A52: 7180432 | B52: 0 | C52: 0 | D52: 112019 | E52: 112019 | F52: 4719 | G52: 2019-01-04 00:00:00 | H52: 2019-01-04 18:35:41 | I52: Con Obligacion | J52: 02 | K52: IDEAM-GG-SECRETARIA GENERAL | L52: A-02-02-02-008 | M52: SERVICIOS PRESTADOS A LAS EMPRESAS Y SERVICIOS DE PRODUCCIÓN | N52: Propios | O52: OTROS RECURSOS DE TESORERIA | P52: CSF | Q52: 61047000 | R52: 0 | S52: 61047000 | T52: 35910000 | U52: Cédula de Ciudadanía | V52: 7180432 | W52: DAZA BENITEZ WILSON ARMANDO | X52: Abono en cuenta | Y52: Ahorro | Z52: 176270104076 | AA52: Activa | AB52: 860034313 | AC52: BANCO DAVIVIENDA S.A. | AD52: 3619 | AE52: 5219 | AF52: 4719 | AG52: 18119, 74419, 128119, 183219, 246219 | AH52: 75319, 189619, 246919, 305219, 367719 | AI52: 20137619, 39162819, 71405019, 102317319, 138073619 | AK52: 2019-01-04 00:00:00 | AL52: CONTRATO DE PRESTACION DE SERVICIOS - PROFESIONALES | AM52: 0112019 | AN52: RENGLON 046, ACT PAA 00, ORFEO 20192000000133 PRESTAR LOS SERVICIOS PROFESIONALES EN EL GRUPO DE CONTABILIDAD, REALIZANDO EL ANÁLISIS Y LOS REGISTROS CONTABLES MEDIANTE AJUSTES A LAS CUENTAS DEL BALANCE ASIGNADAS, EN EL SISTEMA INTEGRADO DE INFORMAC
A53: 1052385243 | B53: 0 | C53: 0 | D53: 122019 | E53: 122019 | F53: 4819 | G53: 2019-01-04 00:00:00 | H53: 2019-01-04 18:48:29 | I53: Con Obligacion | J53: 02 | K53: IDEAM-GG-SECRETARIA GENERAL | L53: A-02-02-02-008 | M53: SERVICIOS PRESTADOS A LAS EMPRESAS Y SERVICIOS DE PRODUCCIÓN | N53: Nación | O53: RECURSOS CORRIENTES | P53: CSF | Q53: 77112000 | R53: 0 | S53: 77112000 | T53: 45360000 | U53: Cédula de Ciudadanía | V53: 1052385243 | W53: PINTO MALAVER JULIAN ROBERTO | X53: Abono en cuenta | Y53: Ahorro | Z53: 60650583402 | AA53: Activa | AB53: 890903938 | AC53: BANCOLOMBIA S.A. | AD53: 5219 | AE53: 6519 | AF53: 4819 | AG53: 20019, 76519, 131119, 187319, 260019 | AH53: 17119, 192319, 248619, 309519, 379919 | AI53: 17930119, 39926019, 72828219, 104279919, 142268219 | AK53: 2019-01-04 00:00:00 | AL53: CONTRATO DE PRESTACION DE SERVICIOS - PROFESIONALES | AM53: 0122019 | AN53: RENGLON 059, ACT PAA 00, PRESTAR LOS SERVICIOS PROFESIONALES PARA BRINDAR APOYO JURÍDICO AL GRUPO DE ADMINISTRACIÓN Y DESARROLLO DEL TALENTO HUMANO, EN TEMAS RELACIONADOS CON DERECHO LABORAL ADMINISTRATIVO QUE SEAN COMPETENCIA
A54: 1016016267 | B54: 0 | C54: 0 | D54: 132019 | E54: 132019 | F54: 4919 | G54: 2019-01-04 00:00:00 | H54: 2019-01-04 18:57:38 | I54: Con Obligacion | J54: 02 | K54: IDEAM-GG-SECRETARIA GENERAL | L54: A-02-02-02-008 | M54: SERVICIOS PRESTADOS A LAS EMPRESAS Y SERVICIOS DE PRODUCCIÓN | N54: Propios | O54: OTROS RECURSOS DE TESORERIA | P54: CSF | Q54: 61404000 | R54: -55384000 | S54: 6020000 | T54: 0 | U54: Cédula de Ciudadanía | V54: 1016016267 | W54: MEDINA PEREZ NORY ALEXANDRA | X54: Abono en cuenta | Y54: Ahorro | Z54: 9200725423 | AA54: Activa | AB54: 860034313 | AC54: BANCO DAVIVIENDA S.A. | AD54: 2619 | AE54: 4419 | AF54: 4919 | AG54: 42819, 55319 | AH54: 76519, 153319 | AI54: 20141619, 24652119 | AK54: 2019-01-04 00:00:00 | AL54: CONTRATO DE PRESTACION DE SERVICIOS - PROFESIONALES | AM54: 0132019 | AN54: RENGLON 038, ACT PAA 00, PRESTAR LOS SERVICIOS PROFESIONALES PARA LA VERIFICACIÓN, ANÁLISIS Y REGISTRO PRESUPUESTAL DE LOS COMPROMISOS DE COMISIONES DE SERVICIO Y AUTORIZACIONES DE DESPLAZAMIENTO, DE LOS SERVIDORES PÚBLICOS DEL
A55: 79322678 | B55: 0 | C55: 0 | D55: 142019 | E55: 142019 | F55: 5019 | G55: 2019-01-04 00:00:00 | H55: 2019-01-04 19:07:50 | I55: Con Obligacion | J55: 02 | K55: IDEAM-GG-SECRETARIA GENERAL | L55: A-02-02-02-008 | M55: SERVICIOS PRESTADOS A LAS EMPRESAS Y SERVICIOS DE PRODUCCIÓN | N55: Propios | O55: OTROS RECURSOS DE TESORERIA | P55: CSF | Q55: 33201000 | R55: 0 | S55: 33201000 | T55: 19530000 | U55: Cédula de Ciudadanía | V55: 79322678 | W55: PRIETO VASQUEZ CESAR AUGUSTO | X55: Abono en cuenta | Y55: Ahorro | Z55: 008124984 | AA55: Activa | AB55: 860002964 | AC55: BANCO DE BOGOTA S. A. | AD55: 8919 | AE55: 7219 | AF55: 5019 | AG55: 18719, 75219, 130419, 185619, 256319 | AH55: 75619, 191019, 248319, 307819, 377119 | AI55: 20139719, 39906119, 71377019, 104276019, 140491319 | AK55: 2019-01-04 00:00:00 | AL55: CONTRATO DE PRESTACION DE SERVICIOS - PROFESIONALES | AM55: 0142019 | AN55: RENGLON 089, ACT PAA 00, PRESTAR LOS SERVICIOS EN EL GRUPO DE MANEJO Y CONTROL DE ALMACÉN E INVENTARIOS EN TEMAS RELACIONADOS CON EL PROGRAMA DE SEGUROS GENERALES DEL IDEAM
A56: 1049614260 | B56: 0 | C56: 0 | D56: 152019 | E56: 152019 | F56: 5119 | G56: 2019-01-04 00:00:00 | H56: 2019-01-04 19:16:31 | I56: Con Obligacion | J56: 02 | K56: IDEAM-GG-SECRETARIA GENERAL | L56: A-02-02-02-008 | M56: SERVICIOS PRESTADOS A LAS EMPRESAS Y SERVICIOS DE PRODUCCIÓN | N56: Propios | O56: OTROS RECURSOS DE TESORERIA | P56: CSF | Q56: 61047000 | R56: 0 | S56: 61047000 | T56: 35910000 | U56: Cédula de Ciudadanía | V56: 1049614260 | W56: MONROY ESPITIA DENNISSE ADRIANA | X56: Abono en cuenta | Y56: Ahorro | Z56: 01360127628 | AA56: Activa | AB56: 890903938 | AC56: BANCOLOMBIA S.A. | AD56: 4119 | AE56: 5519 | AF56: 5119 | AG56: 18519, 74219, 128219, 183019, 245919 | AH56: 75519, 189419, 247019, 305119, 367519 | AI56: 20139319, 39150719, 71402319, 102317119, 138073319 | AK56: 2019-01-04 00:00:00 | AL56: CONTRATO DE PRESTACION DE SERVICIOS - PROFESIONALES | AM56: 0152019 | AN56: RENGLON 049, ACT PAA 00, REALIZAR EL SEGUIMIENTO AL CONTROL INTERNO CONTABLE EN TODAS LAS ACTIVIDADES Y TAREAS DEL GRUPO DE CONTABILIDAD Y LAS DEMAS AREAS GENERADORAS DE INFORMACION EN PRO DE GENERAR MAYOR CONFIABILIDAD DE LOS
A57: 1110447357 | B57: 0 | C57: 0 | D57: 162019 | E57: 162019 | F57: 5219 | G57: 2019-01-04 00:00:00 | H57: 2019-01-04 19:28:33 | I57: Con Obligacion | J57: 02 | K57: IDEAM-GG-SECRETARIA GENERAL | L57: A-02-02-02-008 | M57: SERVICIOS PRESTADOS A LAS EMPRESAS Y SERVICIOS DE PRODUCCIÓN | N57: Nación | O57: RECURSOS CORRIENTES | P57: CSF | Q57: 77112000 | R57: 0 | S57: 77112000 | T57: 45360000 | U57: Cédula de Ciudadanía | V57: 1110447357 | W57: CAICEDO DEVIA LUIS FERNANDO | X57: Abono en cuenta | Y57: Ahorro | Z57: 86935187186 | AA57: Activa | AB57: 890903938 | AC57: BANCOLOMBIA S.A. | AD57: 819 | AE57: 2819 | AF57: 5219 | AG57: 20419, 74919, 131819, 189719, 253519 | AH57: 17819, 190119, 248919, 311019, 374419 | AI57: 17930719, 39159019, 72037419, 104282319, 140483619 | AK57: 2019-01-04 00:00:00 | AL57: CONTRATO DE PRESTACION DE SERVICIOS - PROFESIONALES | AM57: 0162019 | AN57: RENGLON 022, ACT PAA 00, PRESTAR SERVICIOS PROFESIONALES EN LA OFICINA ASESORA JURÍDICA PARA ELABORAR RESPUESTAS A REQUERIMIENTOS DE LOS ENTES DE CONTROL, CONGRESO DE LA REPÚBLICA, ADELANTAR ACTUACIONES ADMINISTRATIVAS, PREPARAC
A58: 79469761 | B58: 0 | C58: 0 | D58: 172019 | E58: 172019 | F58: 5319 | G58: 2019-01-04 00:00:00 | H58: 2019-01-04 19:51:21 | I58: Con Obligacion | J58: 02 | K58: IDEAM-GG-SECRETARIA GENERAL | L58: A-02-02-02-008 | M58: SERVICIOS PRESTADOS A LAS EMPRESAS Y SERVICIOS DE PRODUCCIÓN | N58: Nación | O58: RECURSOS CORRIENTES | P58: CSF | Q58: 77112000 | R58: 0 | S58: 77112000 | T58: 45360000 | U58: Cédula de Ciudadanía | V58: 79469761 | W58: FRANCO BUITRAGO CESAR TULIO | X58: Abono en cuenta | Y58: Ahorro | Z58: 165550054 | AA58: Activa | AB58: 860002964 | AC58: BANCO DE BOGOTA S. A. | AD58: 2019 | AE58: 3819 | AF58: 5319 | AG58: 20819, 80919, 140119, 190919, 256919 | AH58: 18119, 197019, 253919, 313219, 377319 | AI58: 17931119, 43072619, 74129319, 105719319, 142265319 | AK58: 2019-01-04 00:00:00 | AL58: CONTRATO DE PRESTACION DE SERVICIOS - PROFESIONALES | AM58: 0172019 | AN58: RENGLON 032, ACT PAA 00, PRESTAR LOS SERVICIOS PROFESIONALES EN LA OFICINA ASESORA JURÍDICA DEL INSTITUTO EN ASUNTOS DE CARÁCTER CONTRACTUAL Y POST-CONTRACTUAL QUE SE REQUIERAN.
A59: 79876185 | B59: 0 | C59: 0 | D59: 182019 | E59: 182019 | F59: 5419 | G59: 2019-01-04 00:00:00 | H59: 2019-01-04 20:12:25 | I59: Con Obligacion | J59: 02 | K59: IDEAM-GG-SECRETARIA GENERAL | L59: A-02-02-02-008 | M59: SERVICIOS PRESTADOS A LAS EMPRESAS Y SERVICIOS DE PRODUCCIÓN | N59: Propios | O59: OTROS RECURSOS DE TESORERIA | P59: CSF | Q59: 61232000 | R59: 0 | S59: 61232000 | T59: 36120000 | U59: Cédula de Ciudadanía | V59: 79876185 | W59: RIVEROS MORERA JAIME ORLANDO | X59: Abono en cuenta | Y59: Ahorro | Z59: 007270748689 | AA59: Activa | AB59: 860034313 | AC59: BANCO DAVIVIENDA S.A. | AD59: 2719 | AE59: 4519 | AF59: 5419 | AG59: 43419, 80219, 138419, 201219, 248419 | AH59: 76719, 196219, 253019, 324319, 370619 | AI59: 20719119, 41285919, 72843219, 107502019, 138079119 | AK59: 2019-01-04 00:00:00 | AL59: CONTRATO DE PRESTACION DE SERVICIOS - PROFESIONALES | AM59: 0182019 | AN59: RENGLON 039, ACT PAA 00, ORFEO 20192000000213 PRESTACIÓN DE SERVICIOS PROFESIONALES EN EL GRUPO DE PRESUPUESTO PARA REALIZAR LA CONSOLIDACIÓN, VALIDACIÓN; ANÁLISIS FINANCIERO Y SEGUIMIENTO DE LA EJECUCIÓN PRESUPUESTAL Y DEL PLAN ANUAL DE CAJA - PAC
A60: 842000130 | B60: 0 | C60: 0 | D60: 74333 | E60: 74333 | F60: 5519 | G60: 2019-01-08 00:00:00 | H60: 2019-01-08 09:11:31 | I60: Con Obligacion | J60: 02 | K60: IDEAM-GG-SECRETARIA GENERAL | L60: A-02-02-02-009 | M60: SERVICIOS PARA LA COMUNIDAD, SOCIALES Y PERSONALES | N60: Nación | O60: RECURSOS CORRIENTES | P60: CSF | Q60: 21230 | R60: 0 | S60: 21230 | T60: 0 | U60: NIT | V60: 842000130 | W60: SERVICIOS PUBLICOS DE PUERTO CARREÑO SA ESP SEPPCA SA ESP | X60: Abono en cuenta | Y60: Corriente | Z60: 735002289 | AA60: Activa | AB60: 860003020 | AC60: BANCO BILBAO VIZCAYA ARGENTARIA COLOMBIA S.A. BBVA | AD60: 9419 | AE60: 7119 | AF60: 5519 | AG60: 619 | AH60: 719 | AI60: 1272819 | AK60: 2019-01-08 00:00:00 | AL60: FACTURA | AM60: 74333 | AN60: ORFEO 20199910000032, FACTURA DE 12 NOVIEMBRE A 12 DIC/2018, PRESTADO EN META, PAGO A SEPPCA S.A. ESP, CONCEPTO: SERVICIO ACUEDUCTO SEDE PUERTO CARREÑO AOP. NO. 03
A61: 1033710750 | B61: 0 | C61: 0 | D61: 3462018 | E61: 3462018 | F61: 5619 | G61: 2019-01-08 00:00:00 | H61: 2019-01-08 10:43:58 | I61: Con Obligacion | J61: 04 | K61: IDEAM-GG-DG.OFICINA DEL SERVICIO DE PRONOSTICOS Y ALERTAS | L61: C-3204-0900-3-0-3204047-02 | M61: ADQUISICIÓN DE BIENES Y SERVICIOS | N61: Nación | O61: OTROS RECURSOS DEL TESORO | P61: CSF | Q61: 55800000 | R61: 0 | S61: 55800000 | T61: 27900000 | U61: Cédula de Ciudadanía | V61: 1033710750 | W61: VILLAMIZAR HERNANDEZ ALEXANDER | X61: Abono en cuenta | Y61: Ahorro | Z61: 161593488 | AA61: Activa | AB61: 860002964 | AC61: BANCO DE BOGOTA S. A. | AD61: 13719 | AE61: 13019 | AF61: 5619 | AG61: 22119, 80519, 145719, 185319, 250819 | AH61: 25619, 196519, 266519, 307519, 373219 | AI61: 17932319, 43071219, 80338519, 104275119, 140481019 | AK61: 2019-01-08 00:00:00 | AL61: CONTRATO DE PRESTACION DE SERVICIOS - PROFESIONALES | AM61: 3462018 | AN61: RENGLON 069, ACT PAA 11, PARA AMPARAR VIGENCIA FUTURA 2019 - PRESTAR LOS SERVICIOS PROFESIONALES EN LA OFICINA DEL SERVICIO DE PRONÓSTICOS Y ALERTAS DEL IDEAM, MEDIANTE LA PRESTACIÓN DE TURNOS DE MONITOREO DIURNO Y NOCTURNO, CON
A62: 900092385 | B62: 0 | C62: 0 | D62: 0 | E62: 0 | F62: 5719 | G62: 2019-01-08 00:00:00 | H62: 2019-01-08 10:56:27 | I62: Con Obligacion | J62: 02 | K62: IDEAM-GG-SECRETARIA GENERAL | L62: A-02-02-02-008 | M62: SERVICIOS PRESTADOS A LAS EMPRESAS Y SERVICIOS DE PRODUCCIÓN | N62: Nación | O62: RECURSOS CORRIENTES | P62: CSF | Q62: 290694 | R62: 0 | S62: 290694 | T62: 0 | U62: NIT | V62: 900092385 | W62: UNE EPM TELECOMUNICACIONES S.A. | X62: Abono en cuenta | Y62: Ahorro | Z62: 379038235 | AA62: Activa | AB62: 860002964 | AC62: BANCO DE BOGOTA S. A. | AD62: 8819 | AE62: 8819 | AF62: 5719 | AG62: 419 | AH62: 519 | AI62: 1268219 | AK62: 2019-01-08 00:00:00 | AL62: FACTURA | AM62: 955471299-73 | AN62: ORFEO 20197010000053, FACTURA DE 17 NOVIEMBRE A 16 DIC/2018, PRESTADO EN ANTIOQUIA, PAGO A UNE EPM TELECOMUNICACIONES S.A. ESP., CONCEPTO: SERVICIO TELEFONO AOP. NO. 01
A63: 900092385 | B63: 0 | C63: 0 | D63: 0 | E63: 0 | F63: 5819 | G63: 2019-01-08 00:00:00 | H63: 2019-01-08 11:01:00 | I63: Con Obligacion | J63: 02 | K63: IDEAM-GG-SECRETARIA GENERAL | L63: A-02-02-02-008 | M63: SERVICIOS PRESTADOS A LAS EMPRESAS Y SERVICIOS DE PRODUCCIÓN | N63: Nación | O63: RECURSOS CORRIENTES | P63: CSF | Q63: 99225 | R63: 0 | S63: 99225 | T63: 0 | U63: NIT | V63: 900092385 | W63: UNE EPM TELECOMUNICACIONES S.A. | X63: Abono en cuenta | Y63: Ahorro | Z63: 379038235 | AA63: Activa | AB63: 860002964 | AC63: BANCO DE BOGOTA S. A. | AD63: 8819 | AE63: 8819 | AF63: 5819 | AG63: 319 | AH63: 419 | AI63: 1269419 | AK63: 2019-01-08 00:00:00 | AL63: FACTURA | AM63: 955474808-29 | AN63: ORFEO 20197010000063, FACTURA DE 01 DICIEMBRE A 31 DIC/2018, PRESTADO EN ANTIOQUIA, PAGO A UNE EPM TELECOMUNICACIONES S.A. ESP., CONCEPTO: SERVICIO TELEFONO AEROPUERTO JMC AOP. NO. 01
A64: =+V64+0 -> 52933709 | B64: =IFERROR(MID(AM64,SEARCH("CTO.",AM64)+5,7),0) -> 0 | C64: =IFERROR(MID(AM64,SEARCH("CTO ",AM64)+4,7),0) -> 0 | D64: =IFERROR(AM64+0,0) -> 3472018 | E64: =B64+C64+D64 -> 3472018 | F64: 5919 | G64: 2019-01-08 00:00:00 | H64: 2019-01-08 11:03:14 | I64: Con Obligacion | J64: 04 | K64: IDEAM-GG-DG.OFICINA DEL SERVICIO DE PRONOSTICOS Y ALERTAS | L64: C-3204-0900-3-0-3204047-02 | M64: ADQUISICIÓN DE BIENES Y SERVICIOS | N64: Nación | O64: OTROS RECURSOS DEL TESORO | P64: CSF | Q64: 68310000 | R64: 0 | S64: 68310000 | T64: 37260000 | U64: Cédula de Ciudadanía | V64: 52933709 | W64: TOBON CRUZ JULIE CATHERINE | X64: Abono en cuenta | Y64: Ahorro | Z64: 63440525859 | AA64: Activa | AB64: 890903938 | AC64: BANCOLOMBIA S.A. | AD64: 13819 | AE64: 13119 | AF64: 5919 | AG64: 20519, 79319, 149619, 184519, 184619, 250719 | AH64: 17919, 195319, 269719, 306919, 372719 | AI64: 17930819, 41282319, 80368019, 104273819, 140479419 | AK64: 2019-01-08 00:00:00 | AL64: CONTRATO DE PRESTACION DE SERVICIOS - PROFESIONALES | AM64: 3472018 | AN64: RENGLON 073, ACT PAA 11, PARA AMPARAR VIGENCIA FUTURA 2019 - PRESTAR LOS SERVICIOS PROFESIONALES EN LA ELABORACIÓN DE PRONÓSTICOS DEL ESTADO DEL TIEMPO, ESPECIALES, VARIABILIDAD CLIMÁTICA, METEOMARINOS, AGROMETEOROLOGICOS Y DEMÁ
A65: 53102052 | B65: 0 | C65: 0 | D65: 3482018 | E65: 3482018 | F65: 6019 | G65: 2019-01-08 00:00:00 | H65: 2019-01-08 11:08:25 | I65: Con Obligacion | J65: 04 | K65: IDEAM-GG-DG.OFICINA DEL SERVICIO DE PRONOSTICOS Y ALERTAS | L65: C-3204-0900-3-0-3204047-02 | M65: ADQUISICIÓN DE BIENES Y SERVICIOS | N65: Nación | O65: OTROS RECURSOS DEL TESORO | P65: CSF | Q65: 65205000 | R65: 0 | S65: 65205000 | T65: 34155000 | U65: Cédula de Ciudadanía | V65: 53102052 | W65: VALENCIA MONROY CAROLINA | X65: Abono en cuenta | Y65: Ahorro | Z65: 04527805568 | AA65: Activa | AB65: 890903938 | AC65: BANCOLOMBIA S.A. | AD65: 13919 | AE65: 13219 | AF65: 6019 | AG65: 22519, 79919, 144419, 184219, 250319 | AH65: 26119, 195919, 265519, 306519, 372319 | AI65: 17932919, 43069519, 80328419, 102319019, 140477919 | AK65: 2019-01-08 00:00:00 | AL65: CONTRATO DE PRESTACION DE SERVICIOS - PROFESIONALES | AM65: 3482018 | AN65: RENGLON 080, ACT PAA 11, PARA AMPARAR VIGENCIA FUTURA 2019 - PRESTAR LOS SERVICIOS PROFESIONALES EN LA ELABORACIÓN DE PRONÓSTICOS DEL ESTADO DEL TIEMPO, ESPECIALES, VARIABILIDAD CLIMÁTICA, METEOMARINOS, AGROMETEOROLOGICOS Y DEMÁ
A66: 79823683 | B66: 0 | C66: 0 | D66: 3502018 | E66: 3502018 | F66: 6119 | G66: 2019-01-08 00:00:00 | H66: 2019-01-08 11:14:10 | I66: Con Obligacion | J66: 04 | K66: IDEAM-GG-DG.OFICINA DEL SERVICIO DE PRONOSTICOS Y ALERTAS | L66: C-3204-0900-3-0-3204047-02 | M66: ADQUISICIÓN DE BIENES Y SERVICIOS | N66: Nación | O66: OTROS RECURSOS DEL TESORO | P66: CSF | Q66: 61380000 | R66: 0 | S66: 61380000 | T66: 33480000 | U66: Cédula de Ciudadanía | V66: 79823683 | W66: MERCHAN OLAYA CARLOS MAURICIO | X66: Abono en cuenta | Y66: Ahorro | Z66: 56711337828 | AA66: Activa | AB66: 890903938 | AC66: BANCOLOMBIA S.A. | AD66: 14019 | AE66: 13319 | AF66: 6119 | AG66: 28919, 80719, 147219, 183519, 252819 | AH66: 26019, 196719, 274819, 305519, 373419 | AI66: 20135919, 43072019, 84196319, 102317719, 140481619 | AK66: 2019-01-08 00:00:00 | AL66: CONTRATO DE PRESTACION DE SERVICIOS - PROFESIONALES | AM66: 3502018 | AN66: RENGLON 084, ACT PAA 11, PARA AMPARAR VIGENCIA FUTURA 2019 - PRESTAR LOS SERVICIOS PROFESIONALES EN LA OFICINA DEL SERVICIO DE PRONÓSTICOS Y ALERTAS DEL IDEAM, MEDIANTE LA PRESTACIÓN DE TURNOS DE MONITOREO DIURNO Y NOCTURNO
A67: 80231739 | B67: 0 | C67: 0 | D67: 3512018 | E67: 3512018 | F67: 6219 | G67: 2019-01-08 00:00:00 | H67: 2019-01-08 11:18:29 | I67: Con Obligacion | J67: 04 | K67: IDEAM-GG-DG.OFICINA DEL SERVICIO DE PRONOSTICOS Y ALERTAS | L67: C-3204-0900-3-0-3204047-02 | M67: ADQUISICIÓN DE BIENES Y SERVICIOS | N67: Nación | O67: OTROS RECURSOS DEL TESORO | P67: CSF | Q67: 65205000 | R67: 0 | S67: 65205000 | T67: 34155000 | U67: Cédula de Ciudadanía | V67: 80231739 | W67: PEREZ TORRES JUAN CAMILO | X67: Abono en cuenta | Y67: Ahorro | Z67: 20225929595 | AA67: Activa | AB67: 890903938 | AC67: BANCOLOMBIA S.A. | AD67: 14119 | AE67: 13419 | AF67: 6219 | AG67: 29019, 29119, 91819, 147519, 184719, 250419 | AH67: 26219, 207919, 268719, 307019, 372519 | AI67: 17933419, 46651519, 80360619, 104274119, 140478719 | AK67: 2019-01-08 00:00:00 | AL67: CONTRATO DE PRESTACION DE SERVICIOS - PROFESIONALES | AM67: 3512018 | AN67: RENGLON 084, ACT PAA 11, PARA AMPARAR VIGENCIA FUTURA 2019 - PRESTAR LOS SERVICIOS PROFESIONALES EN LA OFICINA DEL SERVICIO DE PRONÓSTICOS Y ALERTAS DEL IDEAM, MEDIANTE LA PRESTACIÓN DE TURNOS DE MONITOREO DIURNO Y NOCTURNO
A68: 80765196 | B68: 0 | C68: 0 | D68: 3522018 | E68: 3522018 | F68: 6319 | G68: 2019-01-08 00:00:00 | H68: 2019-01-08 11:32:23 | I68: Con Obligacion | J68: 04 | K68: IDEAM-GG-DG.OFICINA DEL SERVICIO DE PRONOSTICOS Y ALERTAS | L68: C-3204-0900-3-0-3204047-02 | M68: ADQUISICIÓN DE BIENES Y SERVICIOS | N68: Nación | O68: OTROS RECURSOS DEL TESORO | P68: CSF | Q68: 58590000 | R68: 0 | S68: 58590000 | T68: 30690000 | U68: Cédula de Ciudadanía | V68: 80765196 | W68: POVEDA FERNANDEZ RODNEY | X68: Abono en cuenta | Y68: Ahorro | Z68: 0631203619 | AA68: Activa | AB68: 860003020 | AC68: BANCO BILBAO VIZCAYA ARGENTARIA COLOMBIA S.A. BBVA | AD68: 14219 | AE68: 13619 | AF68: 6319 | AG68: 18919, 84519, 145419, 183919, 250919 | AH68: 17519, 200719, 266319, 306119, 372819 | AI68: 17930319, 43091919, 80336119, 102318619, 140479719 | AK68: 2019-01-08 00:00:00 | AL68: CONTRATO DE PRESTACION DE SERVICIOS - PROFESIONALES | AM68: 3522018 | AN68: RENGLON 081, ACT PAA 11, PARA AMPARAR VIGENCIA FUTURA 2019 - PRESTAR LOS SERVICIOS PROFESIONALES PARA EL ACOMPAÑAMIENTO Y REALIZACIÓN DE PRODUCTOS ESPECÍFICOS, ENCAMINADOS A LA ELABORACIÓN DE PRONÓSTICOS DEL ESTADO DEL TIEMPO
A69: 1022334263 | B69: 0 | C69: 0 | D69: 3532018 | E69: 3532018 | F69: 6419 | G69: 2019-01-08 00:00:00 | H69: 2019-01-08 11:39:02 | I69: Con Obligacion | J69: 04 | K69: IDEAM-GG-DG.OFICINA DEL SERVICIO DE PRONOSTICOS Y ALERTAS | L69: C-3204-0900-3-0-3204047-02 | M69: ADQUISICIÓN DE BIENES Y SERVICIOS | N69: Nación | O69: OTROS RECURSOS DEL TESORO | P69: CSF | Q69: 65205000 | R69: 0 | S69: 65205000 | T69: 34155000 | U69: Cédula de Ciudadanía | V69: 1022334263 | W69: ARANGO CHACON CRISTIAN DARIO | X69: Abono en cuenta | Y69: Ahorro | Z69: 24068122407 | AA69: Activa | AB69: 860007335 | AC69: BCSC S A | AD69: 14319 | AE69: 13719 | AF69: 6419 | AG69: 30319, 79219, 149519, 185119, 249819 | AH69: 27419, 195219, 269619, 307319, 372119 | AI69: 17935119, 41281319, 80418819, 104274719, 140477019 | AK69: 2019-01-08 00:00:00 | AL69: CONTRATO DE PRESTACION DE SERVICIOS - PROFESIONALES | AM69: 3532018 | AN69: RENGLON 081, ACT PAA 11, ORFEO 20181050001433 PARA AMPARAR VIGENCIA FUTURA 2019 - PRESTAR LOS SERVICIOS PROFESIONALES PARA EL ACOMPAÑAMIENTO Y REALIZACIÓN DE PRODUCTOS ESPECÍFICOS, ENCAMINADOS A LA ELABORACIÓN DE PRONÓSTICOS DEL ESTADO DEL TIEMPO
A70: 900092385 | B70: 0 | C70: 0 | D70: 0 | E70: 0 | F70: 6519 | G70: 2019-01-08 00:00:00 | H70: 2019-01-08 11:44:59 | I70: Con Obligacion | J70: 02 | K70: IDEAM-GG-SECRETARIA GENERAL | L70: A-02-02-02-008 | M70: SERVICIOS PRESTADOS A LAS EMPRESAS Y SERVICIOS DE PRODUCCIÓN | N70: Nación | O70: RECURSOS CORRIENTES | P70: CSF | Q70: 89106 | R70: 0 | S70: 89106 | T70: 0 | U70: NIT | V70: 900092385 | W70: UNE EPM TELECOMUNICACIONES S.A. | X70: Abono en cuenta | Y70: Ahorro | Z70: 379038235 | AA70: Activa | AB70: 860002964 | AC70: BANCO DE BOGOTA S. A. | AD70: 8819 | AE70: 8819 | AF70: 6519 | AG70: 219 | AH70: 219, 319 | AI70: 1270019 | AK70: 2019-01-08 00:00:00 | AL70: FACTURA | AM70: 955474800-51 | AN70: ORFEO 20197010000073, FACTURA DE 17 NOVIEMBRE A 16 DIC/2018, PRESTADO EN ANTIOQUIA, PAGO A UNE-EPM TELECOMUNICACIONES S.A. ESP., CONCEPTO: SERVICIO TELEFONO AEROPUERTO JMC AOP. NO. 01
A71: 900092385 | B71: 0 | C71: 0 | D71: 0 | E71: 0 | F71: 6619 | G71: 2019-01-08 00:00:00 | H71: 2019-01-08 11:49:54 | I71: Con Obligacion | J71: 02 | K71: IDEAM-GG-SECRETARIA GENERAL | L71: A-02-02-02-008 | M71: SERVICIOS PRESTADOS A LAS EMPRESAS Y SERVICIOS DE PRODUCCIÓN | N71: Nación | O71: RECURSOS CORRIENTES | P71: CSF | Q71: 78228 | R71: 0 | S71: 78228 | T71: 0 | U71: NIT | V71: 900092385 | W71: UNE EPM TELECOMUNICACIONES S.A. | X71: Abono en cuenta | Y71: Ahorro | Z71: 379038235 | AA71: Activa | AB71: 860002964 | AC71: BANCO DE BOGOTA S. A. | AD71: 8819 | AE71: 8819 | AF71: 6619 | AG71: 119 | AH71: 119 | AI71: 1271019 | AK71: 2019-01-08 00:00:00 | AL71: FACTURA | AM71: 955470381-00 | AN71: ORFEO 20197010000083, FACTURA DE 17 NOVIEMBRE A 16 DIC/2018, PRESTADO EN ANTIOQUIA, PAGO A UNE-EPM TELECOMUNICACIONES S.A. ESP., CONCEPTO: SERVICIO TELEFONO AEROPUERTO OLAYA AOP. NO. 01
A72: 1018421469 | B72: 0 | C72: 0 | D72: 3602018 | E72: 3602018 | F72: 6719 | G72: 2019-01-08 00:00:00 | H72: 2019-01-08 12:10:42 | I72: Con Obligacion | J72: 04 | K72: IDEAM-GG-DG.OFICINA DEL SERVICIO DE PRONOSTICOS Y ALERTAS | L72: C-3204-0900-3-0-3204047-02 | M72: ADQUISICIÓN DE BIENES Y SERVICIOS | N72: Nación | O72: OTROS RECURSOS DEL TESORO | P72: CSF | Q72: 46200000 | R72: 0 | S72: 46200000 | T72: 25200000 | U72: Cédula de Ciudadanía | V72: 1018421469 | W72: BARRIOS MORENO JUAN SEBASTIAN | X72: Abono en cuenta | Y72: Ahorro | Z72: 24527872100 | AA72: Activa | AB72: 860007335 | AC72: BCSC S A | AD72: 14419 | AE72: 13819 | AF72: 6719 | AG72: 19919, 89019, 145219, 184019, 251019 | AH72: 17219, 205219, 266119, 306319, 373019 | AI72: 16776019, 44843619, 80333919, 102318819, 140480119 | AK72: 2019-01-08 00:00:00 | AL72: CONTRATO DE PRESTACION DE SERVICIOS - PROFESIONALES | AM72: 3602018 | AN72: RENGLON 088, ACT PAA 11, PARA AMPARAR VIGENCIA FUTURA 2019 - PRESTAR LOS SERVICIOS PROFESIONALES EN LA OFICINA DEL SERVICIO DE PRONÓSTICOS Y ALERTAS DEL IDEAM, MEDIANTE LA PRESTACIÓN DE TURNOS DE MONITOREO, SEGUIMIENTO Y ANÁLISI
A73: 52779016 | B73: 0 | C73: 0 | D73: 3612018 | E73: 3612018 | F73: 6819 | G73: 2019-01-08 00:00:00 | H73: 2019-01-08 12:16:40 | I73: Con Obligacion | J73: 04 | K73: IDEAM-GG-DG.OFICINA DEL SERVICIO DE PRONOSTICOS Y ALERTAS | L73: C-3204-0900-3-0-3204047-02 | M73: ADQUISICIÓN DE BIENES Y SERVICIOS | N73: Nación | O73: OTROS RECURSOS DEL TESORO | P73: CSF | Q73: 61380000 | R73: -42408000 | S73: 18972000 | T73: 0 | U73: Cédula de Ciudadanía | V73: 52779016 | W73: CHIVATA LOPEZ VIVIANA CECILIA | X73: Abono en cuenta | Y73: Ahorro | Z73: 008380347578 | AA73: Activa | AB73: 860034313 | AC73: BANCO DAVIVIENDA S.A. | AD73: 14519 | AE73: 13919 | AF73: 6819 | AG73: 20319, 79519, 148019, 178619, 183119 | AH73: 18019, 195519, 267319, 296019, 303119 | AI73: 17930919, 41283619, 80347819, 102312319 | AK73: 2019-01-08 00:00:00 | AL73: CONTRATO DE PRESTACION DE SERVICIOS - PROFESIONALES | AM73: 3612018 | AN73: RENGLON 092, ACT PAA 11, PARA AMPARAR VIGENCIA FUTURA 2019 - PRESTAR LOS SERVICIOS PROFESIONALES EN LA OFICINA DE PRONÓSTICOS Y ALERTAS PARA REALIZAR EL MONITOREO, SEGUIMIENTO Y LA GENERACIÓN DE ALERTAS TEMPRANAS SOBRE AMENAZAS
A74: 1030632732 | B74: 0 | C74: 0 | D74: 3622018 | E74: 3622018 | F74: 6919 | G74: 2019-01-08 00:00:00 | H74: 2019-01-08 12:20:39 | I74: Con Obligacion | J74: 04 | K74: IDEAM-GG-DG.OFICINA DEL SERVICIO DE PRONOSTICOS Y ALERTAS | L74: C-3204-0900-3-0-3204047-02 | M74: ADQUISICIÓN DE BIENES Y SERVICIOS | N74: Nación | O74: OTROS RECURSOS DEL TESORO | P74: CSF | Q74: 32670000 | R74: 0 | S74: 32670000 | T74: 17820000 | U74: Cédula de Ciudadanía | V74: 1030632732 | W74: URREA URREGO JULIAN DAVID | X74: Abono en cuenta | Y74: Ahorro | Z74: 002895477 | AA74: Activa | AB74: 860035827 | AC74: BANCO COMERCIAL AV VILLAS S.A. | AD74: 14619 | AE74: 14019 | AF74: 6919 | AG74: 20119, 81319, 129619, 185019, 250619 | AH74: 17319, 197419, 257219, 307219, 372619 | AI74: 16778119, 43074919, 78745019, 104274519, 140479019 | AK74: 2019-01-08 00:00:00 | AL74: CONTRATO DE PRESTACION DE SERVICIOS - PROFESIONALES | AM74: 3622018 | AN74: RENGLON 090, ACT PAA 11, PARA AMPARAR VIGENCIA FUTURA 2019 - PRESTAR LOS SERVICIOS PROFESIONALES EN LA OFICINA DE PRONOSTICOS Y ALERTAS DEL IDEAM, PARA REALIZAR LA RECEPCIÓN Y PROCESAMIENTO DE DATOS
A75: 1026281281 | B75: 0 | C75: 0 | D75: 3732018 | E75: 3732018 | F75: 7019 | G75: 2019-01-08 00:00:00 | H75: 2019-01-08 12:25:58 | I75: Con Obligacion | J75: 04 | K75: IDEAM-GG-DG.OFICINA DEL SERVICIO DE PRONOSTICOS Y ALERTAS | L75: C-3204-0900-3-0-3204047-02 | M75: ADQUISICIÓN DE BIENES Y SERVICIOS | N75: Nación | O75: OTROS RECURSOS DEL TESORO | P75: CSF | Q75: 32670000 | R75: -22077000 | S75: 10593000 | T75: 0 | U75: Cédula de Ciudadanía | V75: 1026281281 | W75: FAJARDO GONZALEZ SANDRA MIREYA | X75: Abono en cuenta | Y75: Ahorro | Z75: 1562027273 | AA75: Activa | AB75: 860034594 | AC75: BANCO COLPATRIA RED MULTIBANCA COLPATRIA S.A. | AD75: 14719 | AE75: 14119 | AF75: 7019 | AG75: 33319, 84219, 147919, 176219 | AH75: 29119, 200419, 267219, 294319 | AI75: 17935519, 24816719, 43090019, 80346319, 96479519 | AK75: 2019-01-08 00:00:00 | AL75: CONTRATO DE PRESTACION DE SERVICIOS - PROFESIONALES | AM75: 3732018 | AN75: RENGLON 089, ACT PAA 11, PARA AMPARAR VIGENCIA FUTURA 2019 - PRESTAR LOS SERVICIOS PROFESIONALES EN LA OFICINA DE PRONÓSTICOS Y ALERTAS DEL IDEAM, PARA EL SEGUIMIENTO Y ANÁLISIS DE ALERTAS DE ORIGEN HIDROMETEOROLÓGICO, GENERACIÓ
A76: 1014191032 | B76: 0 | C76: 0 | D76: 3752018 | E76: 3752018 | F76: 7119 | G76: 2019-01-08 00:00:00 | H76: 2019-01-08 12:30:37 | I76: Con Obligacion | J76: 04 | K76: IDEAM-GG-DG.OFICINA DEL SERVICIO DE PRONOSTICOS Y ALERTAS | L76: C-3204-0900-3-0-3204047-02 | M76: ADQUISICIÓN DE BIENES Y SERVICIOS | N76: Nación | O76: OTROS RECURSOS DEL TESORO | P76: CSF | Q76: 68310000 | R76: 0 | S76: 68310000 | T76: 37260000 | U76: Cédula de Ciudadanía | V76: 1014191032 | W76: RUALES HERNANDEZ JOSE LEONARDO | X76: Abono en cuenta | Y76: Ahorro | Z76: 007770258742 | AA76: Activa | AB76: 860034313 | AC76: BANCO DAVIVIENDA S.A. | AD76: 14819 | AE76: 14219 | AF76: 7119 | AG76: 34219, 91519, 149319, 185519, 253019 | AH76: 29019, 207619, 269519, 307719, 373619 | AI76: 17935319, 46650919, 80366819, 104275819, 144535019 | AK76: 2019-01-08 00:00:00 | AL76: CONTRATO DE PRESTACION DE SERVICIOS - PROFESIONALES | AM76: 3752018 | AN76: RENGLON 075, ACT PAA 11, PARA AMPARAR VIGENCIA FUTURA 2019 - PRESTAR LOS SERVICIOS PROFESIONALES EN LA ELABORACIÓN DE PRONÓSTICOS DEL ESTADO DEL TIEMPO, ESPECIALES, VARIABILIDAD CLIMÁTICA, METEOMARINOS, AGROMETEOROLOGICOS Y DEMÁ
A77: 53099182 | B77: 0 | C77: 0 | D77: 3762018 | E77: 3762018 | F77: 7219 | G77: 2019-01-08 00:00:00 | H77: 2019-01-08 12:34:09 | I77: Con Obligacion | J77: 04 | K77: IDEAM-GG-DG.OFICINA DEL SERVICIO DE PRONOSTICOS Y ALERTAS | L77: C-3204-0900-3-0-3204047-02 | M77: ADQUISICIÓN DE BIENES Y SERVICIOS | N77: Nación | O77: OTROS RECURSOS DEL TESORO | P77: CSF | Q77: 38280000 | R77: 0 | S77: 38280000 | T77: 20880000 | U77: Cédula de Ciudadanía | V77: 53099182 | W77: VELANDIA RONCANCIO YULI CAROLINA | X77: Abono en cuenta | Y77: Ahorro | Z77: 255081838 | AA77: Activa | AB77: 860002964 | AC77: BANCO DE BOGOTA S. A. | AD77: 14919 | AE77: 14319 | AF77: 7219 | AG77: 22219, 80619, 147019, 183719, 255619 | AH77: 25719, 196619, 268419, 305819, 376319 | AI77: 17932419, 43071619, 80356419, 107471719, 140489519 | AK77: 2019-01-08 00:00:00 | AL77: CONTRATO DE PRESTACION DE SERVICIOS - PROFESIONALES | AM77: 3762018 | AN77: RENGLON 085, ACT PAA 11, PARA AMPARAR VIGENCIA FUTURA 2019 - PRESTAR LOS SERVICIOS PROFESIONALES EN LA OFICINA DEL SERVICIO DE PRONÓSTICOS Y ALERTAS DEL IDEAM, MEDIANTE LA PRESTACIÓN DE TURNOS DE MONITOREO DIURNO Y NOCTURNO,
A78: 52780334 | B78: 0 | C78: 0 | D78: 3812018 | E78: 3812018 | F78: 7319 | G78: 2019-01-08 00:00:00 | H78: 2019-01-08 12:37:53 | I78: Con Obligacion | J78: 04 | K78: IDEAM-GG-DG.OFICINA DEL SERVICIO DE PRONOSTICOS Y ALERTAS | L78: C-3204-0900-3-0-3204047-02 | M78: ADQUISICIÓN DE BIENES Y SERVICIOS | N78: Nación | O78: OTROS RECURSOS DEL TESORO | P78: CSF | Q78: 61710000 | R78: 0 | S78: 61710000 | T78: 33660000 | U78: Cédula de Ciudadanía | V78: 52780334 | W78: BERMUDEZ ARIAS SONIA CRISTINA | X78: Abono en cuenta | Y78: Ahorro | Z78: 69042648981 | AA78: Activa | AB78: 890903938 | AC78: BANCOLOMBIA S.A. | AD78: 15019 | AE78: 14419 | AF78: 7319 | AG78: 19119, 81219, 145519, 183619, 251119 | AH78: 16619, 197319, 266619, 305619, 373119 | AI78: 17929719, 43074319, 80339819, 102318019, 140480619 | AK78: 2019-01-08 00:00:00 | AL78: CONTRATO DE PRESTACION DE SERVICIOS - PROFESIONALES | AM78: 3812018 | AN78: RENGLON 091, ACT PAA 11, PARA AMPARAR VIGENCIA FUTURA 2019 - PRESTAR LOS SERVICIOS PROFESIONALES EN LA OFICINA DE PRONÓSTICOS Y ALERTAS PARA REALIZAR EL MONITOREO, SEGUIMIENTO Y LA GENERACIÓN DE ALERTAS TEMPRANAS
A79: 52903167 | B79: 0 | C79: 0 | D79: 3992018 | E79: 3992018 | F79: 7419 | G79: 2019-01-08 00:00:00 | H79: 2019-01-08 12:42:20 | I79: Con Obligacion | J79: 04 | K79: IDEAM-GG-DG.OFICINA DEL SERVICIO DE PRONOSTICOS Y ALERTAS | L79: C-3204-0900-3-0-3204047-02 | M79: ADQUISICIÓN DE BIENES Y SERVICIOS | N79: Nación | O79: OTROS RECURSOS DEL TESORO | P79: CSF | Q79: 79200000 | R79: -63600000 | S79: 15600000 | T79: 0 | U79: Cédula de Ciudadanía | V79: 52903167 | W79: RODRIGUEZ TOBAR ANGELA TATIANA | X79: Abono en cuenta | Y79: Ahorro | Z79: 476500000478 | AA79: Activa | AB79: 860034313 | AC79: BANCO DAVIVIENDA S.A. | AD79: 15119 | AE79: 14519 | AF79: 7419 | AG79: 44219, 89119, 149919 | AH79: 78219, 205319, 267519 | AI79: 20724619, 44844219, 81091719 | AK79: 2019-01-08 00:00:00 | AL79: CONTRATO DE PRESTACION DE SERVICIOS - PROFESIONALES | AM79: 3992018 | AN79: RENGLON 078, ACT PAA 11, PARA AMPARAR VIGENCIA FUTURA 2019 - PRESTAR LOS SERVICIOS PROFESIONALES EN LA ELABORACIÓN DE PRONÓSTICOS DEL ESTADO DEL TIEMPO, ESPECIALES, VARIABILIDAD CLIMÁTICA, METEOMARINOS, AGROMETEOROLOGICOS Y DEMÁ
A80: 1057588242 | B80: 0 | C80: 0 | D80: 3582018 | E80: 3582018 | F80: 7519 | G80: 2019-01-08 00:00:00 | H80: 2019-01-08 12:49:42 | I80: Con Obligacion | J80: 05 | K80: IDEAM-GG-SUBDIRECCION HIDROLOGIA | L80: C-3204-0900-3-0-3204051-02 | M80: ADQUISICIÓN DE BIENES Y SERVICIOS | N80: Nación | O80: OTROS RECURSOS DEL TESORO | P80: CSF | Q80: 26400000 | R80: 0 | S80: 26400000 | T80: 13200000 | U80: Cédula de Ciudadanía | V80: 1057588242 | W80: MAIRA LORENA CRUZ CORREA | X80: Abono en cuenta | Y80: Ahorro | Z80: 596319301 | AA80: Activa | AB80: 860002964 | AC80: BANCO DE BOGOTA S. A. | AD80: 15219 | AE80: 14619 | AF80: 7519 | AG80: 29319, 79819, 132419, 207919, 260419 | AH80: 26619, 195819, 258619, 329519, 380619 | AI80: 17934019, 43069019, 78747419, 110129419, 142270219 | AK80: 2019-01-08 00:00:00 | AL80: CONTRATO DE PRESTACION DE SERVICIOS - PROFESIONALES | AM80: 3582018 | AN80: RENGLON 148, ACT PAA 25, VIGENCIA FUTURA 2019. PRESTAR LOS SERVICIOS PROFESIONALES PARA EVALUAR, CAPTURAR, PROCESAR, VERIFICAR Y ANALIZAR DATOS METEOROLÓGICOS EN EL ÁREA OPERATIVA 11 - BOGOTA
A81: 91532338 | B81: 0 | C81: 0 | D81: 3592018 | E81: 3592018 | F81: 7619 | G81: 2019-01-08 00:00:00 | H81: 2019-01-08 12:53:20 | I81: Con Obligacion | J81: 05 | K81: IDEAM-GG-SUBDIRECCION HIDROLOGIA | L81: C-3204-0900-3-0-3204051-02 | M81: ADQUISICIÓN DE BIENES Y SERVICIOS | N81: Nación | O81: OTROS RECURSOS DEL TESORO | P81: CSF | Q81: 36540000 | R81: 0 | S81: 36540000 | T81: 19140000 | U81: Cédula de Ciudadanía | V81: 91532338 | W81: MORENO RIVEROS GEIZMAR | X81: Abono en cuenta | Y81: Ahorro | Z81: 046470120406 | AA81: Activa | AB81: 860034313 | AC81: BANCO DAVIVIENDA S.A. | AD81: 15319 | AE81: 14719 | AF81: 7619 | AG81: 21519, 78619, 132119, 181319, 247819 | AH81: 25019, 194619, 258319, 302919, 369919 | AI81: 17931719, 41278119, 78746719, 102311719, 140474419 | AK81: 2019-01-08 00:00:00 | AL81: CONTRATO DE PRESTACION DE SERVICIOS - PROFESIONALES | AM81: 3592018 | AN81: RENGLON 157, ACT PAA 25, VIGENCIA FUTURA 2019. PRESTAR LOS SERVICIOS PROFESIONALES PARA MANTENER LA RED NACIONAL DE ESTACIONES HIDROMETEOROLÓGICAS AUTOMÁTICAS, DIAGNOSTICAR EQUIPOS ELECTRÓNICOS CON FINES HIDROMETEOROLÓGICOS QUE
A82: 74082089 | B82: 0 | C82: 0 | D82: 3632018 | E82: 3632018 | F82: 7719 | G82: 2019-01-08 00:00:00 | H82: 2019-01-08 12:58:48 | I82: Con Obligacion | J82: 05 | K82: IDEAM-GG-SUBDIRECCION HIDROLOGIA | L82: C-3204-0900-3-0-3204051-02 | M82: ADQUISICIÓN DE BIENES Y SERVICIOS | N82: Nación | O82: OTROS RECURSOS DEL TESORO | P82: CSF | Q82: 19800000 | R82: -330000 | S82: 19470000 | T82: 8646000 | U82: Cédula de Ciudadanía | V82: 74082089 | W82: CRUZ CORREA DIEGO ARMANDO | X82: Abono en cuenta | Y82: Ahorro | Z82: 596475137 | AA82: Activa | AB82: 860002964 | AC82: BANCO DE BOGOTA S. A. | AD82: 15419 | AE82: 14819 | AF82: 7719 | AG82: 20619, 91019, 135519, 207819, 261519, 297419 | AH82: 17719, 207119, 260019, 330019, 383719, 413819 | AI82: 17930619, 46649119, 78749619, 110147419, 142274519, 155326319 | AK82: 2019-01-08 00:00:00 | AL82: CONTRATO DE PRESTACION DE SERVICIOS | AM82: 3632018 | AN82: RENGLON 138, ACT PAA 25,VIGENCIA FUTURA 2019. PRESTAR LOS SERVICIOS TÉCNICOS PARA REALIZAR LA OPERACIÓN DE LAS ESTACIONES CONVENCIONALES Y AUTOMÁTICAS DE LA RED NACIONAL Y APOYAR EL PROCESO DE INFORMACIÓN HIDROLOGICA Y METEOROL
A83: 1049614524 | B83: 0 | C83: 0 | D83: 3682018 | E83: 3682018 | F83: 7819 | G83: 2019-01-08 00:00:00 | H83: 2019-01-08 13:02:50 | I83: Con Obligacion | J83: 05 | K83: IDEAM-GG-SUBDIRECCION HIDROLOGIA | L83: C-3204-0900-3-0-3204051-02 | M83: ADQUISICIÓN DE BIENES Y SERVICIOS | N83: Nación | O83: OTROS RECURSOS DEL TESORO | P83: CSF | Q83: 36540000 | R83: 0 | S83: 36540000 | T83: 19140000 | U83: Cédula de Ciudadanía | V83: 1049614524 | W83: RODRIGUEZ PEREZ MANUEL FELIPE | X83: Abono en cuenta | Y83: Ahorro | Z83: 20272404616 | AA83: Activa | AB83: 890903938 | AC83: BANCOLOMBIA S.A. | AD83: 15519 | AE83: 14919 | AF83: 7819 | AG83: 29519, 78719, 132519, 181519, 248219 | AH83: 26719, 194719, 258719, 303219, 370319 | AI83: 17934219, 41278619, 78747619, 102312619, 144534819 | AK83: 2019-01-08 00:00:00 | AL83: CONTRATO DE PRESTACION DE SERVICIOS - PROFESIONALES | AM83: 3682018 | AN83: RENGLON 156, ACT PAA 25, VIGENCIA FUTURA 2019. PRESTAR LOS SERVICIOS PROFESIONALES PARA MANTENER LA RED NACIONAL DE ESTACIONES HIDROMETEOROLÓGICAS AUTOMÁTICAS, DIAGNOSTICAR EQUIPOS ELECTRÓNICOS CON FINES HIDROMETEOROLÓGICOS QUE
A84: 8650234 | B84: 0 | C84: 0 | D84: 3692018 | E84: 3692018 | F84: 7919 | G84: 2019-01-08 00:00:00 | H84: 2019-01-08 15:01:26 | I84: Con Obligacion | J84: 05 | K84: IDEAM-GG-SUBDIRECCION HIDROLOGIA | L84: C-3204-0900-3-0-3204051-02 | M84: ADQUISICIÓN DE BIENES Y SERVICIOS | N84: Nación | O84: OTROS RECURSOS DEL TESORO | P84: CSF | Q84: 36540000 | R84: 0 | S84: 36540000 | T84: 19140000 | U84: Cédula de Ciudadanía | V84: 8650234 | W84: PADILLA LOPEZ MANUEL DE JESUS | X84: Abono en cuenta | Y84: Ahorro | Z84: 52690206102 | AA84: Activa | AB84: 890903938 | AC84: BANCOLOMBIA S.A. | AD84: 15619 | AE84: 15019 | AF84: 7919 | AG84: 21419, 84319, 133719, 182019, 248319 | AH84: 24919, 200519, 258919, 303619, 370419 | AI84: 17931619, 43090819, 78748119, 102314119, 144534919 | AK84: 2019-01-08 00:00:00 | AL84: CONTRATO DE PRESTACION DE SERVICIOS - PROFESIONALES | AM84: 3692018 | AN84: RENGLON 155, ACT PAA 25, VIGENCIA FUTURA 2019. PRESTAR LOS SERVICIOS PROFESIONALES PARA MANTENER LA RED NACIONAL DE ESTACIONES HIDROMETEOROLÓGICAS AUTOMÁTICAS, DIAGNOSTICAR EQUIPOS ELECTRÓNICOS CON FINES HIDROMETEOROLÓGICOS QUE
A85: 1049613445 | B85: 0 | C85: 0 | D85: 3702018 | E85: 3702018 | F85: 8019 | G85: 2019-01-08 00:00:00 | H85: 2019-01-08 15:15:50 | I85: Con Obligacion | J85: 05 | K85: IDEAM-GG-SUBDIRECCION HIDROLOGIA | L85: C-3204-0900-3-0-3204051-02 | M85: ADQUISICIÓN DE BIENES Y SERVICIOS | N85: Nación | O85: OTROS RECURSOS DEL TESORO | P85: CSF | Q85: 28350000 | R85: 0 | S85: 28350000 | T85: 14850000 | U85: Cédula de Ciudadanía | V85: 1049613445 | W85: GAONA BARRERA DAVID ARTURO | X85: Abono en cuenta | Y85: Ahorro | Z85: 88234364141 | AA85: Activa | AB85: 890903938 | AC85: BANCOLOMBIA S.A. | AD85: 15719 | AE85: 15119 | AF85: 8019 | AG85: 20719, 78219, 131519, 181819, 181919, 247919 | AH85: 17619, 194219, 258019, 303519, 370119 | AI85: 17930519, 41276119, 78746119, 102313819, 140474719 | AK85: 2019-01-08 00:00:00 | AL85: CONTRATO DE PRESTACION DE SERVICIOS - PROFESIONALES | AM85: 3702018 | AN85: RENGLON 158, ACT PAA 25, VIGENCIA FUTURA 2019. PRESTAR LOS SERVICIOS PROFESIONALES PARA MANTENER LA RED NACIONAL DE ESTACIONES HIDROMETEOROLÓGICAS AUTOMÁTICAS, DIAGNOSTICAR EQUIPOS ELECTRÓNICOS CON FINES HIDROMETEOROLÓGICOS QUE
A86: 67026391 | B86: 0 | C86: 0 | D86: 3712018 | E86: 3712018 | F86: 8119 | G86: 2019-01-08 00:00:00 | H86: 2019-01-08 15:21:12 | I86: Con Obligacion | J86: 05 | K86: IDEAM-GG-SUBDIRECCION HIDROLOGIA | L86: C-3204-0900-3-0-3204051-02 | M86: ADQUISICIÓN DE BIENES Y SERVICIOS | N86: Nación | O86: OTROS RECURSOS DEL TESORO | P86: CSF | Q86: 21000000 | R86: 0 | S86: 21000000 | T86: 6000000 | U86: Cédula de Ciudadanía | V86: 67026391 | W86: SOLARTE NARVAEZ VICTORIA YORLANY | X86: Abono en cuenta | Y86: Ahorro | Z86: 07744000747 | AA86: Activa | AB86: 890903938 | AC86: BANCOLOMBIA S.A. | AD86: 15819 | AE86: 15219 | AF86: 8119 | AG86: 33019, 95019, 131919, 189219, 275019 | AH86: 29519, 211619, 258219, 311419, 394719 | AI86: 16767919, 46657719, 78746519, 104282819, 146177719 | AK86: 2019-01-08 00:00:00 | AL86: CONTRATO DE PRESTACION DE SERVICIOS - PROFESIONALES | AM86: 3712018 | AN86: RENGLON 146, ACT PAA 25, VIGENCIA FUTURA 2019. PRESTAR LOS SERVICIOS PROFESIONALES PARA EVALUAR, CAPTURAR, PROCESAR, VERIFICAR Y ANALIZAR DATOS METEOROLÓGICOS EN EL ÁREA OPERATIVA 09 - CALI
A87: 1049629852 | B87: 0 | C87: 0 | D87: 3722018 | E87: 3722018 | F87: 8219 | G87: 2019-01-08 00:00:00 | H87: 2019-01-08 15:25:48 | I87: Con Obligacion | J87: 05 | K87: IDEAM-GG-SUBDIRECCION HIDROLOGIA | L87: C-3204-0900-3-0-3204051-02 | M87: ADQUISICIÓN DE BIENES Y SERVICIOS | N87: Nación | O87: OTROS RECURSOS DEL TESORO | P87: CSF | Q87: 33300000 | R87: 0 | S87: 33300000 | T87: 16650000 | U87: Cédula de Ciudadanía | V87: 1049629852 | W87: FIGUEROA CASAS JEFFER IVAN | X87: Abono en cuenta | Y87: Ahorro | Z87: 25826080071 | AA87: Activa | AB87: 890903938 | AC87: BANCOLOMBIA S.A. | AD87: 15919 | AE87: 15319 | AF87: 8219 | AG87: 33219, 84019, 143619, 189819, 266219 | AH87: 29319, 200219, 264919, 312019, 387519 | AI87: 17935719, 43088719, 80324619, 104283519, 144540419 | AK87: 2019-01-08 00:00:00 | AL87: CONTRATO DE PRESTACION DE SERVICIOS - PROFESIONALES | AM87: 3722018 | AN87: RENGLON 160, ACT PAA 25, VIGENCIA FUTURA 2019. PRESTAR SERVICIOS PROFESIONALES PARA APOYAR EN LA ELABORACIÓN DE PROPUESTAS DE INTEROPERABILIDAD Y AL SEGUIMIENTO DE LOS CONVENIOS RELACIONADOS CON LA OPERACIÓN Y GENERACIÓN DE DATO
A88: 1089459037 | B88: 0 | C88: 0 | D88: 3742018 | E88: 3742018 | F88: 8319 | G88: 2019-01-08 00:00:00 | H88: 2019-01-08 15:33:10 | I88: Con Obligacion | J88: 05 | K88: IDEAM-GG-SUBDIRECCION HIDROLOGIA | L88: C-3204-0900-3-0-3204051-02 | M88: ADQUISICIÓN DE BIENES Y SERVICIOS | N88: Nación | O88: OTROS RECURSOS DEL TESORO | P88: CSF | Q88: 19800000 | R88: 0 | S88: 19800000 | T88: 9900000 | U88: Cédula de Ciudadanía | V88: 1089459037 | W88: GARCIA PASCUASA JORGE MARIO | X88: Abono en cuenta | Y88: Ahorro | Z88: 1632084781 | AA88: Activa | AB88: 860034594 | AC88: BANCO COLPATRIA RED MULTIBANCA COLPATRIA S.A. | AD88: 16019 | AE88: 15419 | AF88: 8319 | AG88: 36419, 96219, 130819, 195919, 275219 | AH88: 29919, 212219, 257619, 318519, 394919 | AI88: 20457219, 46660019, 78745519, 107474619, 146178119 | AK88: 2019-01-08 00:00:00 | AL88: CONTRATO DE PRESTACION DE SERVICIOS - PROFESIONALES | AM88: 3742018 | AN88: RENGLON 134, ACT PAA 25, VIGENCIA FUTURA 2019. PRESTAR LOS SERVICIOS TÉCNICOS PARA REALIZAR LA OPERACIÓN DE LAS ESTACIONES CONVENCIONALES Y AUTOMÁTICAS DE LA RED NACIONAL Y APOYAR EL PROCESO DE INFORMACIÓN HIDROLOGICA Y METEOROL
A89: 7162549 | B89: 0 | C89: 0 | D89: 3862018 | E89: 3862018 | F89: 8419 | G89: 2019-01-08 00:00:00 | H89: 2019-01-08 15:46:32 | I89: Con Obligacion | J89: 05 | K89: IDEAM-GG-SUBDIRECCION HIDROLOGIA | L89: C-3204-0900-3-0-3204051-02 | M89: ADQUISICIÓN DE BIENES Y SERVICIOS | N89: Nación | O89: OTROS RECURSOS DEL TESORO | P89: CSF | Q89: 28035000 | R89: 0 | S89: 28035000 | T89: 14685000 | U89: Cédula de Ciudadanía | V89: 7162549 | W89: PEÑA TORRES ROBERTO | X89: Abono en cuenta | Y89: Ahorro | Z89: 0570462270007471 | AA89: Activa | AB89: 860034313 | AC89: BANCO DAVIVIENDA S.A. | AD89: 16119 | AE89: 15519 | AF89: 8419 | AG89: 37019, 89819, 142819, 182619, 246519 | AH89: 30419, 205919, 264219, 304519, 368119 | AI89: 17936919, 44848219, 80320219, 102316119, 140473219 | AK89: 2019-01-08 00:00:00 | AL89: CONTRATO DE PRESTACION DE SERVICIOS - PROFESIONALES | AM89: 3862018 | AN89: RENGLON 142, ACT PAA 25, VIGENCIA FUTURA 2019. PRESTAR LOS SERVICIOS PROFESIONALES EN EL PROCESO Y VERIFICACIÓN DE LOS CÁLCULOS DE INCERTIDUMBRE EN LAS VARIABLES DE TEMPERATURA, HUMEDAD, PRESIÓN, RADIACIÓN, VOLTAJE, CORRIENTE Y
A90: 51810900 | B90: 0 | C90: 0 | D90: 3872018 | E90: 3872018 | F90: 8519 | G90: 2019-01-08 00:00:00 | H90: 2019-01-08 17:05:09 | I90: Con Obligacion | J90: 05 | K90: IDEAM-GG-SUBDIRECCION HIDROLOGIA | L90: C-3204-0900-3-0-3204051-02 | M90: ADQUISICIÓN DE BIENES Y SERVICIOS | N90: Nación | O90: OTROS RECURSOS DEL TESORO | P90: CSF | Q90: 19800000 | R90: 0 | S90: 19800000 | T90: 9900000 | U90: Cédula de Ciudadanía | V90: 51810900 | W90: MORA HERNANDEZ MARTHA OLIVA | X90: Abono en cuenta | Y90: Ahorro | Z90: 24050808445 | AA90: Activa | AB90: 860007335 | AC90: BCSC S A | AD90: 16219 | AE90: 15619 | AF90: 8519 | AG90: 36619, 89719, 142919, 182419, 246419 | AH90: 30119, 205819, 264319, 304219, 367919 | AI90: 17936319, 44847619, 80321019, 102315319, 140472919 | AK90: 2019-01-08 00:00:00 | AL90: CONTRATO DE PRESTACION DE SERVICIOS | AM90: 3872018 | AN90: RENGLON 139, ACT PAA 25, VIGENCIA FUTURA 2019. PRESTAR LOS SERVICIOS TÉCNICOS PARA REPARAR, CALIBRAR SISTEMAS DE RELOJERIA DEL INSTRUMENTAL HIDROMETEOROLÓGICO CONVENCIONAL (PLUVIOGRAFOS, TERMOGRAFOS, TERMOHIGROGRAFOS, HIGROGRAFO
A91: 94509005 | B91: 0 | C91: 0 | D91: 3882018 | E91: 3882018 | F91: 8619 | G91: 2019-01-08 00:00:00 | H91: 2019-01-08 17:21:50 | I91: Con Obligacion | J91: 05 | K91: IDEAM-GG-SUBDIRECCION HIDROLOGIA | L91: C-3204-0900-3-0-3204051-02 | M91: ADQUISICIÓN DE BIENES Y SERVICIOS | N91: Nación | O91: OTROS RECURSOS DEL TESORO | P91: CSF | Q91: 13860000 | R91: 0 | S91: 13860000 | T91: 3960000 | U91: Cédula de Ciudadanía | V91: 94509005 | W91: JHON ALEXANDER PRADA OSORIO | X91: Abono en cuenta | Y91: Ahorro | Z91: 118831986 | AA91: Activa | AB91: 860035827 | AC91: BANCO COMERCIAL AV VILLAS S.A. | AD91: 16319 | AE91: 15719 | AF91: 8619 | AG91: 33119, 96319, 130919, 192819, 275619 | AH91: 29419, 212319, 257719, 315219, 395319 | AI91: 16768919, 46660219, 78745619, 105723119, 146180719 | AK91: 2019-01-08 00:00:00 | AL91: CONTRATO DE PRESTACION DE SERVICIOS | AM91: 3882018 | AN91: RENGLON 136, ACT PAA 25, VIGENCIA FUTURA 2019. PRESTAR LOS SERVICIOS TÉCNICOS PARA REALIZAR LA OPERACIÓN DE LAS ESTACIONES CONVENCIONALES Y AUTOMÁTICAS DE LA RED NACIONAL Y APOYAR EL PROCESO DE INFORMACIÓN HIDROLOGICA Y METEOROL
A92: 1120360304 | B92: 0 | C92: 0 | D92: 3952018 | E92: 3952018 | F92: 8719 | G92: 2019-01-08 00:00:00 | H92: 2019-01-08 17:31:59 | I92: Con Obligacion | J92: 05 | K92: IDEAM-GG-SUBDIRECCION HIDROLOGIA | L92: C-3204-0900-3-0-3204051-02 | M92: ADQUISICIÓN DE BIENES Y SERVICIOS | N92: Nación | O92: OTROS RECURSOS DEL TESORO | P92: CSF | Q92: 26145000 | R92: 0 | S92: 26145000 | T92: 13695000 | U92: Cédula de Ciudadanía | V92: 1120360304 | W92: PINEDA CASTAÑO LEIDY LORENA | X92: Abono en cuenta | Y92: Ahorro | Z92: 606083400 | AA92: Activa | AB92: 860002964 | AC92: BANCO DE BOGOTA S. A. | AD92: 16419 | AE92: 15819 | AF92: 8719 | AG92: 37719, 96019, 138319, 196319, 276119 | AH92: 33219, 212019, 261619, 319019, 395619 | AI92: 21260219, 47203819, 78752519, 107476819, 146182119 | AK92: 2019-01-08 00:00:00 | AL92: CONTRATO DE PRESTACION DE SERVICIOS - PROFESIONALES | AM92: 3952018 | AN92: RENGLON 150, ACT PAA 25, VIGENCIA FUTURA 2019. PRESTAR LOS SERVICIOS PROFESIONALES PARA EVALUAR, CAPTURAR, PROCESAR, VERIFICAR Y ANALIZAR DATOS HIDROLÓGICOS (NIVELES, CAUDALES Y SEDIMENTOS) EN EL ÁREA OPERATIVA 03 - VILLAVICENCI
A93: 93369296 | B93: 0 | C93: 0 | D93: 3962018 | E93: 3962018 | F93: 8819 | G93: 2019-01-08 00:00:00 | H93: 2019-01-08 17:39:16 | I93: Con Obligacion | J93: 05 | K93: IDEAM-GG-SUBDIRECCION HIDROLOGIA | L93: C-3204-0900-3-0-3204051-02 | M93: ADQUISICIÓN DE BIENES Y SERVICIOS | N93: Nación | O93: OTROS RECURSOS DEL TESORO | P93: CSF | Q93: 19800000 | R93: 0 | S93: 19800000 | T93: 9900000 | U93: Cédula de Ciudadanía | V93: 93369296 | W93: ORJUELA CAPERA HENRY | X93: Abono en cuenta | Y93: Ahorro | Z93: 80705932073 | AA93: Activa | AB93: 890903938 | AC93: BANCOLOMBIA S.A. | AD93: 16519 | AE93: 15919 | AF93: 8819 | AG93: 43619, 96119, 138219, 191819, 276019 | AH93: 78319, 212119, 261519, 314419, 395519 | AI93: 21006919, 46659619, 78752119, 105721519, 146181619 | AK93: 2019-01-08 00:00:00 | AL93: CONTRATO DE PRESTACION DE SERVICIOS | AM93: 3962018 | AN93: RENGLON 137, ACT PAA 25, VIGENCIA FUTURA 2019. PRESTAR LOS SERVICIOS TÉCNICOS PARA REALIZAR LA OPERACIÓN DE LAS ESTACIONES CONVENCIONALES Y AUTOMÁTICAS DE LA RED NACIONAL Y APOYAR EL PROCESO DE INFORMACIÓN HIDROLOGICA Y METEOROL
A94: 34326964 | B94: 0 | C94: 0 | D94: 192019 | E94: 192019 | F94: 8919 | G94: 2019-01-08 00:00:00 | H94: 2019-01-08 18:38:52 | I94: Con Obligacion | J94: 02 | K94: IDEAM-GG-SECRETARIA GENERAL | L94: A-02-02-02-008 | M94: SERVICIOS PRESTADOS A LAS EMPRESAS Y SERVICIOS DE PRODUCCIÓN | N94: Nación | O94: RECURSOS CORRIENTES | P94: CSF | Q94: 76248000 | R94: 0 | S94: 76248000 | T94: 45360000 | U94: Cédula de Ciudadanía | V94: 34326964 | W94: BRAVO IDROBO NANCY PATRICIA | X94: Abono en cuenta | Y94: Ahorro | Z94: 542025598 | AA94: Activa | AB94: 860002964 | AC94: BANCO DE BOGOTA S. A. | AD94: 719 | AE94: 2719 | AF94: 8919 | AG94: 30219, 74619, 133319, 208019, 260119 | AH94: 27319, 189819, 250319, 329619, 380019 | AI94: 17934919, 39141319, 72832519, 110103819, 142268719 | AK94: 2019-01-08 00:00:00 | AL94: CONTRATO DE PRESTACION DE SERVICIOS - PROFESIONALES | AM94: 0192019 | AN94: RENGLON 021, ACT PAA 00, PRESTAR LOS SERVICIOS PROFESIONALES EN LA OFICINA ASESORA JURÍDICA PARA ADELANTAR ACTUACIONES ADMINISTRATIVAS, JUDICIALES Y EXTRAJUDICIALES QUE SE REQUIERAN.
A95: 52866068 | B95: 0 | C95: 0 | D95: 202019 | E95: 202019 | F95: 9019 | G95: 2019-01-08 00:00:00 | H95: 2019-01-08 18:57:36 | I95: Con Obligacion | J95: 02 | K95: IDEAM-GG-SECRETARIA GENERAL | L95: A-02-02-02-008 | M95: SERVICIOS PRESTADOS A LAS EMPRESAS Y SERVICIOS DE PRODUCCIÓN | N95: Nación | O95: RECURSOS CORRIENTES | P95: CSF | Q95: 63187000 | R95: 0 | S95: 63187000 | T95: 37590000 | U95: Cédula de Ciudadanía | V95: 52866068 | W95: BEJARANO FERNANDEZ MARIA CAMILA | X95: Abono en cuenta | Y95: Ahorro | Z95: 65251663160 | AA95: Activa | AB95: 890903938 | AC95: BANCOLOMBIA S.A. | AD95: 5119 | AE95: 6419 | AF95: 9019 | AG95: 34919, 80419, 133219, 187819, 187919, 255519 | AH95: 29619, 196419, 249819, 310119, 376219 | AI95: 17935919, 43070819, 72831819, 104281219, 140489319 | AK95: 2019-01-08 00:00:00 | AL95: CONTRATO DE PRESTACION DE SERVICIOS - PROFESIONALES | AM95: 0202019 | AN95: RENGLON 058, ACT PAA 00, PRESTAR LOS SERVICIOS PROFESIONALES PARA BRINDAR APOYO JURÍDICO AL GRUPO DE ADMINISTRACIÓN Y DESARROLLO DEL TALENTO HUMANO, EN TEMAS RELACIONADOS CON DERECHO ADMINISTRATIVO QUE SEAN COMPETENCIA DE ESE
A96: 891855578 | B96: 0 | C96: 0 | D96: 2018125104372 | E96: 2018125104372 | F96: 9119 | G96: 2019-01-09 00:00:00 | H96: 2019-01-09 11:05:56 | I96: Con Obligacion | J96: 02 | K96: IDEAM-GG-SECRETARIA GENERAL | L96: A-02-02-02-009 | M96: SERVICIOS PARA LA COMUNIDAD, SOCIALES Y PERSONALES | N96: Nación | O96: RECURSOS CORRIENTES | P96: CSF | Q96: 63695 | R96: 0 | S96: 63695 | T96: 0 | U96: NIT | V96: 891855578 | W96: EMPRESA DE SERVICIOS PUBLICOS DOMICILIARIOS DE DUITAMA S.A. E.S.P | X96: Abono en cuenta | Y96: Ahorro | Z96: 220260721014 | AA96: Activa | AB96: 860007738 | AC96: BANCO POPULAR S. A. | AD96: 9419 | AE96: 7119 | AF96: 9119 | AG96: 1619 | AH96: 1719 | AI96: 1387519 | AK96: 2019-01-09 00:00:00 | AL96: FACTURA | AM96: 2018125104372 | AN96: ORFEO 20197060000043, FACTURA DE 04 DICIEMBRE A 02 ENERO/2019, PRESTADO EN BOYACA, PAGO A EMPODUITAMA, CONCEPTO: SERVICIO ACUEDUCTO Y ALCANTARILLADO SEDE DUITAMA AOP. NO. 06
A97: 900267080 | B97: 0 | C97: 0 | D97: 0 | E97: 0 | F97: 9219 | G97: 2019-01-09 00:00:00 | H97: 2019-01-09 11:20:58 | I97: Con Obligacion | J97: 02 | K97: IDEAM-GG-SECRETARIA GENERAL | L97: A-02-02-02-009 | M97: SERVICIOS PARA LA COMUNIDAD, SOCIALES Y PERSONALES | N97: Nación | O97: RECURSOS CORRIENTES | P97: CSF | Q97: 84705 | R97: 0 | S97: 84705 | T97: 0 | U97: NIT | V97: 900267080 | W97: SERVIGENERALES CIUDAD DE DUITAMA S.A. E.S.P. | X97: Abono en cuenta | Y97: Corriente | Z97: 282220573 | AA97: Activa | AB97: 860002964 | AC97: BANCO DE BOGOTA S. A. | AD97: 9419 | AE97: 7119 | AF97: 9219 | AG97: 1719 | AH97: 1819 | AI97: 1387719 | AK97: 2019-01-09 00:00:00 | AL97: FACTURA | AM97: 1812-3914538-116 | AN97: ORFEO 20197060000043, FACTURA DE 01 DICIEMBRE A 31DIC/2018, PRESTADO EN BOYACA, PAGO A SERVIASEO, CONCEPTO: ASERVICIO ASEO SEDE DUITAMA AOP. NO. 06
A98: 890399003 | B98: 0 | C98: 0 | D98: 255326003 | E98: 255326003 | F98: 9319 | G98: 2019-01-09 00:00:00 | H98: 2019-01-09 11:31:48 | I98: Con Obligacion | J98: 02 | K98: IDEAM-GG-SECRETARIA GENERAL | L98: A-02-02-02-006 | M98: SERVICIOS DE ALOJAMIENTO; SERVICIOS DE SUMINISTRO DE COMIDAS Y BEBIDAS; SERVICIOS DE TRANSPORTE; Y SERVICIOS DE DISTRIBUCIÓN DE ELECTRICIDAD, GAS Y AGUA | N98: Nación | O98: RECURSOS CORRIENTES | P98: CSF | Q98: 185590 | R98: 0 | S98: 185590 | T98: 0 | U98: NIT | V98: 890399003 | W98: EMPRESAS MUNICIPALES DE CALI E.I.C.E. E.S.P. | X98: Giro | AD98: 8619 | AE98: 6919 | AF98: 9319 | AG98: 2419 | AH98: 2419 | AI98: 4599219 | AK98: 2019-01-09 00:00:00 | AL98: FACTURA | AM98: 255326003 | AN98: ORFEO 2019709000103, FACTURA DE 14 NOVIEMBRE A 14 DIC/2018, PRESTADO EN VALLE, PAGO A EMCALI- EICE ESP., CONCEPTO: SERVICIO ENERGIA E IMPUESTO ALUMBRADO PUBLICO Y OTRO SEDE CALI AOP. NO. 09
A99: 890399003 | B99: 0 | C99: 0 | D99: 255326003 | E99: 255326003 | F99: 9419 | G99: 2019-01-09 00:00:00 | H99: 2019-01-09 13:41:41 | I99: Con Obligacion | J99: 02 | K99: IDEAM-GG-SECRETARIA GENERAL | L99: A-02-02-02-009 | M99: SERVICIOS PARA LA COMUNIDAD, SOCIALES Y PERSONALES | N99: Nación | O99: RECURSOS CORRIENTES | P99: CSF | Q99: 156943 | R99: 0 | S99: 156943 | T99: 0 | U99: NIT | V99: 890399003 | W99: EMPRESAS MUNICIPALES DE CALI E.I.C.E. E.S.P. | X99: Giro | AD99: 9419 | AE99: 7119 | AF99: 9419 | AG99: 2519 | AH99: 2519 | AI99: 4600919 | AK99: 2019-01-09 00:00:00 | AL99: FACTURA | AM99: 255326003 | AN99: ORFEO 20197090000103, FACTURA DE 14 NOVIEMBRE A 14 DIC/2018, PRESTADO EN VALLE, PAGO A EMCALI-EICE ESP., CONCEPTO: SERVICIO ACUEDUCTO-ALCANTARILLADO Y ASEO SEDE CALI AOP. NO:09
A100: 890399003 | B100: 0 | C100: 0 | D100: 0 | E100: 0 | F100: 9519 | G100: 2019-01-09 00:00:00 | H100: 2019-01-09 13:46:52 | I100: Con Obligacion | J100: 02 | K100: IDEAM-GG-SECRETARIA GENERAL | L100: A-02-02-02-008 | M100: SERVICIOS PRESTADOS A LAS EMPRESAS Y SERVICIOS DE PRODUCCIÓN | N100: Nación | O100: RECURSOS CORRIENTES | P100: CSF | Q100: 285892 | R100: 0 | S100: 285892 | T100: 0 | U100: NIT | V100: 890399003 | W100: EMPRESAS MUNICIPALES DE CALI E.I.C.E. E.S.P. | X100: Giro | AD100: 8819 | AE100: 8819 | AF100: 9519 | AG100: 2319 | AH100: 2319 | AI100: 1388819 | AK100: 2019-01-09 00:00:00 | AL100: FACTURA | AM100: 255280741-84755-8652-8068-8004 | AN100: ORFEO 2019709000113, FACTURA DE 24 NOVIEMBRE A 23 DIC/2018, PRESTADO EN VALLE, PAGO A EMCALI-EICE ESP., CONCEPTO: SERVICIO TELEFONO AEROPUERTO ALBORNAR Y SEDE CALI AOP. NO. 09
A101: 890399003 | B101: 0 | C101: 0 | D101: 255328237 | E101: 255328237 | F101: 9619 | G101: 2019-01-09 00:00:00 | H101: 2019-01-09 13:54:50 | I101: Con Obligacion | J101: 02 | K101: IDEAM-GG-SECRETARIA GENERAL | L101: A-02-02-02-006 | M101: SERVICIOS DE ALOJAMIENTO; SERVICIOS DE SUMINISTRO DE COMIDAS Y BEBIDAS; SERVICIOS DE TRANSPORTE; Y SERVICIOS DE DISTRIBUCIÓN DE ELECTRICIDAD, GAS Y AGUA | N101: Nación | O101: RECURSOS CORRIENTES | P101: CSF | Q101: 1445479 | R101: 0 | S101: 1445479 | T101: 0 | U101: NIT | V101: 890399003 | W101: EMPRESAS MUNICIPALES DE CALI E.I.C.E. E.S.P. | X101: Giro | AD101: 8619 | AE101: 6919 | AF101: 9619 | AG101: 1819 | AH101: 1919 | AI101: 1387919 | AK101: 2019-01-09 00:00:00 | AL101: FACTURA | AM101: 255328237 | AN101: ORFEO 20197090000123, FACTURA DE 14 NOVIEMBRE A 14 DIC/2018, PRESTADO EN VALLE, PAGO A EMCALI-EICE ESP., CONCEPTO: SERVICIO ENERGIA SEDE CALI AOP. NO. 09
A102: 890399003 | B102: 0 | C102: 0 | D102: 255328237 | E102: 255328237 | F102: 9719 | G102: 2019-01-09 00:00:00 | H102: 2019-01-09 13:58:41 | I102: Con Obligacion | J102: 02 | K102: IDEAM-GG-SECRETARIA GENERAL | L102: A-02-02-02-009 | M102: SERVICIOS PARA LA COMUNIDAD, SOCIALES Y PERSONALES | N102: Nación | O102: RECURSOS CORRIENTES | P102: CSF | Q102: 271741 | R102: -44000 | S102: 227741 | T102: 0 | U102: NIT | V102: 890399003 | W102: EMPRESAS MUNICIPALES DE CALI E.I.C.E. E.S.P. | X102: Giro | AD102: 9419 | AE102: 7119 | AF102: 9719 | AG102: 1919, 2019 | AH102: 2019 | AI102: 1388119 | AK102: 2019-01-09 00:00:00 | AL102: FACTURA | AM102: 255328237 | AN102: ORFEO 20197090000123, FACTURA DE 14 NOVIEMBRE A 14 DIC/2018, PRESTADO EN VALLE, PAGO A EMCALI-EICE ESP., CONCEPTO: SERVICIO ACUEDUCTO ALACANTARILLADO Y ASEO SEDE CALI AOP. NO. 09
A103: 800089809 | B103: 0 | C103: 0 | D103: 6759383 | E103: 6759383 | F103: 9819 | G103: 2019-01-09 00:00:00 | H103: 2019-01-09 14:03:08 | I103: Con Obligacion | J103: 02 | K103: IDEAM-GG-SECRETARIA GENERAL | L103: A-02-02-02-009 | M103: SERVICIOS PARA LA COMUNIDAD, SOCIALES Y PERSONALES | N103: Nación | O103: RECURSOS CORRIENTES | P103: CSF | Q103: 63000 | R103: 0 | S103: 63000 | T103: 0 | U103: NIT | V103: 800089809 | W103: EMPRESA IBAGUEREÑA DE ACUEDUCTO Y ALCANTARILLADO S.A. E.S.P OFICIAL IBAL E.S.P. OFICIAL | X103: Abono en cuenta | Y103: Ahorro | Z103: 5752165239 | AA103: Activa | AB103: 860034594 | AC103: BANCO COLPATRIA RED MULTIBANCA COLPATRIA S.A. | AD103: 9419 | AE103: 7119 | AF103: 9819 | AG103: 2619 | AH103: 2619 | AI103: 1385319 | AK103: 2019-01-09 00:00:00 | AL103: FACTURA | AM103: 06759383 | AN103: ORFEO 20197100000103, FACTURA DE 24 NOVIEMBRE A 21 DIC/2018, PRESTADO EN TOLIMA, PAGO A IBAL S.A. ESP., CONCEPTO: SERVICIO ACUEDUCTO SEDE IBAGUE AOP. NO. 10
A104: 1049614781 | B104: 0 | C104: 0 | D104: 3982018 | E104: 3982018 | F104: 9919 | G104: 2019-01-09 00:00:00 | H104: 2019-01-09 15:08:20 | I104: Con Obligacion | J104: 05 | K104: IDEAM-GG-SUBDIRECCION HIDROLOGIA | L104: C-3204-0900-3-0-3204051-02 | M104: ADQUISICIÓN DE BIENES Y SERVICIOS | N104: Nación | O104: OTROS RECURSOS DEL TESORO | P104: CSF | Q104: 38400000 | R104: 0 | S104: 38400000 | T104: 19200000 | U104: Cédula de Ciudadanía | V104: 1049614781 | W104: MOLINA ESPINOSA HERNAN LEONARDO | X104: Abono en cuenta | Y104: Ahorro | Z104: 403600031411 | AA104: Activa | AB104: 800037800 | AC104: BANCO AGRARIO DE COLOMBIA S.A. | AD104: 16619 | AE104: 16019 | AF104: 9919 | AG104: 37619, 95319, 95619, 136219, 191619, 275519 | AH104: 33319, 211819, 260419, 314019, 395219 | AI104: 23117119, 46658719, 78750319, 104283619, 146180319 | AK104: 2019-01-09 00:00:00 | AL104: CONTRATO DE PRESTACION DE SERVICIOS - PROFESIONALES | AM104: 3982018 | AN104: RENGLON 151, ACT PAA 25, VIGENCIA FUTURA 2019. PRESTAR LOS SERVICIOS PROFESIONALES PARA EVALUAR, CAPTURAR, PROCESAR, VERIFICAR Y ANALIZAR DATOS HIDROLÓGICOS (NIVELES, CAUDALES Y SEDIMENTOS) EN EL ÁREA OPERATIVA 06 - DUITAMA
A105: 1075239507 | B105: 0 | C105: 0 | D105: 3972018 | E105: 3972018 | F105: 10019 | G105: 2019-01-09 00:00:00 | H105: 2019-01-09 15:12:32 | I105: Con Obligacion | J105: 05 | K105: IDEAM-GG-SUBDIRECCION HIDROLOGIA | L105: C-3204-0900-3-0-3204051-02 | M105: ADQUISICIÓN DE BIENES Y SERVICIOS | N105: Nación | O105: OTROS RECURSOS DEL TESORO | P105: CSF | Q105: 26400000 | R105: 0 | S105: 26400000 | T105: 13200000 | U105: Cédula de Ciudadanía | V105: 1075239507 | W105: POLANIA OSPINA JORGE MAURICIO | X105: Abono en cuenta | Y105: Ahorro | Z105: 07613980665 | AA105: Activa | AB105: 890903938 | AC105: BANCOLOMBIA S.A. | AD105: 16719 | AE105: 16119 | AF105: 10019 | AG105: 47419, 96519, 134819, 196019, 280819 | AH105: 81019, 212519, 259419, 318419, 401619 | AI105: 23754519, 46660619, 78749119, 107474119, 149362519 | AK105: 2019-01-09 00:00:00 | AL105: CONTRATO DE PRESTACION DE SERVICIOS - PROFESIONALES | AM105: 3972018 | AN105: RENGLON 153, ACT PAA 25, VIGENCIA FUTURA 2019. PRESTAR LOS SERVICIOS PROFESIONALES PARA EVALUAR, CAPTURAR, PROCESAR, VERIFICAR Y ANALIZAR DATOS HIDROLÓGICOS (NIVELES, CAUDALES Y SEDIMENTOS) EN EL ÁREA OPERATIVA 10 - TOLIMA
A106: 12129870 | B106: 0 | C106: 0 | D106: 4002018 | E106: 4002018 | F106: 10119 | G106: 2019-01-09 00:00:00 | H106: 2019-01-09 15:21:41 | I106: Con Obligacion | J106: 05 | K106: IDEAM-GG-SUBDIRECCION HIDROLOGIA | L106: C-3204-0900-3-0-3204051-02 | M106: ADQUISICIÓN DE BIENES Y SERVICIOS | N106: Nación | O106: OTROS RECURSOS DEL TESORO | P106: CSF | Q106: 19800000 | R106: 0 | S106: 19800000 | T106: 9900000 | U106: Cédula de Ciudadanía | V106: 12129870 | W106: OLAYA NARVAEZ MILLER | X106: Abono en cuenta | Y106: Ahorro | Z106: 24084989734 | AA106: Activa | AB106: 860007335 | AC106: BCSC S A | AD106: 16819 | AE106: 16219 | AF106: 10119 | AG106: 43919, 44019, 95219, 135619, 193519, 274819 | AH106: 77719, 211719, 260119, 316019, 394319 | AI106: 21008619, 46658319, 78749819, 105724519, 146175319 | AK106: 2019-01-09 00:00:00 | AL106: CONTRATO DE PRESTACION DE SERVICIOS - PROFESIONALES | AM106: 4002018 | AN106: RENGLON 133, ACT PAA 25, VIGENCIA FUTURA 2019. PRESTAR LOS SERVICIOS TÉCNICOS PARA REALIZAR LA OPERACIÓN DE LAS ESTACIONES CONVENCIONALES Y AUTOMÁTICAS DE LA RED NACIONAL Y APOYAR EL PROCESO DE INFORMACIÓN HIDROLOGICA Y METEOROL
A107: 1082803528 | B107: 0 | C107: 0 | D107: 4012018 | E107: 4012018 | F107: 10219 | G107: 2019-01-09 00:00:00 | H107: 2019-01-09 15:24:45 | I107: Con Obligacion | J107: 05 | K107: IDEAM-GG-SUBDIRECCION HIDROLOGIA | L107: C-3204-0900-3-0-3204051-02 | M107: ADQUISICIÓN DE BIENES Y SERVICIOS | N107: Nación | O107: OTROS RECURSOS DEL TESORO | P107: CSF | Q107: 26400000 | R107: 0 | S107: 26400000 | T107: 13200000 | U107: Cédula de Ciudadanía | V107: 1082803528 | W107: SOTO PERDOMO MAYRA ALEXANDRA | X107: Abono en cuenta | Y107: Ahorro | Z107: 45513965536 | AA107: Activa | AB107: 890903938 | AC107: BANCOLOMBIA S.A. | AD107: 16919 | AE107: 16319 | AF107: 10219 | AG107: 50519, 96819, 131219, 194619, 274719 | AH107: 84519, 212819, 257819, 317119, 394219 | AI107: 25359019, 46660919, 78745819, 105727219, 146174919 | AK107: 2019-01-09 00:00:00 | AL107: CONTRATO DE PRESTACION DE SERVICIOS - PROFESIONALES | AM107: 4012018 | AN107: RENGLON 144, ACT PAA 25, VIGENCIA FUTURA 2019. PRESTAR LOS SERVICIOS PROFESIONALES PARA EVALUAR, CAPTURAR, PROCESAR, VERIFICAR Y ANALIZAR DATOS METEOROLÓGICOS EN EL ÁREA OPERATIVA 04 - NEIVA
A108: 79947987 | B108: 0 | C108: 0 | D108: 4022018 | E108: 4022018 | F108: 10319 | G108: 2019-01-09 00:00:00 | H108: 2019-01-09 15:44:29 | I108: Con Obligacion | J108: 05 | K108: IDEAM-GG-SUBDIRECCION HIDROLOGIA | L108: C-3204-0900-3-0-3204051-02 | M108: ADQUISICIÓN DE BIENES Y SERVICIOS | N108: Nación | O108: OTROS RECURSOS DEL TESORO | P108: CSF | Q108: 35595000 | R108: 0 | S108: 35595000 | T108: 18645000 | U108: Cédula de Ciudadanía | V108: 79947987 | W108: OSORIO OSUNA JUAN GABRIEL | X108: Abono en cuenta | Y108: Ahorro | Z108: 472970009040 | AA108: Activa | AB108: 860034313 | AC108: BANCO DAVIVIENDA S.A. | AD108: 17019 | AE108: 16419 | AF108: 10319 | AG108: 19019, 83919, 143519, 188919, 265919 | AH108: 16519, 200119, 264819, 311119, 386519 | AI108: 16769819, 43088319, 80323919, 104282419, 144539919 | AK108: 2019-01-09 00:00:00 | AL108: CONTRATO DE PRESTACION DE SERVICIOS - PROFESIONALES | AM108: 4022018 | AN108: RENGLON 161, ACT PAA 25, VIGENCIA FUTURA 2019. PRESTAR SERVICIOS PROFESIONALES PARA APOYAR EN EL SEGUIMIENTO A LA GENERACIÓN DE DATOS HIDROMETEROLÓGICOS DE REDES DE ESTACIONES AUTOMÁTICAS DE OTRAS ENTIDADES
A109: 891180001 | B109: 0 | C109: 0 | D109: 49910374 | E109: 49910374 | F109: 10419 | G109: 2019-01-09 00:00:00 | H109: 2019-01-09 15:47:47 | I109: Con Obligacion | J109: 02 | K109: IDEAM-GG-SECRETARIA GENERAL | L109: A-02-02-02-006 | M109: SERVICIOS DE ALOJAMIENTO; SERVICIOS DE SUMINISTRO DE COMIDAS Y BEBIDAS; SERVICIOS DE TRANSPORTE; Y SERVICIOS DE DISTRIBUCIÓN DE ELECTRICIDAD, GAS Y AGUA | N109: Nación | O109: RECURSOS CORRIENTES | P109: CSF | Q109: 1432620 | R109: 0 | S109: 1432620 | T109: 0 | U109: NIT | V109: 891180001 | W109: ELECTRIFICADORA DEL HUILA S.A. E.S.P. | X109: Abono en cuenta | Y109: Corriente | Z109: 380055806 | AA109: Activa | AB109: 890300279 | AC109: BANCO DE OCCIDENTE | AD109: 8619 | AE109: 6919 | AF109: 10419 | AG109: 1319 | AH109: 1419 | AI109: 1386919 | AK109: 2019-01-09 00:00:00 | AL109: FACTURA | AM109: 49910374 | AN109: ORFEO 2019704000053, FACTURA DE 01 DICIEMBRE A 31 DIC/2018, PRESTADO EN HUILA, PAGO A ELECTROHUILA S.A. ESP., CONCEPTO: SERVICIO ENERGIA SEDE NEIVA AOP. NO. 04
A110: 1026264442 | B110: 0 | C110: 0 | D110: 4032018 | E110: 4032018 | F110: 10519 | G110: 2019-01-09 00:00:00 | H110: 2019-01-09 15:55:04 | I110: Con Obligacion | J110: 05 | K110: IDEAM-GG-SUBDIRECCION HIDROLOGIA | L110: C-3204-0900-3-0-3204051-02 | M110: ADQUISICIÓN DE BIENES Y SERVICIOS | N110: Nación | O110: OTROS RECURSOS DEL TESORO | P110: CSF | Q110: 26400000 | R110: 0 | S110: 26400000 | T110: 13200000 | U110: Cédula de Ciudadanía | V110: 1026264442 | W110: PEREZ RUEDA NUBIA ESPERANZA | X110: Abono en cuenta | Y110: Ahorro | Z110: 29995650833 | AA110: Activa | AB110: 890903938 | AC110: BANCOLOMBIA S.A. | AD110: 17119 | AE110: 16519 | AF110: 10519 | AG110: 36519, 112219, 141219, 141419, 207719, 271719 | AH110: 30019, 231319, 263119, 329919, 392519 | AI110: 17936119, 54373219, 78753919, 110136919, 146158919 | AK110: 2019-01-09 00:00:00 | AL110: CONTRATO DE PRESTACION DE SERVICIOS - PROFESIONALES | AM110: 4032018 | AN110: RENGLON 154, ACT PAA 25, VIGENCIA FUTURA 2019. PRESTAR LOS SERVICIOS PROFESIONALES PARA EVALUAR, CAPTURAR, PROCESAR, VERIFICAR Y ANALIZAR DATOS HIDROLÓGICOS (NIVELES, CAUDALES Y SEDIMENTOS) EN EL ÁREA OPERATIVA 11 - BOGOTÁ
A111: 80771277 | B111: 0 | C111: 0 | D111: 3822018 | E111: 3822018 | F111: 10619 | G111: 2019-01-09 00:00:00 | H111: 2019-01-09 16:03:05 | I111: Con Obligacion | J111: 05 | K111: IDEAM-GG-SUBDIRECCION HIDROLOGIA | L111: C-3204-0900-3-0-3204051-02 | M111: ADQUISICIÓN DE BIENES Y SERVICIOS | N111: Nación | O111: OTROS RECURSOS DEL TESORO | P111: CSF | Q111: 19800000 | R111: 0 | S111: 19800000 | T111: 9900000 | U111: Cédula de Ciudadanía | V111: 80771277 | W111: MACIAS HERNANDEZ CARLOS FELIPE | X111: Abono en cuenta | Y111: Ahorro | Z111: 006181108231 | AA111: Activa | AB111: 860034313 | AC111: BANCO DAVIVIENDA S.A. | AD111: 17219 | AE111: 16619 | AF111: 10619 | AG111: 21919, 89919, 142719, 182319, 246619 | AH111: 25419, 206019, 264119, 304119, 368219 | AI111: 17932019, 44848619, 80318819, 102315119, 140473519 | AK111: 2019-01-09 00:00:00 | AL111: CONTRATO DE PRESTACION DE SERVICIOS - PROFESIONALES | AM111: 3822018 | AN111: RENGLON 141, ACT PAA 25, VIGENCIA FUTURA 2019. PRESTAR SERVICIOS TÉCNICOS PARA REALIZAR LAS ACTIVIDADES DE CALIBRACIÓN EN LAS VARIABLES DE TEMPERATURA, HUMEDAD, VOLTAJE, PRESIÓN, Y CORRIENTE EN EL LABORATORIO DEL GRUPO DE INSTRU
A112: 1019063818 | B112: 0 | C112: 0 | D112: 3832018 | E112: 3832018 | F112: 10719 | G112: 2019-01-09 00:00:00 | H112: 2019-01-09 16:07:30 | I112: Con Obligacion | J112: 05 | K112: IDEAM-GG-SUBDIRECCION HIDROLOGIA | L112: C-3204-0900-3-0-3204051-02 | M112: ADQUISICIÓN DE BIENES Y SERVICIOS | N112: Nación | O112: OTROS RECURSOS DEL TESORO | P112: CSF | Q112: 19800000 | R112: 0 | S112: 19800000 | T112: 9900000 | U112: Cédula de Ciudadanía | V112: 1019063818 | W112: TIQUE ROJAS DANIEL FERNANDO | X112: Abono en cuenta | Y112: Ahorro | Z112: 017408394 | AA112: Activa | AB112: 860002964 | AC112: BANCO DE BOGOTA S. A. | AD112: 17319 | AE112: 16719 | AF112: 10719 | AG112: 36719, 90019, 90819, 143019, 182519, 246719 | AH112: 30219, 206119, 264419, 304419, 368419 | AI112: 17936519, 46647419, 80321719, 102315619, 140473819 | AK112: 2019-01-09 00:00:00 | AL112: CONTRATO DE PRESTACION DE SERVICIOS - PROFESIONALES | AM112: 3832018 | AN112: RENGLON 140, ACT PAA 25, VIGENCIA FUTURA 2019. PRESTAR SERVICIOS TÉCNICOS PARA REALIZAR LAS ACTIVIDADES DE CALIBRACIÓN EN LAS VARIABLES DE TEMPERATURA, HUMEDAD, VOLTAJE, PRESIÓN, Y CORRIENTE EN EL LABORATORIO DEL GRUPO DE INSTRU
A113: 830095213 | B113: 0 | C113: 0 | D113: 0 | E113: 0 | F113: 10819 | G113: 2019-01-09 00:00:00 | H113: 2019-01-09 17:48:43 | I113: Con Obligacion | J113: 02 | K113: IDEAM-GG-SECRETARIA GENERAL | L113: A-02-02-01-003 | M113: OTROS BIENES TRANSPORTABLES (EXCEPTO PRODUCTOS METÁLICOS, MAQUINARIA Y EQUIPO) | N113: Nación | O113: RECURSOS CORRIENTES | P113: CSF | Q113: 40000000 | R113: 0 | S113: 40000000 | T113: 24716900 | U113: NIT | V113: 830095213 | W113: ORGANIZACION TERPEL S.A. | X113: Abono en cuenta | Y113: Corriente | Z113: 03108322996 | AA113: Activa | AB113: 890903938 | AC113: BANCOLOMBIA S.A. | AD113: 8319 | AE113: 6719 | AF113: 10819 | AG113: 55719, 55819, 109919, 154619, 205919, 206019, 278319 | AH113: 171619, 171719, 227319, 286719, 329119, 415819 | AI113: 25316319, 25328419, 51417319, 88226219, 113490319, 157307719 | AK113: 2019-01-09 00:00:00 | AL113: ORDEN DE COMPRA | AM113: 0212019 O.C 35130 | AN113: RENGLON 079, ACT PAA 00, SUMINISTRO DE COMBUSTIBLES PARA LOS VEHÍCULOS DEL IDEAM EN BOGOTÁ.
A114: 1103950596 | B114: 0 | C114: 0 | D114: 0 | E114: 0 | F114: 10919 | G114: 2019-01-09 00:00:00 | H114: 2019-01-09 18:26:10 | I114: Con Obligacion | J114: 02 | K114: IDEAM-GG-SECRETARIA GENERAL | L114: A-02-02-02-008 | M114: SERVICIOS PRESTADOS A LAS EMPRESAS Y SERVICIOS DE PRODUCCIÓN | N114: Nación | O114: RECURSOS CORRIENTES | P114: CSF | Q114: 72512000 | R114: 0 | S114: 72512000 | T114: 43260000 | U114: Cédula de Ciudadanía | V114: 1103950596 | W114: AVILEZ GIL KELLY JOHANA | X114: Abono en cuenta | Y114: Ahorro | Z114: 995042249 | AA114: Activa | AB114: 860002964 | AC114: BANCO DE BOGOTA S. A. | AD114: 5019 | AE114: 6319 | AF114: 10919 | AG114: 19319, 19419, 77419, 131019, 187519, 256019 | AH114: 16819, 193119, 248519, 309819, 376919 | AI114: 16773519, 41270619, 72038719, 104280319, 142264019 | AK114: 2019-01-09 00:00:00 | AL114: CONTRATO DE PRESTACION DE SERVICIOS - PROFESIONALES | AM114: 022-2019 | AN114: RENGLON 057, ACT PAA 00, PRESTAR LOS SERVICIOS PROFESIONALES PARA BRINDAR APOYO JURÍDICO AL GRUPO DE ADMINISTRACIÓN Y DESARROLLO DEL TALENTO HUMANO, EN TEMAS RELACIONADOS CON DERECHO LABORAL ADMINISTRATIVO QUE SEAN COMPETENCIA
A115: 900068796 | B115: 0 | C115: 0 | D115: 4052018 | E115: 4052018 | F115: 11019 | G115: 2019-01-10 00:00:00 | H115: 2019-01-10 11:01:35 | I115: Con Obligacion | J115: 03 | K115: IDEAM-GG-DG.OFICINA INFORMATICA | L115: C-3204-0900-3-0-3204048-02 | M115: ADQUISICIÓN DE BIENES Y SERVICIOS | N115: Nación | O115: OTROS RECURSOS DEL TESORO | P115: CSF | Q115: 892355530 | R115: 0 | S115: 892355530 | T115: 567862611 | U115: NIT | V115: 900068796 | W115: INFOTIC S.A. | X115: Abono en cuenta | Y115: Ahorro | Z115: 260813993 | AA115: Activa | AB115: 890300279 | AC115: BANCO DE OCCIDENTE | AD115: 17519 | AE115: 16919 | AF115: 11019 | AG115: 52119, 110019, 110119, 205719, 225019 | AH115: 149719, 227219, 329019, 345319 | AI115: 25319419, 51430919, 111249719, 119202119 | AK115: 2019-01-10 00:00:00 | AL115: CONTRATO INTERADMINISTRATIVO | AM115: 4052018 | AN115: RENGLON 031, ACT PAA 07, PRESTAR EL SERVICIO DE CENTRO DE DATOS ALTERNO PARA EL PLAN DE RECUPERACIÓN DE DESASTRES DEL IDEAM -APALANCAMIENTO VF 2019
A116: 20714518 | B116: 0 | C116: 0 | D116: 232019 | E116: 232019 | F116: 11119 | G116: 2019-01-10 00:00:00 | H116: 2019-01-10 14:57:11 | I116: Con Obligacion | J116: 02 | K116: IDEAM-GG-SECRETARIA GENERAL | L116: A-02-02-02-008 | M116: SERVICIOS PRESTADOS A LAS EMPRESAS Y SERVICIOS DE PRODUCCIÓN | N116: Propios | O116: OTROS RECURSOS DE TESORERIA | P116: CSF | Q116: 60372000 | R116: 0 | S116: 60372000 | T116: 36120000 | U116: Cédula de Ciudadanía | V116: 20714518 | W116: BUSTOS BRASBI MARIA STELLA | X116: Abono en cuenta | Y116: Ahorro | Z116: 0570450270146118 | AA116: Activa | AB116: 860034313 | AC116: BANCO DAVIVIENDA S.A. | AD116: 3419 | AE116: 5019 | AF116: 11119 | AG116: 42319, 74819, 130119, 185819, 248819 | AH116: 75919, 190019, 248019, 307919, 371019 | AI116: 20143419, 39165719, 71369519, 102342419, 138080719 | AK116: 2019-01-10 00:00:00 | AL116: CONTRATO DE PRESTACION DE SERVICIOS - PROFESIONALES | AM116: 0232019 | AN116: RENGLON 044, ACT PAA 00, PRESTACIÓN DE SERVICIOS PROFESIONALES PARA APOYAR AL GRUPO DE TESORERÍA REALIZANDO LA REVISIÓN DE OBLIGACIONES CONTRAÍDAS POR EL IDEAM, SUS IMPUESTOS, Y REALIZAR EL PAGO EN SIIF NACIÓN, ASÍ COMO PREPARAR
A117: 1010223353 | B117: 0 | C117: 0 | D117: 242019 | E117: 242019 | F117: 11219 | G117: 2019-01-10 00:00:00 | H117: 2019-01-10 15:03:54 | I117: Con Obligacion | J117: 02 | K117: IDEAM-GG-SECRETARIA GENERAL | L117: A-02-02-02-008 | M117: SERVICIOS PRESTADOS A LAS EMPRESAS Y SERVICIOS DE PRODUCCIÓN | N117: Nación | O117: RECURSOS CORRIENTES | P117: CSF | Q117: 29133000 | R117: 0 | S117: 29133000 | T117: 17430000 | U117: Cédula de Ciudadanía | V117: 1010223353 | W117: GIRALDO BAUTISTA JENNY CONSTANZA | X117: Abono en cuenta | Y117: Ahorro | Z117: 20656269601 | AA117: Activa | AB117: 890903938 | AC117: BANCOLOMBIA S.A. | AD117: 2119 | AE117: 3919 | AF117: 11219 | AG117: 21619, 77619, 146419, 195819, 255819 | AH117: 25119, 193619, 266919, 318319, 376719 | AI117: 17931819, 41272019, 80342919, 105728919, 140490919 | AK117: 2019-01-10 00:00:00 | AL117: CONTRATO DE PRESTACION DE SERVICIOS | AM117: 0242019 | AN117: RENGLON 033, APOYO A LA OFICINA ASESORA JURÍDICA GENERANDO LOS INFORMES DE CARÁCTER CONTRACTUAL SOLICITADOS POR LA OFICINA DE CONTROL INTERNO, DE LOS ORGANISMOS DE CONTROL Y DEMÁS ENTIDADES O USUARIOS QUE DE ACUERDO
A118: 842000155 | B118: 0 | C118: 0 | D118: 0 | E118: 0 | F118: 11319 | G118: 2019-01-10 00:00:00 | H118: 2019-01-10 15:48:48 | I118: Con Obligacion | J118: 02 | K118: IDEAM-GG-SECRETARIA GENERAL | L118: A-02-02-02-006 | M118: SERVICIOS DE ALOJAMIENTO; SERVICIOS DE SUMINISTRO DE COMIDAS Y BEBIDAS; SERVICIOS DE TRANSPORTE; Y SERVICIOS DE DISTRIBUCIÓN DE ELECTRICIDAD, GAS Y AGUA | N118: Nación | O118: RECURSOS CORRIENTES | P118: CSF | Q118: 268145 | R118: 0 | S118: 268145 | T118: 0 | U118: NIT | V118: 842000155 | W118: EMPRESA DE ENERGIA ELECTRICA DEL DEPARTAMENTO DEL VICHADA SA | X118: Abono en cuenta | Y118: Corriente | Z118: 735004590 | AA118: Activa | AB118: 860003020 | AC118: BANCO BILBAO VIZCAYA ARGENTARIA COLOMBIA S.A. BBVA | AD118: 8619 | AE118: 6919 | AF118: 11319 | AG118: 2119 | AH118: 2119 | AI118: 1388419 | AK118: 2019-01-10 00:00:00 | AL118: FACTURA | AM118: F000404976 | AN118: ORFEO 20199910000992, FACTURA DE 19 NOVIEMBRE A 20 DIC/2018, PRESTADO EN META, PAGO A ELELCTROVICHADA S.A. ESP., CONCEPTO: SERVICIO ENERGIA SEDE PUERTO CARREÑO AOP. NO. 03
A119: 842000155 | B119: 0 | C119: 0 | D119: 0 | E119: 0 | F119: 11419 | G119: 2019-01-10 00:00:00 | H119: 2019-01-10 15:53:05 | I119: Con Obligacion | J119: 02 | K119: IDEAM-GG-SECRETARIA GENERAL | L119: A-02-02-02-009 | M119: SERVICIOS PARA LA COMUNIDAD, SOCIALES Y PERSONALES | N119: Nación | O119: RECURSOS CORRIENTES | P119: CSF | Q119: 70545 | R119: 0 | S119: 70545 | T119: 0 | U119: NIT | V119: 842000155 | W119: EMPRESA DE ENERGIA ELECTRICA DEL DEPARTAMENTO DEL VICHADA SA | X119: Abono en cuenta | Y119: Corriente | Z119: 735004590 | AA119: Activa | AB119: 860003020 | AC119: BANCO BILBAO VIZCAYA ARGENTARIA COLOMBIA S.A. BBVA | AD119: 9419 | AE119: 7119 | AF119: 11419 | AG119: 2219 | AH119: 2219 | AI119: 1388519 | AK119: 2019-01-10 00:00:00 | AL119: FACTURA | AM119: F000404976 | AN119: ORFEO 20199910000992, FACTURA DE 19 NOVIEMBRE A 20 DIC/2018, PRESTADO EN META, PAGO A ELELCTROVICHADA S.A. ESP., CONCEPTO: SERVICIO ASEO SEDE PUERTO CARREÑO AOP. 03
A120: 830037248 | B120: 0 | C120: 0 | D120: 0 | E120: 0 | F120: 11519 | G120: 2019-01-10 00:00:00 | H120: 2019-01-10 15:58:34 | I120: Con Obligacion | J120: 02 | K120: IDEAM-GG-SECRETARIA GENERAL | L120: A-02-02-02-006 | M120: SERVICIOS DE ALOJAMIENTO; SERVICIOS DE SUMINISTRO DE COMIDAS Y BEBIDAS; SERVICIOS DE TRANSPORTE; Y SERVICIOS DE DISTRIBUCIÓN DE ELECTRICIDAD, GAS Y AGUA | N120: Nación | O120: RECURSOS CORRIENTES | P120: CSF | Q120: 29239460 | R120: 0 | S120: 29239460 | T120: 0 | U120: NIT | V120: 830037248 | W120: CODENSA S.A ESP | X120: Abono en cuenta | Y120: Ahorro | Z120: 90060000410 | AA120: Activa | AB120: 860050750 | AC120: BANCO GNB SUDAMERIS S A | AD120: 8619 | AE120: 6919 | AF120: 11519 | AG120: 1219 | AH120: 1319 | AI120: 1386219 | AK120: 2019-01-10 00:00:00 | AL120: FACTURA | AM120: 535875908-5 | AN120: ORFEO 20199910001442, FACTURA DE 02 DICIEMBRE A 04 ENERO/2019, PRESTADO EN BOOGTA, PAGO A CODENSA S.A. ESP., CONCEPTO: SERVICIO ENERGIA SEDE PRINCIPAL
A121: 827000047 | B121: 0 | C121: 0 | D121: 210516371 | E121: 210516371 | F121: 11619 | G121: 2019-01-10 00:00:00 | H121: 2019-01-10 16:07:11 | I121: Con Obligacion | J121: 02 | K121: IDEAM-GG-SECRETARIA GENERAL | L121: A-02-02-02-009 | M121: SERVICIOS PARA LA COMUNIDAD, SOCIALES Y PERSONALES | N121: Nación | O121: RECURSOS CORRIENTES | P121: CSF | Q121: 119970 | R121: 0 | S121: 119970 | T121: 0 | U121: NIT | V121: 827000047 | W121: TRASH BUSTERS S A E S P | X121: Giro | AD121: 9419 | AE121: 7119 | AF121: 11619 | AG121: 1419 | AH121: 1519 | AI121: 1387219 | AK121: 2019-01-10 00:00:00 | AL121: FACTURA | AM121: 210516371 | AN121: ORFEO 20199910001172, FACTURA DE 02 DICIEMBRE A 31 DIC/2018, PRESTADO EN AOP. NO. 11, PAGO A TRASH-BUSTER S.A., CONCEPTO: SERVICIO ASEO SEDE SAN ANDRES
A122: 827000108 | B122: 0 | C122: 0 | D122: 210516371 | E122: 210516371 | F122: 11719 | G122: 2019-01-10 00:00:00 | H122: 2019-01-10 16:11:12 | I122: Con Obligacion | J122: 02 | K122: IDEAM-GG-SECRETARIA GENERAL | L122: A-02-02-02-006 | M122: SERVICIOS DE ALOJAMIENTO; SERVICIOS DE SUMINISTRO DE COMIDAS Y BEBIDAS; SERVICIOS DE TRANSPORTE; Y SERVICIOS DE DISTRIBUCIÓN DE ELECTRICIDAD, GAS Y AGUA | N122: Nación | O122: RECURSOS CORRIENTES | P122: CSF | Q122: 703704 | R122: 0 | S122: 703704 | T122: 0 | U122: NIT | V122: 827000108 | W122: SOCIEDAD PRODUCTORA DE ENERGIA DE SAN ANDRES Y PROVIDENCIA S.A. ESP "SOPESA " | X122: Giro | AD122: 8619 | AE122: 6919 | AF122: 11719 | AG122: 1519 | AH122: 1619 | AI122: 1387319 | AK122: 2019-01-10 00:00:00 | AL122: FACTURA | AM122: 210516371 | AN122: ORFEO 20199910001172, FACTURA DE 02 DICIEMBRE A 31 DIC/2018, PRESTADO EN AOP. NO. 11, PAGO A SOPESA S.A. ESP., CONCEPTO: SERVICIO ENERGIA SEDE SAN ANDRES
A123: 800135913 | B123: 0 | C123: 0 | D123: 11040535320 | E123: 11040535320 | F123: 11819 | G123: 2019-01-11 00:00:00 | H123: 2019-01-11 08:36:32 | I123: Con Obligacion | J123: 02 | K123: IDEAM-GG-SECRETARIA GENERAL | L123: A-02-02-02-009 | M123: SERVICIOS PARA LA COMUNIDAD, SOCIALES Y PERSONALES | N123: Nación | O123: RECURSOS CORRIENTES | P123: CSF | Q123: 236382 | R123: 0 | S123: 236382 | T123: 0 | U123: NIT | V123: 800135913 | W123: SOCIEDAD DE ACUEDUCTO ALCANTARILLADO Y ASEO DE BARRANQUILLA S.A. E.S.P. | X123: Giro | AD123: 9419 | AE123: 7119 | AF123: 11819 | AG123: 1119 | AH123: 1219 | AI123: 1385819 | AK123: 2019-01-11 00:00:00 | AL123: FACTURA | AM123: 11040535320 | AN123: ORFEO 20197020000043, FACTURA DE 27 NOVIEMBRE A 28 DIC/2018, PRESTADO EN ATLANTICO, PAGO A TRIPLE AAA S.A. ESP., CONCEPTO: SERVICIO ASEO-ACUEDUCTO Y ALCANTARILLADO SEDE BARRANQUILLA AOP. NO. 02
A124: 830122566 | B124: 0 | C124: 0 | D124: 200000252700824 | E124: 200000252700824 | F124: 11919 | G124: 2019-01-11 00:00:00 | H124: 2019-01-11 09:16:26 | I124: Con Obligacion | J124: 02 | K124: IDEAM-GG-SECRETARIA GENERAL | L124: A-02-02-02-008 | M124: SERVICIOS PRESTADOS A LAS EMPRESAS Y SERVICIOS DE PRODUCCIÓN | N124: Nación | O124: RECURSOS CORRIENTES | P124: CSF | Q124: 27967 | R124: 0 | S124: 27967 | T124: 0 | U124: NIT | V124: 830122566 | W124: COLOMBIA TELECOMUNICACIONES S.A. E.S.P. | X124: Abono en cuenta | Y124: Corriente | Z124: 000358572 | AA124: Activa | AB124: 860002964 | AC124: BANCO DE BOGOTA S. A. | AD124: 8819 | AE124: 8819 | AF124: 11919 | AG124: 1019 | AH124: 1119 | AI124: 1385519 | AK124: 2019-01-11 00:00:00 | AL124: FACTURA | AM124: 0200000252700824 | AN124: ORFEO 20197050000032, FACTURA DE 01 DICIEMBRE A 31 DIC/2018, PRESTADO EN MAGDALENA, PAGO A TELEFONICA MOVISTAR, CONCEPTO: SERVICIO TEELFONO SEDE SANTA MARTA AOP. NO. 05
A125: 900002583 | B125: 0 | C125: 0 | D125: 0 | E125: 0 | F125: 12019 | G125: 2019-01-11 00:00:00 | H125: 2019-01-11 10:10:53 | I125: Con Obligacion | J125: 02 | K125: IDEAM-GG-SECRETARIA GENERAL | L125: C-3299-0900-1-0-3299006-02 | M125: ADQUISICIÓN DE BIENES Y SERVICIOS | N125: Nación | O125: OTROS RECURSOS DEL TESORO | P125: CSF | Q125: 476527634 | R125: 0 | S125: 476527634 | T125: 259924164 | U125: NIT | V125: 900002583 | W125: RADIO TELEVISION NACIONAL DE COLOMBIA RTVC | X125: Abono en cuenta | Y125: Ahorro | Z125: 18821569245 | AA125: Activa | AB125: 890903938 | AC125: BANCOLOMBIA S.A. | AD125: 17719 | AE125: 17119 | AF125: 12019 | AG125: 48119, 110619, 152619, 205619, 280419 | AH125: 205019, 226619, 270519, 328419, 405019 | AI125: 47205119, 51453119, 81114619, 110181719, 148384819 | AK125: 2019-01-11 00:00:00 | AL125: CONTRATO INTERADMINISTRATIVO | AM125: 4062018 0 | AN125: RENGLON 178, ACT PAA 05, APALANCAR VIGENCIAS FUTURAS 2019 - REALIZAR LAS ACTIVIDADES NECESARIAS PARA LA GRABACIÓN, EDICIÓN, PRODUCCIÓN, ANIMACIÓN, REALIZACIÓN Y ENTREGA DE ARCHIVOS FINALIZADOS DE LOS VIDEOS DIARIOS DEL PRONÓSTIC
A126: =+V126+0 -> 901139601 | B126: =IFERROR(MID(AM126,SEARCH("CTO.",AM126)+5,7),0) -> 0 | C126: =IFERROR(MID(AM126,SEARCH("CTO ",AM126)+4,7),0) -> 0 | D126: =IFERROR(AM126+0,0) -> 0 | E126: =B126+C126+D126 -> 0 | F126: 12119 | G126: 2019-01-11 00:00:00 | H126: 2019-01-11 10:56:14 | I126: Con Obligacion | J126: 05 | K126: IDEAM-GG-SUBDIRECCION HIDROLOGIA | L126: C-3204-0900-3-0-3204051-02 | M126: ADQUISICIÓN DE BIENES Y SERVICIOS | N126: Nación | O126: OTROS RECURSOS DEL TESORO | P126: CSF | Q126: 425500000 | R126: 0 | S126: 425500000 | T126: 2809087 | U126: NIT | V126: 901139601 | W126: CONSORCIO TRANS. POR COLOMBIA | X126: Abono en cuenta | Y126: Ahorro | Z126: 009600241831 | AA126: Activa | AB126: 860034313 | AC126: BANCO DAVIVIENDA S.A. | AD126: 17819 | AE126: 17219 | AF126: 12119 | AG126: 121019, 121119, 121219, 121319, 121719, 121819, 122019, 122119, 122219, 122319, 122419, 123619, 167919, 173119, 179519, 179719, 179919, 180419, 215119 | AH126: 233519, 233619, 233719, 237319, 237419, 237519, 237919, 238019, 284919, 291219, 297219, 297719, 336319 | AI126: 66763319, 66765219, 67091819, 67110419, 89851119, 98961919, 98975319, 112756919 | AK126: 2019-01-11 00:00:00 | AL126: ORDEN ADMINISTRATIVA | AM126: 3702017 AD 3 OMA 30443500.0 | AN126: RENGLON 163, ACT PAA 25, VIGENCIA FUTURA 2019, NEGOCIACIÓN OPERACIÓN MERCADO ABIERTO No 30443500 ADICIONAR EL CONTRATO No 370/2017 CON EL OBJETO DE PARA PRESTAR EL SERVICIO DE TRANSPORTE INTEGRAL (TERRESTRE, MARITIMO, FLUVIAL, AFORO Y EQUINO) A TODO
A127: 860071250 | B127: 0 | C127: 0 | D127: 0 | E127: 0 | F127: 12219 | G127: 2019-01-11 00:00:00 | H127: 2019-01-11 10:58:56 | I127: Con Obligacion | J127: 05 | K127: IDEAM-GG-SUBDIRECCION HIDROLOGIA | L127: C-3204-0900-3-0-3204051-02 | M127: ADQUISICIÓN DE BIENES Y SERVICIOS | N127: Nación | O127: OTROS RECURSOS DEL TESORO | P127: CSF | Q127: 1519035 | R127: 0 | S127: 1519035 | T127: 0 | U127: NIT | V127: 860071250 | W127: BMC BOLSA MERCANTIL DE COLOMBIA S.A. | X127: Abono en cuenta | Y127: Corriente | Z127: 080020977 | AA127: Activa | AB127: 860002964 | AC127: BANCO DE BOGOTA S. A. | AD127: 17919 | AE127: 17319 | AF127: 12219 | AG127: 66219 | AH127: 181819, 190419 | AI127: 55153819 | AK127: 2019-01-11 00:00:00 | AL127: ORDEN ADMINISTRATIVA | AM127: 3702017 AD 3 OMA 30443500.0 | AN127: RENGLON 163, ACT PAA 25, VIGENCIA FUTURA 2019, SERVICIO REGISTRO-IVA PERACIÓN MERCADO ABIERTO No 30443500 ADICIONAR EL CONTRATO No 370/2017 CON EL OBJETO DE PARA PRESTAR EL SERVICIO DE TRANSPORTE NTEGRAL (TERRESTRE, MARITIMO, FLUVIAL, AFORO Y EQUINO)
A128: 805000867 | B128: 0 | C128: 0 | D128: 0 | E128: 0 | F128: 12319 | G128: 2019-01-11 00:00:00 | H128: 2019-01-11 11:07:47 | I128: Con Obligacion | J128: 05 | K128: IDEAM-GG-SUBDIRECCION HIDROLOGIA | L128: C-3204-0900-3-0-3204051-02 | M128: ADQUISICIÓN DE BIENES Y SERVICIOS | N128: Nación | O128: OTROS RECURSOS DEL TESORO | P128: CSF | Q128: 3613784 | R128: 0 | S128: 3613784 | T128: 0 | U128: NIT | V128: 805000867 | W128: CORREAGRO S A | X128: Abono en cuenta | Y128: Ahorro | Z128: 276104106 | AA128: Activa | AB128: 860002964 | AC128: BANCO DE BOGOTA S. A. | AD128: 18019 | AE128: 17419 | AF128: 12319 | AG128: 65819, 221719 | AH128: 181619, 190619, 352019 | AI128: 62245719, 125982419 | AK128: 2019-01-11 00:00:00 | AL128: ORDEN ADMINISTRATIVA | AM128: 3702017 AD 3 OMA 30443500.0 | AN128: RENGLON 163, ACT PAA 25, VIGENCIA FUTURA 2019, COMISION-IVA OPERACIÓN MERCADO ABIERTO No 30443500 ADICIONAR EL CONTRATO No 370/2017 CON EL OBJETO DE PARA PRESTAR EL SERVICIO DE TRANSPORTE NTEGRAL (TERRESTRE, MARITIMO, FLUVIAL, AFORO Y EQUINO)
A129: 860071250 | B129: 0 | C129: 0 | D129: 0 | E129: 0 | F129: 12419 | G129: 2019-01-11 00:00:00 | H129: 2019-01-11 11:09:45 | I129: Con Obligacion | J129: 05 | K129: IDEAM-GG-SUBDIRECCION HIDROLOGIA | L129: C-3204-0900-3-0-3204051-02 | M129: ADQUISICIÓN DE BIENES Y SERVICIOS | N129: Nación | O129: OTROS RECURSOS DEL TESORO | P129: CSF | Q129: 1063324 | R129: 0 | S129: 1063324 | T129: 0 | U129: NIT | V129: 860071250 | W129: BMC BOLSA MERCANTIL DE COLOMBIA S.A. | X129: Abono en cuenta | Y129: Corriente | Z129: 080020977 | AA129: Activa | AB129: 860002964 | AC129: BANCO DE BOGOTA S. A. | AD129: 18119 | AE129: 17519 | AF129: 12419 | AG129: 65919, 66019 | AH129: 181719, 190519 | AI129: 55151219 | AK129: 2019-01-11 00:00:00 | AL129: ORDEN ADMINISTRATIVA | AM129: 3702017 AD 3 OMA 30443500.0 | AN129: RENGLON 163, ACT PAA 25, VIGENCIA FUTURA 2019, COMPENSACION Y LIQUIDACION-IVA OPERACIÓN MERCADO ABIERTO No 30443500 ADICIONAR EL CONTRATO No 370/2017 CON EL OBJETO DE PARA PRESTAR EL SERVICIO DE TRANSPORTE NTEGRAL (TERRESTRE, MARITIMO, FLUVIAL, AFORO
A130: 71290034 | B130: 0 | C130: 0 | D130: 252019 | E130: 252019 | F130: 12519 | G130: 2019-01-11 00:00:00 | H130: 2019-01-11 11:48:26 | I130: Con Obligacion | J130: 05 | K130: IDEAM-GG-SUBDIRECCION HIDROLOGIA | L130: C-3204-0900-3-0-3204050-02 | M130: ADQUISICIÓN DE BIENES Y SERVICIOS | N130: Nación | O130: OTROS RECURSOS DEL TESORO | P130: CSF | Q130: 94248000 | R130: 0 | S130: 94248000 | T130: 54264000 | U130: Cédula de Ciudadanía | V130: 71290034 | W130: ARBELAEZ SALAZAR JULIAN DARIO | X130: Abono en cuenta | Y130: Ahorro | Z130: 10015284674 | AA130: Activa | AB130: 890903938 | AC130: BANCOLOMBIA S.A. | AD130: 17619 | AE130: 17019 | AF130: 12519 | AG130: 52219, 90519, 145019, 201019, 266419 | AH130: 151619, 206719, 266019, 324019, 387819 | AI130: 24650719, 46648019, 80333019, 107500919, 144540719 | AK130: 2019-01-11 00:00:00 | AL130: CONTRATO DE PRESTACION DE SERVICIOS - PROFESIONALES | AM130: 0252019 | AN130: RENGLÓN 01, ACT PAA 003, PRESTAR LOS SERVICIOS PROFESIONALES PARA ARTICULAR EL PROCEDIMIENTO DE EVALUACIÓN DE LA AMENAZA POR AVENIDAS TORRENCIALES CONFORME A LOS LINEAMIENTOS DE LA SUBDIRECCIÓN DE HIDROLOGÍA
A131: 52656996 | B131: 0 | C131: 0 | D131: 262019 | E131: 262019 | F131: 12619 | G131: 2019-01-11 00:00:00 | H131: 2019-01-11 14:03:16 | I131: Con Obligacion | J131: 02 | K131: IDEAM-GG-SECRETARIA GENERAL | L131: A-02-02-02-008 | M131: SERVICIOS PRESTADOS A LAS EMPRESAS Y SERVICIOS DE PRODUCCIÓN | N131: Propios | O131: OTROS RECURSOS DE TESORERIA | P131: CSF | Q131: 60200000 | R131: 0 | S131: 60200000 | T131: 36120000 | U131: Cédula de Ciudadanía | V131: 52656996 | W131: RANGEL ALFONSO YURI MARGARITA | X131: Abono en cuenta | Y131: Ahorro | Z131: 0318050770 | AA131: Activa | AB131: 860003020 | AC131: BANCO BILBAO VIZCAYA ARGENTARIA COLOMBIA S.A. BBVA | AD131: 3819 | AE131: 5319 | AF131: 12619 | AG131: 18219, 74319, 127919, 182919, 245819 | AH131: 75419, 189519, 246719, 305019, 367219 | AI131: 20138419, 39147619, 70599319, 102316819, 138073019 | AK131: 2019-01-11 00:00:00 | AL131: CONTRATO DE PRESTACION DE SERVICIOS - PROFESIONALES | AM131: 0262019 | AN131: RENGLON 047, ACT PAA 00, PRESTAR LOS SERVICIOS PROFESIONALES EN EL GRUPO DE CONTABILIDAD, REALIZANDO EL ANÁLISIS Y LOS REGISTROS CONTABLES MEDIANTE AJUSTES A LAS CUENTAS DEL BALANCE ASIGNADAS, EN EL SISTEMA INTEGRADO DE INFORMAC
A132: 1049606753 | B132: 0 | C132: 0 | D132: 272019 | E132: 272019 | F132: 12719 | G132: 2019-01-11 00:00:00 | H132: 2019-01-11 14:49:54 | I132: Con Obligacion | J132: 02 | K132: IDEAM-GG-SECRETARIA GENERAL | L132: A-02-02-02-008 | M132: SERVICIOS PRESTADOS A LAS EMPRESAS Y SERVICIOS DE PRODUCCIÓN | N132: Nación | O132: RECURSOS CORRIENTES | P132: CSF | Q132: 53900000 | R132: 0 | S132: 53900000 | T132: 32340000 | U132: Cédula de Ciudadanía | V132: 1049606753 | W132: PERILLA NOVOA WALTER STEVEN | X132: Abono en cuenta | Y132: Ahorro | Z132: 462900066467 | AA132: Activa | AB132: 860034313 | AC132: BANCO DAVIVIENDA S.A. | AD132: 4219 | AE132: 5619 | AF132: 12719 | AG132: 19219, 75119, 129219, 188819, 253419 | AH132: 16719, 190319, 247419, 310919, 374319 | AI132: 16771019, 39152819, 71394019, 104282219, 140483219 | AK132: 2019-01-11 00:00:00 | AL132: CONTRATO DE PRESTACION DE SERVICIOS - PROFESIONALES | AM132: 0272019 | AN132: RENGLON 050, ACT PAA 00, PRESTAR LOS SERVICIOS PROFESIONALES PARA LA ESTRUCTURACIÓN TÉCNICA DE LOS PROCESOS CONTRACTUALES A CARGO DEL GRUPO DE SERVICIOS ADMINISTRATIVOS, APOYO A LA SUPERVISIÓN Y LIQUIDACIÓN DE CONTRATOS ASÍ COM
A133: 5832198 | B133: 0 | C133: 0 | D133: 282019 | E133: 282019 | F133: 12819 | G133: 2019-01-11 00:00:00 | H133: 2019-01-11 15:20:46 | I133: Con Obligacion | J133: 02 | K133: IDEAM-GG-SECRETARIA GENERAL | L133: A-02-02-02-008 | M133: SERVICIOS PRESTADOS A LAS EMPRESAS Y SERVICIOS DE PRODUCCIÓN | N133: Propios | O133: OTROS RECURSOS DE TESORERIA | P133: CSF | Q133: 60200000 | R133: -55556000 | S133: 4644000 | T133: 0 | U133: Cédula de Ciudadanía | V133: 5832198 | W133: VINCOS PINZON HENRY | X133: Abono en cuenta | Y133: Ahorro | Z133: 38962732159 | AA133: Activa | AB133: 890903938 | AC133: BANCOLOMBIA S.A. | AD133: 9219 | AE133: 7519 | AF133: 12819 | AG133: 47619, 77019 | AH133: 81119, 192819 | AI133: 23122119, 39935219 | AK133: 2019-01-11 00:00:00 | AL133: CONTRATO DE PRESTACION DE SERVICIOS - PROFESIONALES | AM133: 0282019 | AN133: RENGLON 092, ACT PAA 00, PRESTAR LOS SERVICIOS PROFESIONALES PARA ORGANIZAR, CONTROLAR Y HACER SEGUIMIENTO CONTABLE DE LOS REGISTROS DE LOS BIENES Y ELEMENTOS DEVOLUTIVOS Y DE CONSUMO, ASÍ COMO GENERAR LAS DEPRECIACIONES MENSUAL
A134: 830122566 | B134: 0 | C134: 0 | D134: 0 | E134: 0 | F134: 12919 | G134: 2019-01-11 00:00:00 | H134: 2019-01-11 15:23:32 | I134: Con Obligacion | J134: 02 | K134: IDEAM-GG-SECRETARIA GENERAL | L134: A-02-02-02-008 | M134: SERVICIOS PRESTADOS A LAS EMPRESAS Y SERVICIOS DE PRODUCCIÓN | N134: Nación | O134: RECURSOS CORRIENTES | P134: CSF | Q134: 3320640 | R134: 0 | S134: 3320640 | T134: 0 | U134: NIT | V134: 830122566 | W134: COLOMBIA TELECOMUNICACIONES S.A. E.S.P. | X134: Abono en cuenta | Y134: Corriente | Z134: 000358572 | AA134: Activa | AB134: 860002964 | AC134: BANCO DE BOGOTA S. A. | AD134: 9319 | AE134: 8719 | AF134: 12919 | AG134: 3419 | AH134: 3419 | AI134: 1822519 | AK134: 2019-01-11 00:00:00 | AL134: FACTURA | AM134: EC-190451983 | AN134: ORFEO 20192060000173, FACTURA DE 27 DICIEMBRE A 26 ENER0/2019, PRESTADO EN BOGOTA, PAGO A TELEFONICA MOVISTAR, CONCEPTO: SERVICIO TELEFONIA CELULAR SEDE PRINCIPAL
A135: 1110452773 | B135: 0 | C135: 0 | D135: 292019 | E135: 292019 | F135: 13019 | G135: 2019-01-11 00:00:00 | H135: 2019-01-11 17:41:19 | I135: Con Obligacion | J135: 02 | K135: IDEAM-GG-SECRETARIA GENERAL | L135: A-02-02-02-008 | M135: SERVICIOS PRESTADOS A LAS EMPRESAS Y SERVICIOS DE PRODUCCIÓN | N135: Propios | O135: OTROS RECURSOS DE TESORERIA | P135: CSF | Q135: 80500000 | R135: 0 | S135: 80500000 | T135: 48300000 | U135: Cédula de Ciudadanía | V135: 1110452773 | W135: TOVAR LUCUARA CESAR AUGUSTO | X135: Abono en cuenta | Y135: Ahorro | Z135: 14172971238 | AA135: Activa | AB135: 890903938 | AC135: BANCOLOMBIA S.A. | AD135: 3119 | AE135: 4819 | AF135: 13019 | AG135: 22419, 95719, 149819, 201819, 276519 | AH135: 75719, 211919, 267419, 325019, 396319 | AI135: 20140619, 46659219, 80348719, 108429419, 146184319 | AK135: 2019-01-11 00:00:00 | AL135: CONTRATO DE PRESTACION DE SERVICIOS - PROFESIONALES | AM135: 0292019 | AN135: RENGLON 042, ACT PAA 00, BRINDAR APOYO A LA SECRETARÍA GENERAL EN LAS TEMÁTICAS, CONTABLES Y TRIBUTARIAS DE LA ENTIDAD.
A136: 52771915 | B136: 0 | C136: 0 | D136: 312019 | E136: 312019 | F136: 13119 | G136: 2019-01-11 00:00:00 | H136: 2019-01-11 17:57:09 | I136: Con Obligacion | J136: 02 | K136: IDEAM-GG-SECRETARIA GENERAL | L136: A-02-02-02-008 | M136: SERVICIOS PRESTADOS A LAS EMPRESAS Y SERVICIOS DE PRODUCCIÓN | N136: Nación | O136: RECURSOS CORRIENTES | P136: CSF | Q136: 25900000 | R136: 0 | S136: 25900000 | T136: 15540000 | U136: Cédula de Ciudadanía | V136: 52771915 | W136: RODRIGUEZ BABATIVA ARLETH JOHANA | X136: Abono en cuenta | Y136: Ahorro | Z136: 24065972184 | AA136: Activa | AB136: 860007335 | AC136: BCSC S A | AD136: 2219 | AE136: 4019 | AF136: 13119 | AG136: 21219, 21319, 78319, 147319, 186119, 253919 | AH136: 24819, 194319, 267119, 308319, 374719 | AI136: 17931419, 41276419, 80345319, 104277019, 140484319 | AK136: 2019-01-11 00:00:00 | AL136: CONTRATO DE PRESTACION DE SERVICIOS | AM136: 0312019 | AN136: RENGLON 034, ACT PAA 00, PRESTAR LOS SERVICIOS DE APOYO A LA GESTIÓN EN LA OFICINA ASESORA JURÍDICA DEL INSTITUTO, CON EL FIN DE ORGANIZAR, ACTUALIZAR Y CONCRETAR LAS TRANFERENCIAS AL ARCHIVO CENTRAL DE LOS EXPEDIENTES DE CONVEN
A137: 52853198 | B137: 0 | C137: 0 | D137: 322019 | E137: 322019 | F137: 13219 | G137: 2019-01-11 00:00:00 | H137: 2019-01-11 18:32:05 | I137: Con Obligacion | J137: 02 | K137: IDEAM-GG-SECRETARIA GENERAL | L137: A-02-02-02-008 | M137: SERVICIOS PRESTADOS A LAS EMPRESAS Y SERVICIOS DE PRODUCCIÓN | N137: Nación | O137: RECURSOS CORRIENTES | P137: CSF | Q137: 23976000 | R137: 0 | S137: 23976000 | T137: 13896000 | U137: Cédula de Ciudadanía | V137: 52853198 | W137: MOLINA ANDREA MARCELA | X137: Abono en cuenta | Y137: Ahorro | Z137: 24051381330 | AA137: Activa | AB137: 860007335 | AC137: BCSC S A | AD137: 6219 | AE137: 8219 | AF137: 13219 | AG137: 55019, 78819, 129819, 186319, 253819 | AH137: 153019, 194819, 247819, 308619, 374619 | AI137: 25352119, 41279019, 71365819, 104277519, 140484019 | AK137: 2019-01-11 00:00:00 | AL137: CONTRATO DE PRESTACION DE SERVICIOS | AM137: 0322019 | AN137: RENGLON 066, ACT PAA 00, PRESTAR LOS SERVICIOS DE APOYO A LA GESTIÓN PARA LA OPORTUNA ATENCIÓN Y TRÁMITE DE SOLICITUDES DE INFORMACIÓN BÁSICA HIDROMETEOROLÓGICA ALLEGADAS A TRAVÉS DE LOS DISTINTOS CANALES DE ATENCIÓN AL CIUDADAN
A138: 860004875 | B138: 0 | C138: 0 | D138: 302019 | E138: 302019 | F138: 13319 | G138: 2019-01-11 00:00:00 | H138: 2019-01-11 18:41:51 | I138: Con Obligacion | J138: 02 | K138: IDEAM-GG-SECRETARIA GENERAL | L138: A-02-02-02-007 | M138: SERVICIOS FINANCIEROS Y SERVICIOS CONEXOS, SERVICIOS INMOBILIARIOS Y SERVICIOS DE LEASING | N138: Nación | O138: RECURSOS CORRIENTES | P138: CSF | Q138: 1438593014 | R138: 0 | S138: 1438593014 | T138: 250000000 | U138: NIT | V138: 860004875 | W138: HDI SEGUROS S A | X138: Abono en cuenta | Y138: Ahorro | Z138: 288843162 | AA138: Activa | AB138: 890300279 | AC138: BANCO DE OCCIDENTE | AD138: 219 | AE138: 2619 | AF138: 13319 | AG138: 110419, 120719 | AH138: 229319, 233219 | AI138: 55668919 | AK138: 2019-01-11 00:00:00 | AL138: POLIZAS | AM138: 0302019 | AN138: RENGLON 020, ACT PAA 00, CONTRATAR LOS SEGUROS QUE AMPARAN LOS INTERESES PATRIMONIALES ACTUALES Y FUTUROS, ASÍ COMO LOS BIENES DE PROPIEDAD DEL IDEAM, QUE ESTÉN BAJO SU RESPONSABILIDAD Y CUSTODIA, Y AQUELLOS QUE SEAN ADQUIRIDOS
A139: 52077790 | B139: 0 | C139: 0 | D139: 0 | E139: 0 | F139: 13419 | G139: 2019-01-13 00:00:00 | H139: 2019-01-13 10:56:46 | I139: Con Obligacion | J139: 02 | K139: IDEAM-GG-SECRETARIA GENERAL | L139: A-02-02-02-010 | M139: VIÁTICOS DE LOS FUNCIONARIOS EN COMISIÓN | N139: Nación | O139: RECURSOS CORRIENTES | P139: CSF | Q139: 263278 | R139: 0 | S139: 263278 | T139: 0 | U139: Cédula de Ciudadanía | V139: 52077790 | W139: GONZALEZ HERNANDEZ YOLANDA | X139: Abono en cuenta | Y139: Ahorro | Z139: 468300013744 | AA139: Activa | AB139: 860034313 | AC139: BANCO DAVIVIENDA S.A. | AD139: 8519 | AE139: 6819 | AF139: 13419 | AG139: 5819, 41519 | AH139: 74619 | AI139: 22213519 | AK139: 2019-01-13 00:00:00 | AL139: ACTO ADMINISTRATIVO | AM139: SOLICITUD COMISION 219 | AN139: ASISTIR A REUNION PMU HIDROITUANGO
A140: 5471060 | B140: 0 | C140: 0 | D140: 0 | E140: 0 | F140: 13519 | G140: 2019-01-13 00:00:00 | H140: 2019-01-13 10:58:56 | I140: Con Obligacion | J140: 02 | K140: IDEAM-GG-SECRETARIA GENERAL | L140: A-02-02-02-010 | M140: VIÁTICOS DE LOS FUNCIONARIOS EN COMISIÓN | N140: Nación | O140: RECURSOS CORRIENTES | P140: CSF | Q140: 150129 | R140: 0 | S140: 150129 | T140: 0 | U140: Cédula de Ciudadanía | V140: 5471060 | W140: CAICEDO CARRASCAL FABIAN MAURICIO | X140: Abono en cuenta | Y140: Ahorro | Z140: 24014130230 | AA140: Activa | AB140: 860007335 | AC140: BCSC S A | AD140: 8519 | AE140: 6819 | AF140: 13519 | AG140: 6619, 101819 | AH140: 217519 | AI140: 46619019 | AK140: 2019-01-13 00:00:00 | AL140: ACTO ADMINISTRATIVO | AM140: AUTORIZACIÓN DE COMISION 219 | AN140: ASISTIR A REUNION PMU HIDROITUANGO
A141: 830122566 | B141: 0 | C141: 0 | D141: 0 | E141: 0 | F141: 13619 | G141: 2019-01-14 00:00:00 | H141: 2019-01-14 11:20:23 | I141: Con Obligacion | J141: 02 | K141: IDEAM-GG-SECRETARIA GENERAL | L141: A-02-02-02-008 | M141: SERVICIOS PRESTADOS A LAS EMPRESAS Y SERVICIOS DE PRODUCCIÓN | N141: Nación | O141: RECURSOS CORRIENTES | P141: CSF | Q141: 176654 | R141: 0 | S141: 176654 | T141: 0 | U141: NIT | V141: 830122566 | W141: COLOMBIA TELECOMUNICACIONES S.A. E.S.P. | X141: Abono en cuenta | Y141: Corriente | Z141: 000358572 | AA141: Activa | AB141: 860002964 | AC141: BANCO DE BOGOTA S. A. | AD141: 8819 | AE141: 8819 | AF141: 13619 | AG141: 3319 | AH141: 3319 | AI141: 1760519 | AK141: 2019-01-14 00:00:00 | AL141: FACTURA | AM141: 252806677-806676 | AN141: ORFEO 20197040000093, FACTURA DE 01 DICIEMBRE A 31 DIC/2018, PRESTADO EN HUILA, PAGO A COLOMBIA TELECOMINICACIONES, CONCEPTO: SERVICIO TELEFONO AEROPUERTO Y OFICINAS NEIVA AOP. NO. 04
A142: 802007670 | B142: 0 | C142: 0 | D142: 1110181217008 | E142: 1110181217008 | F142: 13719 | G142: 2019-01-14 00:00:00 | H142: 2019-01-14 11:24:58 | I142: Con Obligacion | J142: 02 | K142: IDEAM-GG-SECRETARIA GENERAL | L142: A-02-02-02-006 | M142: SERVICIOS DE ALOJAMIENTO; SERVICIOS DE SUMINISTRO DE COMIDAS Y BEBIDAS; SERVICIOS DE TRANSPORTE; Y SERVICIOS DE DISTRIBUCIÓN DE ELECTRICIDAD, GAS Y AGUA | N142: Nación | O142: RECURSOS CORRIENTES | P142: CSF | Q142: 1342860 | R142: 0 | S142: 1342860 | T142: 0 | U142: NIT | V142: 802007670 | W142: ELECTRIFICADORA DEL CARIBE S.A. E.S.P. | X142: Giro | AD142: 8619 | AE142: 6919 | AF142: 13719 | AG142: 3219 | AH142: 3219 | AI142: 1678519 | AK142: 2019-01-14 00:00:00 | AL142: FACTURA | AM142: 1110181217008 | AN142: ORFEO 20197020000063, FACTURA DE 06 NOVIEMBRE A 05 DIC/2018, PRESTADO EN ATLANTICO, PAGO A ELECTRICARIBE S.A. ESP., CONCEPTO: SERVICIO ENERGIA SEDE B/QUILLA AOP. NO. 02
A143: 802007670 | B143: 0 | C143: 0 | D143: 34101812065420 | E143: 34101812065420 | F143: 13819 | G143: 2019-01-14 00:00:00 | H143: 2019-01-14 11:34:47 | I143: Con Obligacion | J143: 02 | K143: IDEAM-GG-SECRETARIA GENERAL | L143: A-02-02-02-006 | M143: SERVICIOS DE ALOJAMIENTO; SERVICIOS DE SUMINISTRO DE COMIDAS Y BEBIDAS; SERVICIOS DE TRANSPORTE; Y SERVICIOS DE DISTRIBUCIÓN DE ELECTRICIDAD, GAS Y AGUA | N143: Nación | O143: RECURSOS CORRIENTES | P143: CSF | Q143: 1732750 | R143: 0 | S143: 1732750 | T143: 0 | U143: NIT | V143: 802007670 | W143: ELECTRIFICADORA DEL CARIBE S.A. E.S.P. | X143: Giro | AD143: 8619 | AE143: 6919 | AF143: 13819 | AG143: 3019 | AH143: 3019 | AI143: 1675819 | AK143: 2019-01-14 00:00:00 | AL143: FACTURA | AM143: 34101812065420 | AN143: ORFEO 20197050000042, FACTURA DE 17 NOVIEMBRE A 17 DIC/2018, PRESTADO EN MAGDALENA, PAGO A ELECTRICARIBE S.A. ESP., CONCEPTO: SERVICIO ENERGIA E IMPUESTO ALUMBRADO PUBLICO SEDE SANTA AMRTA AOP. NO. 05
A144: 819000939 | B144: 0 | C144: 0 | D144: 34101812065420 | E144: 34101812065420 | F144: 13919 | G144: 2019-01-14 00:00:00 | H144: 2019-01-14 11:37:52 | I144: Con Obligacion | J144: 02 | K144: IDEAM-GG-SECRETARIA GENERAL | L144: A-02-02-02-009 | M144: SERVICIOS PARA LA COMUNIDAD, SOCIALES Y PERSONALES | N144: Nación | O144: RECURSOS CORRIENTES | P144: CSF | Q144: 45030 | R144: 0 | S144: 45030 | T144: 0 | U144: NIT | V144: 819000939 | W144: INTERASEO SA ESP | X144: Giro | AD144: 9419 | AE144: 7119 | AF144: 13919 | AG144: 3119 | AH144: 3119 | AI144: 1677019 | AK144: 2019-01-14 00:00:00 | AL144: FACTURA | AM144: 34101812065420 | AN144: ORFEO 20197050000042, FACTURA DE 17 NOVIEMBRE A 17 DIC/2018, PRESTADO EN MAGDALENA, PAGO A INTERASEO, CONCEPTO: SERVICIO ASEO SEDE SANTA MARTA AOP. NO. 05
A145: =+V145+0 -> 892000265 | B145: =IFERROR(MID(AM145,SEARCH("CTO.",AM145)+5,7),0) -> 0 | C145: =IFERROR(MID(AM145,SEARCH("CTO ",AM145)+4,7),0) -> 0 | D145: =IFERROR(AM145+0,0) -> 21483671 | E145: =B145+C145+D145 -> 21483671 | F145: 14019 | G145: 2019-01-14 00:00:00 | H145: 2019-01-14 11:43:08 | I145: Con Obligacion | J145: 02 | K145: IDEAM-GG-SECRETARIA GENERAL | L145: A-02-02-02-009 | M145: SERVICIOS PARA LA COMUNIDAD, SOCIALES Y PERSONALES | N145: Nación | O145: RECURSOS CORRIENTES | P145: CSF | Q145: 12460 | R145: 0 | S145: 12460 | T145: 0 | U145: NIT | V145: 892000265 | W145: EMPRESA DE ACUEDUCTO Y ALCANTARILLADO DE VILLAVICENCIO E.S.P. | X145: Abono en cuenta | Y145: Ahorro | Z145: 364141978 | AA145: Activa | AB145: 860002964 | AC145: BANCO DE BOGOTA S. A. | AD145: 9419 | AE145: 7119 | AF145: 14019 | AG145: 2919 | AH145: 2919 | AI145: 1776819 | AK145: 2019-01-14 00:00:00 | AL145: FACTURA | AM145: 21483671 | AN145: ORFEO 20197030000032, FACTURA DE 03 DICIEMBRE A 02 ENER/2019, PRESTADO EN META, PAGO A EAAV, CONCEPTO: SERVICIO ACUEDUCTO Y ALCANTARILLADO SEDE VILLAVICENCIO AOP. NO. 03
A146: 892000265 | B146: 0 | C146: 0 | D146: 21486812 | E146: 21486812 | F146: 14119 | G146: 2019-01-14 00:00:00 | H146: 2019-01-14 13:45:03 | I146: Con Obligacion | J146: 02 | K146: IDEAM-GG-SECRETARIA GENERAL | L146: A-02-02-02-009 | M146: SERVICIOS PARA LA COMUNIDAD, SOCIALES Y PERSONALES | N146: Nación | O146: RECURSOS CORRIENTES | P146: CSF | Q146: 48370 | R146: 0 | S146: 48370 | T146: 0 | U146: NIT | V146: 892000265 | W146: EMPRESA DE ACUEDUCTO Y ALCANTARILLADO DE VILLAVICENCIO E.S.P. | X146: Abono en cuenta | Y146: Ahorro | Z146: 364141978 | AA146: Activa | AB146: 860002964 | AC146: BANCO DE BOGOTA S. A. | AD146: 9419 | AE146: 7119 | AF146: 14119 | AG146: 2719 | AH146: 2719 | AI146: 1789619 | AK146: 2019-01-14 00:00:00 | AL146: FACTURA | AM146: 21486812 | AN146: ORFEO 20197030000042, FACTURA DE 03 DICIEMBRE A 02 ENE/2019, PRESTADO EN META, PAGO A EAAV, CONCEPTO: SERVICIO ACUEDUCTO Y ALCANTARILLADO SEDE VILLAVICENCIO AOP. NO. 03
A147: 830122566 | B147: 0 | C147: 0 | D147: 2000000251531870 | E147: 2000000251531870 | F147: 14219 | G147: 2019-01-14 00:00:00 | H147: 2019-01-14 13:53:52 | I147: Con Obligacion | J147: 02 | K147: IDEAM-GG-SECRETARIA GENERAL | L147: A-02-02-02-008 | M147: SERVICIOS PRESTADOS A LAS EMPRESAS Y SERVICIOS DE PRODUCCIÓN | N147: Nación | O147: RECURSOS CORRIENTES | P147: CSF | Q147: 1025233 | R147: 0 | S147: 1025233 | T147: 0 | U147: NIT | V147: 830122566 | W147: COLOMBIA TELECOMUNICACIONES S.A. E.S.P. | X147: Abono en cuenta | Y147: Corriente | Z147: 000358572 | AA147: Activa | AB147: 860002964 | AC147: BANCO DE BOGOTA S. A. | AD147: 8819 | AE147: 8819 | AF147: 14219 | AG147: 2819 | AH147: 2819 | AI147: 1800719 | AK147: 2019-01-14 00:00:00 | AL147: FACTURA | AM147: 2000000251531873 | AN147: ORFEO 20199910002222, FACTURA DE 01 DICIEMBRE A 31 DIC/2018, PRESTADO EN BOGOTA, PAGO A TELEFONICA MOVISTAR, CONCEPTO: SERVICIO TELEFONO AEROPUERTOS ARACUA-B/QUILLA IBAGUE LETICIA PASTO PUERTO CAREÑO QUIBDO RIOHACHA V/LLAVO SAN ANDRES SOLEDAD
A148: 80163989 | B148: 0 | C148: 0 | D148: 332019 | E148: 332019 | F148: 14319 | G148: 2019-01-14 00:00:00 | H148: 2019-01-14 16:32:54 | I148: Con Obligacion | J148: 02 | K148: IDEAM-GG-SECRETARIA GENERAL | L148: A-02-02-02-008 | M148: SERVICIOS PRESTADOS A LAS EMPRESAS Y SERVICIOS DE PRODUCCIÓN | N148: Propios | O148: OTROS RECURSOS DE TESORERIA | P148: CSF | Q148: 52050000 | R148: 0 | S148: 52050000 | T148: 31500000 | U148: Cédula de Ciudadanía | V148: 80163989 | W148: SEGURA MEDINA CARLOS ANDRES | X148: Abono en cuenta | Y148: Ahorro | Z148: 19122001426 | AA148: Activa | AB148: 890903938 | AC148: BANCOLOMBIA S.A. | AD148: 3519 | AE148: 5119 | AF148: 14319 | AG148: 42419, 75019, 129919, 185919, 248919 | AH148: 76019, 190219, 247919, 308119, 371119 | AI148: 20142819, 39155619, 71367919, 102344819, 138081019 | AK148: 2019-01-14 00:00:00 | AL148: CONTRATO DE PRESTACION DE SERVICIOS - PROFESIONALES | AM148: 0332019 | AN148: RENGLON 045, ACT PAA 00, PRESTACIÓN DE SERVICIOS PROFESIONALES PARA APOYAR AL GRUPO DE TESORERÍA EN EL REGISTRO DE SIIF NACIÓN DE LOS INGRESOS PERCIBIDOS POR EL IDEAM, LOS IMPUESTOS GENERADOS Y SUS RESPECTIVAS DECLARACIONES, ASÍ
A149: 53084422 | B149: 0 | C149: 0 | D149: 342019 | E149: 342019 | F149: 14419 | G149: 2019-01-14 00:00:00 | H149: 2019-01-14 16:49:30 | I149: Con Obligacion | J149: 02 | K149: IDEAM-GG-SECRETARIA GENERAL | L149: A-02-02-02-008 | M149: SERVICIOS PRESTADOS A LAS EMPRESAS Y SERVICIOS DE PRODUCCIÓN | N149: Nación | O149: RECURSOS CORRIENTES | P149: CSF | Q149: 74952000 | R149: 0 | S149: 74952000 | T149: 45360000 | U149: Cédula de Ciudadanía | V149: 53084422 | W149: ARDILA SANCHEZ JULIETTE | X149: Abono en cuenta | Y149: Ahorro | Z149: 038563904 | AA149: Activa | AB149: 860002964 | AC149: BANCO DE BOGOTA S. A. | AD149: 1519 | AE149: 3419 | AF149: 14419 | AG149: 54119, 82519, 129719, 186519, 257119 | AH149: 152219, 198619, 247719, 308819, 377519 | AI149: 24651019, 44821819, 71383919, 104278119, 144535519 | AK149: 2019-01-14 00:00:00 | AL149: CONTRATO DE PRESTACION DE SERVICIOS - PROFESIONALES | AM149: 0342019 | AN149: RENGLON 028, ACT PAA 00, PRESTAR LOS SERVICIOS PROFESIONALES EN LA OFICINA ASESORA JURÍDICA DEL INSTITUTO EN ASUNTOS DE CARÁCTER PRECONTRACTUAL, CONTRACTUAL Y POST-CONTRACTUAL QUE SE REQUIERAN.
A150: 80765859 | B150: 0 | C150: 0 | D150: 352019 | E150: 352019 | F150: 14519 | G150: 2019-01-14 00:00:00 | H150: 2019-01-14 17:03:49 | I150: Con Obligacion | J150: 02 | K150: IDEAM-GG-SECRETARIA GENERAL | L150: A-02-02-02-008 | M150: SERVICIOS PRESTADOS A LAS EMPRESAS Y SERVICIOS DE PRODUCCIÓN | N150: Nación | O150: RECURSOS CORRIENTES | P150: CSF | Q150: 74952000 | R150: 0 | S150: 74952000 | T150: 45360000 | U150: Cédula de Ciudadanía | V150: 80765859 | W150: ORTIZ TORRES ALFONSO DAVID | X150: Abono en cuenta | Y150: Ahorro | Z150: 049160153 | AA150: Activa | AB150: 860002964 | AC150: BANCO DE BOGOTA S. A. | AD150: 1619 | AE150: 3519 | AF150: 14519 | AG150: 52419, 52519, 90619, 143119, 195619, 195719, 272319 | AH150: 151219, 206819, 254419, 318219, 393119 | AI150: 24650419, 46648419, 74097819, 105728719, 146161519 | AK150: 2019-01-14 00:00:00 | AL150: CONTRATO DE PRESTACION DE SERVICIOS - PROFESIONALES | AM150: 0352019 | AN150: RENGLON 029, ACT PAA 00, PRESTAR LOS SERVICIOS PROFESIONALES EN LA OFICINA ASESORA JURÍDICA DEL INSTITUTO EN ASUNTOS DE CARÁCTER PRECONTRACTUAL, CONTRACTUAL Y POST-CONTRACTUAL QUE SE REQUIERAN.
A151: 79332230 | B151: 0 | C151: 0 | D151: 362019 | E151: 362019 | F151: 14619 | G151: 2019-01-14 00:00:00 | H151: 2019-01-14 17:15:05 | I151: Con Obligacion | J151: 02 | K151: IDEAM-GG-SECRETARIA GENERAL | L151: A-02-02-02-008 | M151: SERVICIOS PRESTADOS A LAS EMPRESAS Y SERVICIOS DE PRODUCCIÓN | N151: Nación | O151: RECURSOS CORRIENTES | P151: CSF | Q151: 34700000 | R151: 0 | S151: 34700000 | T151: 21000000 | U151: Cédula de Ciudadanía | V151: 79332230 | W151: PULIDO DOMINGUEZ JAIME | X151: Abono en cuenta | Y151: Ahorro | Z151: 19347031095 | AA151: Activa | AB151: 890903938 | AC151: BANCOLOMBIA S.A. | AD151: 4919 | AE151: 6219 | AF151: 14619 | AG151: 54019, 75319, 130619, 186919, 254919 | AH151: 152119, 191119, 248419, 309219, 375719 | AI151: 25340219, 39907519, 71381219, 104279119, 140487819 | AK151: 2019-01-14 00:00:00 | AL151: CONTRATO DE PRESTACION DE SERVICIOS | AM151: 0362019 | AN151: RENGLON 056, ACT PAA 00, PRESTAR SERVICIOS DE APOYO AL SEGUIMIENTO DE LA EJECUCIÓN DE LOS CONTRATOS SUPERVISADOS POR EL GRUPO DE SERVICIOS ADMINISTRATIVOS
A152: 1058846517 | B152: 0 | C152: 0 | D152: 0 | E152: 0 | F152: 14719 | G152: 2019-01-14 00:00:00 | H152: 2019-01-14 18:34:23 | I152: Con Obligacion | J152: 02 | K152: IDEAM-GG-SECRETARIA GENERAL | L152: A-02-02-02-010 | M152: VIÁTICOS DE LOS FUNCIONARIOS EN COMISIÓN | N152: Nación | O152: RECURSOS CORRIENTES | P152: CSF | Q152: 1148240 | R152: 0 | S152: 1148240 | T152: 0 | U152: Cédula de Ciudadanía | V152: 1058846517 | W152: EDGAR FERNANDO GARZON ARIAS | X152: Abono en cuenta | Y152: Ahorro | Z152: 37270222666 | AA152: Activa | AB152: 860034313 | AC152: BANCO DAVIVIENDA S.A. | AD152: 8519 | AE152: 6819 | AF152: 14719 | AG152: 37519 | AH152: 33119, 184519 | AI152: 34995119 | AK152: 2019-01-14 00:00:00 | AL152: ACTO ADMINISTRATIVO | AM152: SOLCITUD 319 | AN152: OPERACIÓN, MANTENIMIENTO Y MONITOREO DE ESTACIONES CON INFLUENCIA EN HIDROITUANGO
A153: 43086033 | B153: 0 | C153: 0 | D153: 0 | E153: 0 | F153: 14819 | G153: 2019-01-14 00:00:00 | H153: 2019-01-14 18:36:37 | I153: Con Obligacion | J153: 02 | K153: IDEAM-GG-SECRETARIA GENERAL | L153: A-02-02-02-010 | M153: VIÁTICOS DE LOS FUNCIONARIOS EN COMISIÓN | N153: Nación | O153: RECURSOS CORRIENTES | P153: CSF | Q153: 1621146 | R153: 0 | S153: 1621146 | T153: 0 | U153: Cédula de Ciudadanía | V153: 43086033 | W153: DEL GALLEGO MARQUEZ GLADYS ESTHER | X153: Abono en cuenta | Y153: Ahorro | Z153: 10170103721 | AA153: Activa | AB153: 890903938 | AC153: BANCOLOMBIA S.A. | AD153: 8519 | AE153: 6819 | AF153: 14819 | AG153: 41419 | AH153: 74519 | AI153: 22212919 | AK153: 2019-01-14 00:00:00 | AL153: ACTO ADMINISTRATIVO | AM153: SOLICITUD 319 | AN153: OPERACIÓN, MANTENIMIENTO Y MONITOREO DE ESTACIONES CON INFLUENCIA EN HIDROITUANGO
A154: 79885613 | B154: 0 | C154: 0 | D154: 0 | E154: 0 | F154: 14919 | G154: 2019-01-14 00:00:00 | H154: 2019-01-14 18:38:21 | I154: Con Obligacion | J154: 04 | K154: IDEAM-GG-DG.OFICINA DEL SERVICIO DE PRONOSTICOS Y ALERTAS | L154: C-3204-0900-3-0-3204047-02 | M154: ADQUISICIÓN DE BIENES Y SERVICIOS | N154: Nación | O154: OTROS RECURSOS DEL TESORO | P154: CSF | Q154: 985545 | R154: 0 | S154: 985545 | T154: 0 | U154: Cédula de Ciudadanía | V154: 79885613 | W154: MARTINEZ MERCADO ALEXANDER MARCIAL | X154: Abono en cuenta | Y154: Ahorro | Z154: 69856084329 | AA154: Activa | AB154: 890903938 | AC154: BANCOLOMBIA S.A. | AD154: 18219 | AE154: 17819 | AF154: 14919 | AG154: 100819, 101019, 155719 | AH154: 216619, 216719, 272519 | AI154: 80055819 | AK154: 2019-01-14 00:00:00 | AL154: ACTO ADMINISTRATIVO | AM154: SOLICITUD 419 | AN154: APOYO AL CRPA MEDELLIN, EN RAZÓN A CONTIGENCIA HIDROITUANGO.
A155: 891180010 | B155: 0 | C155: 0 | D155: 45440184 | E155: 45440184 | F155: 15019 | G155: 2019-01-15 00:00:00 | H155: 2019-01-15 10:22:54 | I155: Con Obligacion | J155: 02 | K155: IDEAM-GG-SECRETARIA GENERAL | L155: A-02-02-02-009 | M155: SERVICIOS PARA LA COMUNIDAD, SOCIALES Y PERSONALES | N155: Nación | O155: RECURSOS CORRIENTES | P155: CSF | Q155: 88250 | R155: 0 | S155: 88250 | T155: 0 | U155: NIT | V155: 891180010 | W155: EMPRESAS PUBLICAS DE NEIVA E.S.P. | X155: Giro | AD155: 9419 | AE155: 7119 | AF155: 15019 | AG155: 4019 | AH155: 3919 | AI155: 2469719 | AK155: 2019-01-15 00:00:00 | AL155: FACTURA | AM155: 45440184 | AN155: ORFEO 20197040000113, FACTURA DE 02 DICIEMBRE/2018 A 02 ENERO/2019, PRESTADO EN HUILA, PAGO A EMRESAS PUBLICAS DE NEIVA ESP., CONCEPTO: SERVICIO ACUEDUCTO-ALCANTARILLADO SEDE NEIVA AOP. NO. 04
A156: 900674866 | B156: 0 | C156: 0 | D156: 45440184 | E156: 45440184 | F156: 15119 | G156: 2019-01-15 00:00:00 | H156: 2019-01-15 10:25:57 | I156: Con Obligacion | J156: 02 | K156: IDEAM-GG-SECRETARIA GENERAL | L156: A-02-02-02-009 | M156: SERVICIOS PARA LA COMUNIDAD, SOCIALES Y PERSONALES | N156: Nación | O156: RECURSOS CORRIENTES | P156: CSF | Q156: 45260 | R156: 0 | S156: 45260 | T156: 0 | U156: NIT | V156: 900674866 | W156: CIUDAD LIMPIA NEIVA S.A E.S.P. | X156: Giro | AD156: 9419 | AE156: 7119 | AF156: 15119 | AG156: 4119 | AH156: 4019 | AI156: 2470419 | AK156: 2019-01-15 00:00:00 | AL156: FACTURA | AM156: 45440184 | AN156: ORFEO 20197040000113, FACTURA DE 02 DICIEMBRE/2018 A 02 ENERO/2019, PRESTADO EN HUILA, PAGO A CIUDAD LIMPIA, CONCEPTO: SERVICIO ASEO SEDE NEIVA AOP. NO. 04
A157: 890201210 | B157: 0 | C157: 0 | D157: 0 | E157: 0 | F157: 15219 | G157: 2019-01-15 00:00:00 | H157: 2019-01-15 10:39:40 | I157: Con Obligacion | J157: 02 | K157: IDEAM-GG-SECRETARIA GENERAL | L157: A-02-02-02-008 | M157: SERVICIOS PRESTADOS A LAS EMPRESAS Y SERVICIOS DE PRODUCCIÓN | N157: Nación | O157: RECURSOS CORRIENTES | P157: CSF | Q157: 700370 | R157: 0 | S157: 700370 | T157: 0 | U157: NIT | V157: 890201210 | W157: EMPRESA DE TELECOMUNICACIONES DE BUCARAMANGA S.A. E.S.P TELEBUCARAMANGA | X157: Abono en cuenta | Y157: Ahorro | Z157: 184604213 | AA157: Activa | AB157: 860002964 | AC157: BANCO DE BOGOTA S. A. | AD157: 8819 | AE157: 8819 | AF157: 15219 | AG157: 4319 | AH157: 4219 | AI157: 2496619 | AK157: 2019-01-15 00:00:00 | AL157: FACTURA | AM157: TBCL-987694 | AN157: ORFEO 20197080000163, FACTURA DE 01 NOVIEMBRE A 31 DIC/2018, PRESTADO EN SANTANDER, PAGO A EMPRESA DE TELECOMUNICACIONES DE BUCARAMANGA, CONCEPTO: SERVICIO TELEFONO LOCAL Y LARGA DISTANCIA SEDE BUCARAMANGA AOP. NO. 08
A158: 802007670 | B158: 0 | C158: 0 | D158: 93301811001231 | E158: 93301811001231 | F158: 15319 | G158: 2019-01-15 00:00:00 | H158: 2019-01-15 11:12:57 | I158: Con Obligacion | J158: 02 | K158: IDEAM-GG-SECRETARIA GENERAL | L158: A-02-02-02-006 | M158: SERVICIOS DE ALOJAMIENTO; SERVICIOS DE SUMINISTRO DE COMIDAS Y BEBIDAS; SERVICIOS DE TRANSPORTE; Y SERVICIOS DE DISTRIBUCIÓN DE ELECTRICIDAD, GAS Y AGUA | N158: Nación | O158: RECURSOS CORRIENTES | P158: CSF | Q158: 136470 | R158: 0 | S158: 136470 | T158: 0 | U158: NIT | V158: 802007670 | W158: ELECTRIFICADORA DEL CARIBE S.A. E.S.P. | X158: Giro | AD158: 8619 | AE158: 6919 | AF158: 15319 | AG158: 4519 | AH158: 4419 | AI158: 2462219 | AK158: 2019-01-15 00:00:00 | AL158: FACTURA | AM158: 93301811001231 | AN158: ORFEO 20199910002262, FACTURA DE 17 OCT/2018 A 19 NOV/2018, PRESTADO EN AOP. NO. 11, PAGO A ELECTRICARIBE S.A. ESP., CONCEPTO: ENERGIA E IMPUESTO ALUMBRADO PUBLICO SEDE RIOHACHA
A159: 819000939 | B159: 0 | C159: 0 | D159: 93301811001231 | E159: 93301811001231 | F159: 15419 | G159: 2019-01-15 00:00:00 | H159: 2019-01-15 11:17:45 | I159: Con Obligacion | J159: 02 | K159: IDEAM-GG-SECRETARIA GENERAL | L159: A-02-02-02-009 | M159: SERVICIOS PARA LA COMUNIDAD, SOCIALES Y PERSONALES | N159: Nación | O159: RECURSOS CORRIENTES | P159: CSF | Q159: 63210 | R159: 0 | S159: 63210 | T159: 0 | U159: NIT | V159: 819000939 | W159: INTERASEO SA ESP | X159: Giro | AD159: 9419 | AE159: 7119 | AF159: 15419 | AG159: 4219 | AH159: 4119 | AI159: 2461419 | AK159: 2019-01-15 00:00:00 | AL159: FACTURA | AM159: 93301811001231 | AN159: ORFEO 20199910002262, FACTURA DE 17 OCT/2018 A 19 NOV/2018, PRESTADO EN AOP. NO. 11, PAGO A INTERASEO , CONCEPTO: SERVICIO ASEO SEDE RIOHACHA AOP. NO. 11
A160: 830122566 | B160: 0 | C160: 0 | D160: 0 | E160: 0 | F160: 15519 | G160: 2019-01-15 00:00:00 | H160: 2019-01-15 11:22:42 | I160: Con Obligacion | J160: 02 | K160: IDEAM-GG-SECRETARIA GENERAL | L160: A-02-02-02-008 | M160: SERVICIOS PRESTADOS A LAS EMPRESAS Y SERVICIOS DE PRODUCCIÓN | N160: Nación | O160: RECURSOS CORRIENTES | P160: CSF | Q160: 243596 | R160: 0 | S160: 243596 | T160: 0 | U160: NIT | V160: 830122566 | W160: COLOMBIA TELECOMUNICACIONES S.A. E.S.P. | X160: Abono en cuenta | Y160: Corriente | Z160: 000358572 | AA160: Activa | AB160: 860002964 | AC160: BANCO DE BOGOTA S. A. | AD160: 9319 | AE160: 8719 | AF160: 15519 | AG160: 4419 | AH160: 4319 | AI160: 2478119 | AK160: 2019-01-15 00:00:00 | AL160: FACTURA | AM160: EC-14450554 | AN160: ORFEO 20199910001422, FACTURA DE 27 DICIEMBRE A 26 ENE/2019, PRESTADO EN BOGOTA, PAGO A TELEFONICA MOVISTAR, CONCEPTO: SRVICIO TELEFONIA CELULAR SEDE PRINCIPAL
A161: 1053605060 | B161: 0 | C161: 0 | D161: 372019 | E161: 372019 | F161: 15619 | G161: 2019-01-15 00:00:00 | H161: 2019-01-15 12:43:43 | I161: Con Obligacion | J161: 02 | K161: IDEAM-GG-SECRETARIA GENERAL | L161: A-02-02-02-008 | M161: SERVICIOS PRESTADOS A LAS EMPRESAS Y SERVICIOS DE PRODUCCIÓN | N161: Nación | O161: RECURSOS CORRIENTES | P161: CSF | Q161: 74736000 | R161: 0 | S161: 74736000 | T161: 45360000 | U161: Cédula de Ciudadanía | V161: 1053605060 | W161: BOSIGAS MARIA | X161: Abono en cuenta | Y161: Ahorro | Z161: 0042428672 | AA161: Activa | AB161: 860003020 | AC161: BANCO BILBAO VIZCAYA ARGENTARIA COLOMBIA S.A. BBVA | AD161: 1719 | AE161: 3619 | AF161: 15619 | AG161: 52019, 81119, 138819, 198619, 269019 | AH161: 151819, 197219, 253219, 321219, 388719 | AI161: 24650919, 43073619, 73610119, 107488219, 144541219 | AK161: 2019-01-15 00:00:00 | AL161: CONTRATO DE PRESTACION DE SERVICIOS - PROFESIONALES | AM161: 0372019 | AN161: RENGLON 030, ACT PAA 00, PRESTAR LOS SERVICIOS PROFESIONALES EN LA OFICINA ASESORA JURÍDICA DEL INSTITUTO EN ASUNTOS DE CARÁCTER PRECONTRACTUAL, CONTRACTUAL Y POST-CONTRACTUAL QUE SE REQUIERAN.
A162: 891200200 | B162: 0 | C162: 0 | D162: 0 | E162: 0 | F162: 15719 | G162: 2019-01-15 00:00:00 | H162: 2019-01-15 13:24:00 | I162: Con Obligacion | J162: 02 | K162: IDEAM-GG-SECRETARIA GENERAL | L162: A-02-02-02-006 | M162: SERVICIOS DE ALOJAMIENTO; SERVICIOS DE SUMINISTRO DE COMIDAS Y BEBIDAS; SERVICIOS DE TRANSPORTE; Y SERVICIOS DE DISTRIBUCIÓN DE ELECTRICIDAD, GAS Y AGUA | N162: Nación | O162: RECURSOS CORRIENTES | P162: CSF | Q162: 940450 | R162: 0 | S162: 940450 | T162: 0 | U162: NIT | V162: 891200200 | W162: CENTRALES ELECTRICAS DE NARIÑO S A E S P | X162: Abono en cuenta | Y162: Corriente | Z162: 88370106975 | AA162: Activa | AB162: 890903938 | AC162: BANCOLOMBIA S.A. | AD162: 8619 | AE162: 6919 | AF162: 15719 | AG162: 3719 | AH162: 3719 | AI162: 2469119 | AK162: 2019-01-15 00:00:00 | AL162: FACTURA | AM162: 1900293466-71 | AN162: ORFEO 20197070000123, FACTURA DE 30 NOVIEMBRE A 30 DIC/2018, PRESTADO EN NARIÑO, PAGO A CEDENAR, CONCEPTO: SERVICIO ENERGIA SEDE PASTO AOP. NO. 07
A163: 891200686 | B163: 0 | C163: 0 | D163: 17306686 | E163: 17306686 | F163: 15819 | G163: 2019-01-15 00:00:00 | H163: 2019-01-15 13:28:33 | I163: Con Obligacion | J163: 02 | K163: IDEAM-GG-SECRETARIA GENERAL | L163: A-02-02-02-009 | M163: SERVICIOS PARA LA COMUNIDAD, SOCIALES Y PERSONALES | N163: Nación | O163: RECURSOS CORRIENTES | P163: CSF | Q163: 70360 | R163: 0 | S163: 70360 | T163: 0 | U163: NIT | V163: 891200686 | W163: EMPRESA DE OBRAS SANITARIAS DE PASTO EMPOPASTO S.A. E.S.P. | X163: Abono en cuenta | Y163: Ahorro | Z163: 201258548 | AA163: Activa | AB163: 860035827 | AC163: BANCO COMERCIAL AV VILLAS S.A. | AD163: 9419 | AE163: 7119 | AF163: 15819 | AG163: 3519 | AH163: 3519 | AI163: 2449519 | AK163: 2019-01-15 00:00:00 | AL163: FACTURA | AM163: 17306686 | AN163: ORFEO 20197070000133, FACTURA DE 01 DICIEMBRE A 02 ENERO/2019, PRESTADO EN NARIÑO, PAGO A EMPOPASTO S.A. ESP., CONCEPTO: SERVICIO ACUEDUCTO Y ALCANTARILLADO SEDE PASTO AOP. NO. 07
A164: 814000704 | B164: 0 | C164: 0 | D164: 10701064 | E164: 10701064 | F164: 15919 | G164: 2019-01-15 00:00:00 | H164: 2019-01-15 13:31:40 | I164: Con Obligacion | J164: 02 | K164: IDEAM-GG-SECRETARIA GENERAL | L164: A-02-02-02-009 | M164: SERVICIOS PARA LA COMUNIDAD, SOCIALES Y PERSONALES | N164: Nación | O164: RECURSOS CORRIENTES | P164: CSF | Q164: 55460 | R164: 0 | S164: 55460 | T164: 0 | U164: NIT | V164: 814000704 | W164: EMPRESA METROPOLITANA DE ASEO DE PASTO S A ESP | X164: Abono en cuenta | Y164: Corriente | Z164: 21500252461 | AA164: Activa | AB164: 860007335 | AC164: BCSC S A | AD164: 9419 | AE164: 7119 | AF164: 15919 | AG164: 3619 | AH164: 3619 | AI164: 2455219 | AK164: 2019-01-15 00:00:00 | AL164: FACTURA | AM164: 10701064 | AN164: ORFEO 20197070000133, FACTURA DE 01 DICIEMBRE A 02 ENERO/2019, PRESTADO EN NARIÑO, PAGO A EMAS S.A. ESP., CONCEPTO: SERVICIO ASEO SED EPASTO AOP. NO. 07
A165: 4034984 | B165: 0 | C165: 0 | D165: 20198000000033 | E165: 20198000000033 | F165: 16019 | G165: 2019-01-15 00:00:00 | H165: 2019-01-15 16:46:39 | I165: Con Obligacion | J165: 02 | K165: IDEAM-GG-SECRETARIA GENERAL | L165: A-02-02-02-010 | M165: VIÁTICOS DE LOS FUNCIONARIOS EN COMISIÓN | N165: Nación | O165: RECURSOS CORRIENTES | P165: CSF | Q165: 1418414 | R165: 0 | S165: 1418414 | T165: 0 | U165: Cédula de Ciudadanía | V165: 4034984 | W165: ARCHBOLD ULLITTE LUCIO | X165: Abono en cuenta | Y165: Ahorro | Z165: 481100003137 | AA165: Activa | AB165: 800037800 | AC165: BANCO AGRARIO DE COLOMBIA S.A. | AD165: 8519 | AE165: 6819 | AF165: 16019 | AG165: 155819 | AH165: 272619 | AI165: 80056919 | AK165: 2019-01-15 00:00:00 | AL165: SOLICITUD | AM165: 20198000000033 | AN165: APOYAR LAS FUNCIONES DE OBSERVADOR DE SUPERFICIE EN EL AEROPUERTO ROJAS PINILLA DE LA CIUDAD DE S...
A166: 1010176291 | B166: 0 | C166: 0 | D166: 402019 | E166: 402019 | F166: 16119 | G166: 2019-01-15 00:00:00 | H166: 2019-01-15 17:24:02 | I166: Con Obligacion | J166: 02 | K166: IDEAM-GG-SECRETARIA GENERAL | L166: A-02-02-02-008 | M166: SERVICIOS PRESTADOS A LAS EMPRESAS Y SERVICIOS DE PRODUCCIÓN | N166: Propios | O166: OTROS RECURSOS DE TESORERIA | P166: CSF | Q166: 32178000 | R166: 0 | S166: 32178000 | T166: 19530000 | U166: Cédula de Ciudadanía | V166: 1010176291 | W166: LOPEZ CASTELLANOS DAVID | X166: Abono en cuenta | Y166: Ahorro | Z166: 035417229 | AA166: Activa | AB166: 860002964 | AC166: BANCO DE BOGOTA S. A. | AD166: 9119 | AE166: 7419 | AF166: 16119 | AG166: 42519, 42619, 76919, 130219, 182819, 247719 | AH166: 76119, 192719, 248119, 304919, 369819 | AI166: 20142219, 39932019, 71373319, 102316519, 138077919 | AK166: 2019-01-15 00:00:00 | AL166: CONTRATO DE PRESTACION DE SERVICIOS - PROFESIONALES | AM166: 0402019 | AN166: RENGLON 091, ACT PAA 00, PRESTAR LOS SERVICIOS OPERATIVOS EN EL MANEJO DE INVENTARIOS Y ALMACÉN, DEL GRUPO DE MANEJO Y CONTROL DE ALMACÉN E INVENTARIOS
A167: 52772242 | B167: 0 | C167: 0 | D167: 392019 | E167: 392019 | F167: 16219 | G167: 2019-01-15 00:00:00 | H167: 2019-01-15 17:31:15 | I167: Con Obligacion | J167: 02 | K167: IDEAM-GG-SECRETARIA GENERAL | L167: A-02-02-02-008 | M167: SERVICIOS PRESTADOS A LAS EMPRESAS Y SERVICIOS DE PRODUCCIÓN | N167: Propios | O167: OTROS RECURSOS DE TESORERIA | P167: CSF | Q167: 59512000 | R167: 0 | S167: 59512000 | T167: 36120000 | U167: Cédula de Ciudadanía | V167: 52772242 | W167: SALAVARRIETA TUNJO JOVANNA HASBLEIDY | X167: Abono en cuenta | Y167: Ahorro | Z167: 17223863051 | AA167: Activa | AB167: 890903938 | AC167: BANCOLOMBIA S.A. | AD167: 4019 | AE167: 5419 | AF167: 16219 | AG167: 42219, 74519, 128019, 183319, 245719 | AH167: 75819, 189719, 246819, 305319, 367119 | AI167: 20144119, 39144919, 71406919, 102317419, 138072619 | AK167: 2019-01-15 00:00:00 | AL167: CONTRATO DE PRESTACION DE SERVICIOS - PROFESIONALES | AM167: 0392019 | AN167: RENGLON 048, ACT PAA 00, PRESTAR LOS SERVICIOS PROFESIONALES EN EL GRUPO DE CONTABILIDAD, REALIZANDO EL ANÁLISIS Y LOS REGISTROS CONTABLES MEDIANTE AJUSTES A LAS CUENTAS DEL BALANCE ASIGNADAS, EN EL SISTEMA INTEGRADO DE INFORMAC
A168: 80770178 | B168: 0 | C168: 0 | D168: 382019 | E168: 382019 | F168: 16319 | G168: 2019-01-15 00:00:00 | H168: 2019-01-15 17:37:38 | I168: Con Obligacion | J168: 02 | K168: IDEAM-GG-SECRETARIA GENERAL | L168: A-02-02-02-008 | M168: SERVICIOS PRESTADOS A LAS EMPRESAS Y SERVICIOS DE PRODUCCIÓN | N168: Nación | O168: RECURSOS CORRIENTES | P168: CSF | Q168: 32178000 | R168: 0 | S168: 32178000 | T168: 19530000 | U168: Cédula de Ciudadanía | V168: 80770178 | W168: VELASQUEZ TORREJANO CARLOS EMILIO | X168: Abono en cuenta | Y168: Ahorro | Z168: 90010881390 | AA168: Activa | AB168: 860050750 | AC168: BANCO GNB SUDAMERIS S A | AD168: 4419 | AE168: 5819 | AF168: 16319 | AG168: 54219, 77219, 135419, 189419, 255719 | AH168: 152319, 192919, 252019, 311619, 376419 | AI168: 24651219, 41269719, 72841219, 104283119, 140489919 | AK168: 2019-01-15 00:00:00 | AL168: CONTRATO DE PRESTACION DE SERVICIOS | AM168: 0382019 | AN168: RENGLON 052, ACT PAA 00, PRESTAR LOS SERVICIOS EN EL GRUPO DE SERVICIOS ADMINISTRATIVOS EN LOS TEMAS RELACIONADOS CON EL SUMINISTRO DE TIQUETES EN EL IDEAM, ASÍ COMO LOS TRÁMITES DE LIQUIDACIÓN DE LOS IMPUESTOS PREDIALES E IMPUE
A169: 830122566 | B169: 0 | C169: 0 | D169: 0 | E169: 0 | F169: 16419 | G169: 2019-01-16 00:00:00 | H169: 2019-01-16 09:05:46 | I169: Con Obligacion | J169: 02 | K169: IDEAM-GG-SECRETARIA GENERAL | L169: A-02-02-02-008 | M169: SERVICIOS PRESTADOS A LAS EMPRESAS Y SERVICIOS DE PRODUCCIÓN | N169: Nación | O169: RECURSOS CORRIENTES | P169: CSF | Q169: 63546 | R169: 0 | S169: 63546 | T169: 0 | U169: NIT | V169: 830122566 | W169: COLOMBIA TELECOMUNICACIONES S.A. E.S.P. | X169: Abono en cuenta | Y169: Corriente | Z169: 000358572 | AA169: Activa | AB169: 860002964 | AC169: BANCO DE BOGOTA S. A. | AD169: 8819 | AE169: 8819 | AF169: 16419 | AG169: 4919 | AH169: 4819 | AI169: 2690519 | AK169: 2019-01-16 00:00:00 | AL169: FACTURA | AM169: 55808-00000028510128 | AN169: ORFEO 20199910002602, FACTURA DE 01 DICIEMBRE A 31 DIC/2018, PRESTADO EN MAGDALENA, PAGO A TELEFONICA MOVISTAR, CONCEPTO: SERVICIO TELEFONO AEROPUERTO RAFAEL NUÑEZ CARTAGENA AOP. NO. 05
A170: 830122566 | B170: 0 | C170: 0 | D170: 0 | E170: 0 | F170: 16519 | G170: 2019-01-16 00:00:00 | H170: 2019-01-16 09:09:35 | I170: Con Obligacion | J170: 02 | K170: IDEAM-GG-SECRETARIA GENERAL | L170: A-02-02-02-008 | M170: SERVICIOS PRESTADOS A LAS EMPRESAS Y SERVICIOS DE PRODUCCIÓN | N170: Nación | O170: RECURSOS CORRIENTES | P170: CSF | Q170: 59500 | R170: 0 | S170: 59500 | T170: 0 | U170: NIT | V170: 830122566 | W170: COLOMBIA TELECOMUNICACIONES S.A. E.S.P. | X170: Abono en cuenta | Y170: Corriente | Z170: 000358572 | AA170: Activa | AB170: 860002964 | AC170: BANCO DE BOGOTA S. A. | AD170: 8819 | AE170: 8819 | AF170: 16519 | AG170: 4819 | AH170: 4719 | AI170: 2692119 | AK170: 2019-01-16 00:00:00 | AL170: FACTURA | AM170: 55808-00000028520053 | AN170: ORFEO 2019991002612, FACTURA DE 01 DICIEMBRE A 31 DIC/2018, PRESTADO EN MAGDALENA, PAGO A TELEFONICA MOVISTAR, CONCEPTO: SERVICIO TELEFONO AEROPUERTO RAFAEL NUÑEZ CARTAGENA AOP. NO. 05
A171: 899999115 | B171: 0 | C171: 0 | D171: 0 | E171: 0 | F171: 16619 | G171: 2019-01-16 00:00:00 | H171: 2019-01-16 11:23:54 | I171: Con Obligacion | J171: 02 | K171: IDEAM-GG-SECRETARIA GENERAL | L171: A-02-02-02-008 | M171: SERVICIOS PRESTADOS A LAS EMPRESAS Y SERVICIOS DE PRODUCCIÓN | N171: Nación | O171: RECURSOS CORRIENTES | P171: CSF | Q171: 351490 | R171: 0 | S171: 351490 | T171: 0 | U171: NIT | V171: 899999115 | W171: EMPRESA DE TELECOMUNICACIONES DE BOGOTA SA ESP | X171: Abono en cuenta | Y171: Corriente | Z171: 0020936509 | AA171: Activa | AB171: 860051135 | AC171: CITIBANK COLOMBIA | AD171: 8819 | AE171: 8819 | AF171: 16619 | AG171: 4719 | AH171: 4619 | AI171: 2693719 | AK171: 2019-01-16 00:00:00 | AL171: FACTURA | AM171: 262132714-2715-2716 | AN171: ORFEO 20199910002772, FACTURA DE 01 DICIEMBRE A 31 DIC/2018, PRESTADO EN BOGOTA, PAGO A ETB, CONCEPTO: SERVICIO TELEFONO SEDE PUENTE ARANDA
A172: 892002210 | B172: 0 | C172: 0 | D172: 201901346413807 | E172: 201901346413807 | F172: 16719 | G172: 2019-01-16 00:00:00 | H172: 2019-01-16 16:09:07 | I172: Con Obligacion | J172: 02 | K172: IDEAM-GG-SECRETARIA GENERAL | L172: A-02-02-02-006 | M172: SERVICIOS DE ALOJAMIENTO; SERVICIOS DE SUMINISTRO DE COMIDAS Y BEBIDAS; SERVICIOS DE TRANSPORTE; Y SERVICIOS DE DISTRIBUCIÓN DE ELECTRICIDAD, GAS Y AGUA | N172: Nación | O172: RECURSOS CORRIENTES | P172: CSF | Q172: 354200 | R172: 0 | S172: 354200 | T172: 0 | U172: NIT | V172: 892002210 | W172: ELECTRIFICADORA DEL META S.A. EMPRESA DE SERVICIOS PUBLICOS | X172: Abono en cuenta | Y172: Ahorro | Z172: 364051102 | AA172: Activa | AB172: 860002964 | AC172: BANCO DE BOGOTA S. A. | AD172: 8619 | AE172: 6919 | AF172: 16719 | AG172: 4619 | AH172: 4519 | AI172: 2713319 | AK172: 2019-01-16 00:00:00 | AL172: FACTURA | AM172: 201901346413807 | AN172: ORFEO 20197030000052, FACTURA DE 12 DICIEMBRE A 11 ENE/2019, PRESTADO EN VILLAVICENCIO, PAGO A EMSA, CONCEPTO: SERVICIO ENERGIA SEDE VILLAVICENCIO AOP. NO. 03
A173: 51974806 | B173: 0 | C173: 0 | D173: 412019 | E173: 412019 | F173: 16819 | G173: 2019-01-16 00:00:00 | H173: 2019-01-16 16:30:52 | I173: Con Obligacion | J173: 02 | K173: IDEAM-GG-SECRETARIA GENERAL | L173: A-02-02-02-008 | M173: SERVICIOS PRESTADOS A LAS EMPRESAS Y SERVICIOS DE PRODUCCIÓN | N173: Nación | O173: RECURSOS CORRIENTES | P173: CSF | Q173: 65600000 | R173: 0 | S173: 65600000 | T173: 38600000 | U173: Cédula de Ciudadanía | V173: 51974806 | W173: FAJARDO VELASQUEZ AMPARO ERNESTINA | X173: Abono en cuenta | Y173: Ahorro | Z173: 63425430299 | AA173: Activa | AB173: 890903938 | AC173: BANCOLOMBIA S.A. | AD173: 7919 | AE173: 17719 | AF173: 16819 | AG173: 53019, 90919, 136419, 196719, 270419 | AH173: 150819, 207019, 252519, 318619, 390619 | AI173: 24649919, 44851419, 72842919, 105729319, 144542419 | AK173: 2019-01-16 00:00:00 | AL173: CONTRATO DE PRESTACION DE SERVICIOS - PROFESIONALES | AM173: 0412019 | AN173: RENGLON 075, ACT PAA 00, PRESTAR LOS SERVICIOS PROFESIONALES DE CONTADOR PARA LA OFICINA DE CONTROL INTERNO DEL IDEAM, A FIN DE REALIZAR LA EVALUACIÓN Y SEGUIMIENTO A: CONTROL INTERNO CONTABLE, RENDICIÓN DE LA CUENTA CGR, INFORM
A174: 73194850 | B174: 0 | C174: 0 | D174: 619 | E174: 619 | F174: 16919 | G174: 2019-01-16 00:00:00 | H174: 2019-01-16 17:24:49 | I174: Con Obligacion | J174: 05 | K174: IDEAM-GG-SUBDIRECCION HIDROLOGIA | L174: C-3204-0900-3-0-3204051-02 | M174: ADQUISICIÓN DE BIENES Y SERVICIOS | N174: Nación | O174: OTROS RECURSOS DEL TESORO | P174: CSF | Q174: 1148240 | R174: -135087 | S174: 1013153 | T174: 0 | U174: Cédula de Ciudadanía | V174: 73194850 | W174: SERGE ITURRIAGO JAIR ALFONSO | X174: Abono en cuenta | Y174: Ahorro | Z174: 28470031395 | AA174: Activa | AB174: 860034313 | AC174: BANCO DAVIVIENDA S.A. | AD174: 18519 | AE174: 18119 | AF174: 16919 | AG174: 59419 | AH174: 175319 | AI174: 25170119 | AK174: 2019-01-16 00:00:00 | AL174: ACTO ADMINISTRATIVO | AM174: 619 | AN174: APOYAR PARA EFECTUAR MEDICIONES HIDROMÉTRICAS PARA MONITOREO DEL RIO EN ZONA DEL PROYECTO HIDROITUANGO
A175: 6820790 | B175: 0 | C175: 0 | D175: 619 | E175: 619 | F175: 17019 | G175: 2019-01-16 00:00:00 | H175: 2019-01-16 17:28:21 | I175: Con Obligacion | J175: 05 | K175: IDEAM-GG-SUBDIRECCION HIDROLOGIA | L175: C-3204-0900-3-0-3204051-02 | M175: ADQUISICIÓN DE BIENES Y SERVICIOS | N175: Nación | O175: OTROS RECURSOS DEL TESORO | P175: CSF | Q175: 1148240 | R175: -135087 | S175: 1013153 | T175: 0 | U175: Cédula de Ciudadanía | V175: 6820790 | W175: PATERNINA ANAYA MANUEL DE JESUS | X175: Abono en cuenta | Y175: Ahorro | Z175: 398568980 | AA175: Activa | AB175: 860034313 | AC175: BANCO DAVIVIENDA S.A. | AD175: 18519 | AE175: 18119 | AF175: 17019 | AG175: 41319, 59319 | AH175: 175219, 175419 | AI175: 25172119 | AK175: 2019-01-16 00:00:00 | AL175: ACTO ADMINISTRATIVO | AM175: 619 | AN175: APOYAR PARA EFECTUAR MEDICIONES HIDROMÉTRICAS PARA MONITOREO DEL RIO EN ZONA DEL PROYECTO HIDROITUANGO
A176: 8104695 | B176: 0 | C176: 0 | D176: 619 | E176: 619 | F176: 17119 | G176: 2019-01-16 00:00:00 | H176: 2019-01-16 17:36:52 | I176: Con Obligacion | J176: 05 | K176: IDEAM-GG-SUBDIRECCION HIDROLOGIA | L176: C-3204-0900-3-0-3204051-02 | M176: ADQUISICIÓN DE BIENES Y SERVICIOS | N176: Nación | O176: OTROS RECURSOS DEL TESORO | P176: CSF | Q176: 1229303 | R176: 0 | S176: 1229303 | T176: 0 | U176: Cédula de Ciudadanía | V176: 8104695 | W176: LOAIZA LOPEZ WILLIAM | X176: Abono en cuenta | Y176: Ahorro | Z176: 0276075710 | AA176: Activa | AB176: 860003020 | AC176: BANCO BILBAO VIZCAYA ARGENTARIA COLOMBIA S.A. BBVA | AD176: 18519 | AE176: 18119 | AF176: 17119 | AG176: 60519 | AH176: 176319 | AI176: 29456219 | AK176: 2019-01-16 00:00:00 | AL176: ACTO ADMINISTRATIVO | AM176: 619 | AN176: REALIZAR MEDICIONES DE CAUDAL EN LAS ESTACIONES HIDROLOGICAS QUE ESTAN EN LA INFLUENCIA DEL PROYECTO HIDROITUANGO
A177: 800153993 | B177: 0 | C177: 0 | D177: 0 | E177: 0 | F177: 17219 | G177: 2019-01-17 00:00:00 | H177: 2019-01-17 11:48:32 | I177: Con Obligacion | J177: 02 | K177: IDEAM-GG-SECRETARIA GENERAL | L177: A-02-02-02-008 | M177: SERVICIOS PRESTADOS A LAS EMPRESAS Y SERVICIOS DE PRODUCCIÓN | N177: Nación | O177: RECURSOS CORRIENTES | P177: CSF | Q177: 1404228.3 | R177: 0 | S177: 1404228.3 | T177: 0 | U177: NIT | V177: 800153993 | W177: COMUNICACION CELULAR S A COMCEL S A | X177: Abono en cuenta | Y177: Corriente | Z177: 0060136017 | AA177: Activa | AB177: 860051135 | AC177: CITIBANK COLOMBIA | AD177: 9319 | AE177: 8719 | AF177: 17219 | AG177: 5019, 5119 | AH177: 4919, 5019 | AI177: 3697919 | AK177: 2019-01-17 00:00:00 | AL177: FACTURA | AM177: E-5253576064 | AN177: ORFEO 20181040168412, FACTURA DE 20 NOVIEMBRE A 19 DIC/2018, PRESTADO EN BOGOTA, PAGO A COMCEL-CLARO, CONCEPTO: SERVICIO TRASMINSION DE DATO (INTERNET) SEDE PRINCIPAL
A178: 899999115 | B178: 0 | C178: 0 | D178: 262132278 | E178: 262132278 | F178: 17319 | G178: 2019-01-17 00:00:00 | H178: 2019-01-17 11:52:46 | I178: Con Obligacion | J178: 02 | K178: IDEAM-GG-SECRETARIA GENERAL | L178: A-02-02-02-008 | M178: SERVICIOS PRESTADOS A LAS EMPRESAS Y SERVICIOS DE PRODUCCIÓN | N178: Nación | O178: RECURSOS CORRIENTES | P178: CSF | Q178: 3822900 | R178: 0 | S178: 3822900 | T178: 0 | U178: NIT | V178: 899999115 | W178: EMPRESA DE TELECOMUNICACIONES DE BOGOTA SA ESP | X178: Abono en cuenta | Y178: Corriente | Z178: 0020936509 | AA178: Activa | AB178: 860051135 | AC178: CITIBANK COLOMBIA | AD178: 8819 | AE178: 8819 | AF178: 17319 | AG178: 5319 | AH178: 5219 | AI178: 3699519 | AK178: 2019-01-17 00:00:00 | AL178: FACTURA | AM178: 000262132278 | AN178: ORFEO 20199910003022, FACTURA DE 01 DICIEMBRE A 31 DIC/2018, PRESTADO EN BOGOTA, PAGO A ETB, CONCEPTO: SERVICIO TELEFONO LINEA SEDE PRINCIPAL
A179: 899999115 | B179: 0 | C179: 0 | D179: 262128732 | E179: 262128732 | F179: 17419 | G179: 2019-01-17 00:00:00 | H179: 2019-01-17 11:56:30 | I179: Con Obligacion | J179: 02 | K179: IDEAM-GG-SECRETARIA GENERAL | L179: A-02-02-02-008 | M179: SERVICIOS PRESTADOS A LAS EMPRESAS Y SERVICIOS DE PRODUCCIÓN | N179: Nación | O179: RECURSOS CORRIENTES | P179: CSF | Q179: 6650 | R179: 0 | S179: 6650 | T179: 0 | U179: NIT | V179: 899999115 | W179: EMPRESA DE TELECOMUNICACIONES DE BOGOTA SA ESP | X179: Abono en cuenta | Y179: Corriente | Z179: 0020936509 | AA179: Activa | AB179: 860051135 | AC179: CITIBANK COLOMBIA | AD179: 8819 | AE179: 8819 | AF179: 17419 | AG179: 5219 | AH179: 5119 | AI179: 3701019 | AK179: 2019-01-17 00:00:00 | AL179: FACTURA | AM179: 000262128732 | AN179: ORFEO 20199910003022, FACTURA DE 01 DICIEMBRE A 31 DIC/2018, PRESTADO EN BOGOTA, PAGO A ETB, CONCEPTO: SERVICIO LINEA ATENCION ALCLIENTE
A180: 35462485 | B180: 0 | C180: 0 | D180: 422019 | E180: 422019 | F180: 17519 | G180: 2019-01-17 00:00:00 | H180: 2019-01-17 16:25:40 | I180: Con Obligacion | J180: 02 | K180: IDEAM-GG-SECRETARIA GENERAL | L180: A-02-02-02-008 | M180: SERVICIOS PRESTADOS A LAS EMPRESAS Y SERVICIOS DE PRODUCCIÓN | N180: Nación | O180: RECURSOS CORRIENTES | P180: CSF | Q180: 65400000 | R180: 0 | S180: 65400000 | T180: 38600000 | U180: Cédula de Ciudadanía | V180: 35462485 | W180: ALCAZAR CABALLERO RUBBY LILIANA | X180: Abono en cuenta | Y180: Corriente | Z180: 17805631910 | AA180: Activa | AB180: 890903938 | AC180: BANCOLOMBIA S.A. | AD180: 7719 | AE180: 17619 | AF180: 17519 | AG180: 53119, 91119, 131619, 200419, 255019 | AH180: 151519, 207219, 248819, 323219, 375819 | AI180: 24650619, 46649519, 72013019, 107497819, 140488219 | AK180: 2019-01-17 00:00:00 | AL180: CONTRATO DE PRESTACION DE SERVICIOS - PROFESIONALES | AM180: 0422019 | AN180: RENGLON 074, ACT PAA 00, PRESTAR LOS SERVICIOS PROFESIONALES PARA APOYAR JURÍDICAMENTE A LA OFICINA DE CONTROL INTERNO, REALIZAR AUDITORÍAS DE GESTIÓN, SEGUIMIENTOS DE LEY, ATENDER PQRS, REALIZAR SEGUIMIENTOS A LOS PLANES DE MEJO
A181: 1013592420 | B181: 0 | C181: 0 | D181: 432019 | E181: 432019 | F181: 17619 | G181: 2019-01-17 00:00:00 | H181: 2019-01-17 16:45:52 | I181: Con Obligacion | J181: 02 | K181: IDEAM-GG-SECRETARIA GENERAL | L181: A-02-02-02-008 | M181: SERVICIOS PRESTADOS A LAS EMPRESAS Y SERVICIOS DE PRODUCCIÓN | N181: Nación | O181: RECURSOS CORRIENTES | P181: CSF | Q181: 13320000 | R181: 0 | S181: 13320000 | T181: 3404000 | U181: Cédula de Ciudadanía | V181: 1013592420 | W181: AMADO SUAREZ RAFAEL ANTONIO | X181: Abono en cuenta | Y181: Ahorro | Z181: 240848374 | AA181: Activa | AB181: 890300279 | AC181: BANCO DE OCCIDENTE | AD181: 2419 | AE181: 4219 | AF181: 17619 | AG181: 55119, 78419, 134719, 186819, 254819 | AH181: 153119, 194419, 251519, 309119, 375619 | AI181: 25348619, 41276919, 72837719, 104278819, 140487419 | AK181: 2019-01-17 00:00:00 | AL181: CONTRATO DE PRESTACION DE SERVICIOS | AM181: 0432019 | AN181: RENGLON 036, ACT PAA 00, PRESTAR LOS SERVICIOS DE APOYO A LA GESTIÓN EN LA OFICINA ASESORA JURÍDICA DEL INSTITUTO, CON EL FIN DE ORGANIZAR, ACTUALIZAR Y CONCRETAR LAS TRANFERENCIAS AL ARCHIVO CENTRAL DE LOS EXPEDIENTES DE CONVEN
A182: 52802410 | B182: 0 | C182: 0 | D182: 442019 | E182: 442019 | F182: 17719 | G182: 2019-01-17 00:00:00 | H182: 2019-01-17 17:00:05 | I182: Con Obligacion | J182: 02 | K182: IDEAM-GG-SECRETARIA GENERAL | L182: A-02-02-02-008 | M182: SERVICIOS PRESTADOS A LAS EMPRESAS Y SERVICIOS DE PRODUCCIÓN | N182: Nación | O182: RECURSOS CORRIENTES | P182: CSF | Q182: 25456000 | R182: 0 | S182: 25456000 | T182: 15540000 | U182: Cédula de Ciudadanía | V182: 52802410 | W182: BAYONA PIRAJAN LUZ DARY | X182: Abono en cuenta | Y182: Ahorro | Z182: 23011514951 | AA182: Activa | AB182: 860007335 | AC182: BCSC S A | AD182: 2319 | AE182: 4119 | AF182: 17719 | AG182: 54319, 87519, 146319, 191119, 259419 | AH182: 171819, 203619, 266819, 313419, 379319 | AI182: 24652219, 44832119, 80341719, 105720119, 144537319 | AK182: 2019-01-17 00:00:00 | AL182: CONTRATO DE PRESTACION DE SERVICIOS | AM182: 0442019 | AN182: RENGLON 035, ACT PAA 00, PRESTAR LOS SERVICIOS DE APOYO A LA GESTIÓN EN LA OFICINA ASESORA JURÍDICA DEL INSTITUTO, CON EL FIN DE ORGANIZAR, ACTUALIZAR Y CONCRETAR LAS TRANFERENCIAS AL ARCHIVO CENTRAL DE LOS EXPEDIENTES DE CONVEN
A183: 30395082 | B183: 0 | C183: 0 | D183: 452019 | E183: 452019 | F183: 17819 | G183: 2019-01-17 00:00:00 | H183: 2019-01-17 17:21:21 | I183: Con Obligacion | J183: 02 | K183: IDEAM-GG-SECRETARIA GENERAL | L183: A-02-02-02-008 | M183: SERVICIOS PRESTADOS A LAS EMPRESAS Y SERVICIOS DE PRODUCCIÓN | N183: Nación | O183: RECURSOS CORRIENTES | P183: CSF | Q183: 50358000 | R183: 0 | S183: 50358000 | T183: 29722000 | U183: Cédula de Ciudadanía | V183: 30395082 | W183: RICARDO GOMEZ SANDRA PATRICIA | X183: Abono en cuenta | Y183: Ahorro | Z183: 1001147397 | AA183: Activa | AB183: 860051135 | AC183: CITIBANK COLOMBIA | AD183: 4319 | AE183: 5719 | AF183: 17819 | AG183: 55219, 75419, 131319, 186219, 254519 | AH183: 153219, 191219, 248719, 308519, 375419 | AI183: 24651919, 41268119, 72036319, 104277219, 140486719 | AK183: 2019-01-17 00:00:00 | AL183: CONTRATO DE PRESTACION DE SERVICIOS - PROFESIONALES | AM183: 0452019 | AN183: RENGLON 051, ACT PAA 00, PRESTAR LOS SERVICIOS PROFESIONALES EN EL GRUPO DE SERVICIOS ADMINISTRATIVOS PARA LOS TEMAS RELACIONADOS CON LOS CONTRATOS DE ASEO Y CAFETERÍA, Y EL SERVICIO DE VIGILANCIA PRIVADA PARA EL IDEAM A NIVEL
A184: 890904996 | B184: 0 | C184: 0 | D184: 0 | E184: 0 | F184: 17919 | G184: 2019-01-18 00:00:00 | H184: 2019-01-18 08:19:32 | I184: Con Obligacion | J184: 02 | K184: IDEAM-GG-SECRETARIA GENERAL | L184: A-02-02-02-006 | M184: SERVICIOS DE ALOJAMIENTO; SERVICIOS DE SUMINISTRO DE COMIDAS Y BEBIDAS; SERVICIOS DE TRANSPORTE; Y SERVICIOS DE DISTRIBUCIÓN DE ELECTRICIDAD, GAS Y AGUA | N184: Nación | O184: RECURSOS CORRIENTES | P184: CSF | Q184: 472376 | R184: 0 | S184: 472376 | T184: 0 | U184: NIT | V184: 890904996 | W184: EMPRESAS PUBLICAS DE MEDELLIN E.S.P. | X184: Abono en cuenta | Y184: Corriente | Z184: 00190499600 | AA184: Activa | AB184: 890903938 | AC184: BANCOLOMBIA S.A. | AD184: 8619 | AE184: 6919 | AF184: 17919 | AG184: 5619 | AH184: 5519 | AI184: 4526119 | AK184: 2019-01-18 00:00:00 | AL184: FACTURA | AM184: 697975896-57 | AN184: ORFEO 20197010000203, FACTURA DE 24 NOVIEMBRE A 24 DIC/2018, PRESTADO EN ANTIOQUIA, PAGO A EPM-EMPRESAS PUBLICAS DE MEDELLIN, CONCEPTO: SERVICIO ENERGIA SEDE MEDELLIN AOP. NO. 01
A185: 890904996 | B185: 0 | C185: 0 | D185: 0 | E185: 0 | F185: 18019 | G185: 2019-01-18 00:00:00 | H185: 2019-01-18 08:32:54 | I185: Con Obligacion | J185: 02 | K185: IDEAM-GG-SECRETARIA GENERAL | L185: A-02-02-02-009 | M185: SERVICIOS PARA LA COMUNIDAD, SOCIALES Y PERSONALES | N185: Nación | O185: RECURSOS CORRIENTES | P185: CSF | Q185: 125875 | R185: 0 | S185: 125875 | T185: 0 | U185: NIT | V185: 890904996 | W185: EMPRESAS PUBLICAS DE MEDELLIN E.S.P. | X185: Abono en cuenta | Y185: Corriente | Z185: 00190499600 | AA185: Activa | AB185: 890903938 | AC185: BANCOLOMBIA S.A. | AD185: 9419 | AE185: 7119 | AF185: 18019 | AG185: 5719 | AH185: 5619 | AI185: 4529719 | AK185: 2019-01-18 00:00:00 | AL185: FACTURA | AM185: 697675896-57 | AN185: ORFEO 20197010000203, FACTURA DE 24 NOVIEMBRE A 24 DIC/2018, PRESTADO EN ANTIOQUIA, PAGO A EPM-EMPRESAS PUBLICAS DE MEDELLIN, CONCEPTO: SERVICIO ACUEDUCTO-ALCANTARILLADO Y ASEO SEDE MEDELLIN AOP. NO. 01
A186: 891101577 | B186: 0 | C186: 0 | D186: 96105746 | E186: 96105746 | F186: 18119 | G186: 2019-01-18 00:00:00 | H186: 2019-01-18 13:51:46 | I186: Con Obligacion | J186: 02 | K186: IDEAM-GG-SECRETARIA GENERAL | L186: A-02-02-02-006 | M186: SERVICIOS DE ALOJAMIENTO; SERVICIOS DE SUMINISTRO DE COMIDAS Y BEBIDAS; SERVICIOS DE TRANSPORTE; Y SERVICIOS DE DISTRIBUCIÓN DE ELECTRICIDAD, GAS Y AGUA | N186: Nación | O186: RECURSOS CORRIENTES | P186: CSF | Q186: 16630 | R186: 0 | S186: 16630 | T186: 0 | U186: NIT | V186: 891101577 | W186: ALCANOS DE COLOMBIA S.A. E.S.P. | X186: Giro | AD186: 8719 | AE186: 7019 | AF186: 18119 | AG186: 5519 | AH186: 5419 | AI186: 4525219 | AK186: 2019-01-18 00:00:00 | AL186: FACTURA | AM186: 96105746 | AN186: ORFEO 20197100000193, FACTURA DE 06 DICIEMBRE A 04 ENE/2019, PRESTADO EN TOLIMA, PAGO A ALCANOS DE COLOMBIA S.A. ESP., CONCEPTO: SERVICIO GAS NATURAL DOMICILIAIRIO SEDE IBAGUE AOP. NO. 10
A187: 52440067 | B187: 0 | C187: 0 | D187: 462019 | E187: 462019 | F187: 18219 | G187: 2019-01-18 00:00:00 | H187: 2019-01-18 14:51:31 | I187: Con Obligacion | J187: 02 | K187: IDEAM-GG-SECRETARIA GENERAL | L187: A-02-02-02-008 | M187: SERVICIOS PRESTADOS A LAS EMPRESAS Y SERVICIOS DE PRODUCCIÓN | N187: Propios | O187: OTROS RECURSOS DE TESORERIA | P187: CSF | Q187: 19437000 | R187: 0 | S187: 19437000 | T187: 7068000 | U187: Cédula de Ciudadanía | V187: 52440067 | W187: SANCHEZ MARENTES LIBIA YANETH | X187: Abono en cuenta | Y187: Ahorro | Z187: 240837203 | AA187: Activa | AB187: 890300279 | AC187: BANCO DE OCCIDENTE | AD187: 9019 | AE187: 7319 | AF187: 18219 | AG187: 42719, 76719, 130319, 182119, 248019 | AH187: 76319, 192519, 248219, 303819, 370219 | AI187: 20722319, 39928619, 71379519, 102314519, 138078519 | AK187: 2019-01-18 00:00:00 | AL187: CONTRATO DE PRESTACION DE SERVICIOS | AM187: 0462019 | AN187: RENGLON 090, ACT PAA 00, PRESTAR LOS SERVICIOS OPERATIVOS COMO APOYO AL GRUPO DE MANEJO Y CONTROL DE ALMACÉN E INVENTARIOS EN LOS PROCEDIMIENTOS RELACIONADOS CON EL TRÁMITE DE BAJA DE BIENES MUEBLES E INMUEBLES DE PROPIEDAD DEL
A188: 830037248 | B188: 0 | C188: 0 | D188: 0 | E188: 0 | F188: 18319 | G188: 2019-01-18 00:00:00 | H188: 2019-01-18 16:05:44 | I188: Con Obligacion | J188: 02 | K188: IDEAM-GG-SECRETARIA GENERAL | L188: A-02-02-02-006 | M188: SERVICIOS DE ALOJAMIENTO; SERVICIOS DE SUMINISTRO DE COMIDAS Y BEBIDAS; SERVICIOS DE TRANSPORTE; Y SERVICIOS DE DISTRIBUCIÓN DE ELECTRICIDAD, GAS Y AGUA | N188: Nación | O188: RECURSOS CORRIENTES | P188: CSF | Q188: 6246940 | R188: 0 | S188: 6246940 | T188: 0 | U188: NIT | V188: 830037248 | W188: CODENSA S.A ESP | X188: Abono en cuenta | Y188: Ahorro | Z188: 90060000410 | AA188: Activa | AB188: 860050750 | AC188: BANCO GNB SUDAMERIS S A | AD188: 8619 | AE188: 6919 | AF188: 18319 | AG188: 5419 | AH188: 5319 | AI188: 4471619 | AK188: 2019-01-18 00:00:00 | AL188: FACTURA | AM188: 537196013-7 | AN188: ORFEO 20199910003582, FACTURA DE 13DICIEMBRE A 15 ENE/2019, PRESTADO EN BOGOTA, PAGO A CODENSA S.A., CONCEPTO: SERVICIO ENERGIA Y ( ADIQUISICION MEDIDOR) SEDE PUENTE ARANDA
A189: 52050136 | B189: 0 | C189: 0 | D189: 0 | E189: 0 | F189: 18419 | G189: 2019-01-18 00:00:00 | H189: 2019-01-18 18:26:12 | I189: Con Obligacion | J189: 04 | K189: IDEAM-GG-DG.OFICINA DEL SERVICIO DE PRONOSTICOS Y ALERTAS | L189: C-3204-0900-3-0-3204047-02 | M189: ADQUISICIÓN DE BIENES Y SERVICIOS | N189: Nación | O189: OTROS RECURSOS DEL TESORO | P189: CSF | Q189: 204129 | R189: -6000 | S189: 198129 | T189: 0 | U189: Cédula de Ciudadanía | V189: 52050136 | W189: FERNANDEZ PORRAS MERY ESPERANZA | X189: Abono en cuenta | Y189: Ahorro | Z189: 60239575911 | AA189: Activa | AB189: 890903938 | AC189: BANCOLOMBIA S.A. | AD189: 22519 | AE189: 22119 | AF189: 18419 | AG189: 8119, 119919 | AH189: 232319 | AI189: 55705319 | AK189: 2019-01-18 00:00:00 | AL189: ACTO ADMINISTRATIVO | AM189: AUTORIZACIÓN 819 | AN189: ASISTIR COMITÉ DEPARTAMENTAL DE GESTIÓN DEL RIESGO FENÓMENO NIÑO GOBERNACIÓN DE BOYACÁ
A190: 79504808 | B190: 0 | C190: 0 | D190: 20199910003422 | E190: 20199910003422 | F190: 18519 | G190: 2019-01-18 00:00:00 | H190: 2019-01-18 18:26:22 | I190: Con Obligacion | J190: 02 | K190: IDEAM-GG-SECRETARIA GENERAL | L190: A-02-02-02-010 | M190: VIÁTICOS DE LOS FUNCIONARIOS EN COMISIÓN | N190: Nación | O190: RECURSOS CORRIENTES | P190: CSF | Q190: 123598 | R190: 0 | S190: 123598 | T190: 0 | U190: Cédula de Ciudadanía | V190: 79504808 | W190: HERNANDEZ RODRIGUEZ RICARDO AUGUSTO | X190: Abono en cuenta | Y190: Corriente | Z190: 001072760776 | AA190: Activa | AB190: 860034313 | AC190: BANCO DAVIVIENDA S.A. | AD190: 8519 | AE190: 6819 | AF190: 18519 | AG190: 5919, 41119 | AH190: 74219, 74319 | AI190: 22212519 | AK190: 2019-01-18 00:00:00 | AL190: SOLICITUD | AM190: 20199910003422 | AN190: VISITA AREA OPERATIVA 8, PARA COORDINACIÓN DE PROYECTO DE INFRAESTRUCTURA CON GOBERNACIÓN DE SANT...
A191: 1010189529 | B191: 0 | C191: 0 | D191: 472019 | E191: 472019 | F191: 18619 | G191: 2019-01-18 00:00:00 | H191: 2019-01-18 18:34:24 | I191: Con Obligacion | J191: 02 | K191: IDEAM-GG-SECRETARIA GENERAL | L191: A-02-02-02-008 | M191: SERVICIOS PRESTADOS A LAS EMPRESAS Y SERVICIOS DE PRODUCCIÓN | N191: Nación | O191: RECURSOS CORRIENTES | P191: CSF | Q191: 21842000 | R191: 0 | S191: 21842000 | T191: 12931000 | U191: Cédula de Ciudadanía | V191: 1010189529 | W191: PACHON PIRAJAN DIANA ROCIO | X191: Abono en cuenta | Y191: Ahorro | Z191: 237190145 | AA191: Activa | AB191: 860002964 | AC191: BANCO DE BOGOTA S. A. | AD191: 5919 | AE191: 8019 | AF191: 18619 | AG191: 54819, 79719, 135919, 194919, 261619 | AH191: 152819, 195719, 252219, 317319, 384019 | AI191: 25356319, 41284719, 72842119, 105727719, 142275619 | AK191: 2019-01-18 00:00:00 | AL191: CONTRATO DE PRESTACION DE SERVICIOS | AM191: 0472019 | AN191: RENGLON 064, ACT PAA 00, PRESTAR LOS SERVICIOS DE DIGITALIZACIÓN DE TODOS LOS DOCUMENTOS QUE SON RECIBIDOS EN LA VENTANILLA ÚNICA DE CORRESPONDENCIA, ASÍ COMO TODOS SUS ANEXOS A TRAVÉS DE LA HERRAMIENTA DE ORFEO SCAN, PARA SER
A192: 52035482 | B192: 0 | C192: 0 | D192: 482019 | E192: 482019 | F192: 18719 | G192: 2019-01-18 00:00:00 | H192: 2019-01-18 18:43:18 | I192: Con Obligacion | J192: 02 | K192: IDEAM-GG-SECRETARIA GENERAL | L192: A-02-02-02-008 | M192: SERVICIOS PRESTADOS A LAS EMPRESAS Y SERVICIOS DE PRODUCCIÓN | N192: Nación | O192: RECURSOS CORRIENTES | P192: CSF | Q192: 21842000 | R192: 0 | S192: 21842000 | T192: 12931000 | U192: Cédula de Ciudadanía | V192: 52035482 | W192: FAJARDO VIRVIESCAS NEYLA LILIANA | X192: Abono en cuenta | Y192: Ahorro | Z192: 24128674337 | AA192: Activa | AB192: 890903938 | AC192: BANCOLOMBIA S.A. | AD192: 6019 | AE192: 8119 | AF192: 18719 | AG192: 54919, 79619, 135719, 194719, 261819 | AH192: 152919, 195619, 252119, 317219, 384219 | AI192: 24651619, 41284319, 72841619, 105727519, 144537519 | AK192: 2019-01-18 00:00:00 | AL192: CONTRATO DE PRESTACION DE SERVICIOS | AM192: 0482019 | AN192: RENGLON 065, ACT PAA 00, REALIZAR ACTIVIDADES DE ORGANIZACIÓN FÍSICA DE LOS DOCUMENTOS OFICIALES DEL AÑO 2019, QUE LLEGAN AL INSTITUTO A TRAVÉS DE CORRESPONDENCIA Y LOS GENERADOS POR LAS DEPENDENCIAS DEL IDEAM APLICANDO LAS NORM
A193: 890201230 | B193: 0 | C193: 0 | D193: 150527103 | E193: 150527103 | F193: 18819 | G193: 2019-01-21 00:00:00 | H193: 2019-01-21 09:23:23 | I193: Con Obligacion | J193: 02 | K193: IDEAM-GG-SECRETARIA GENERAL | L193: A-02-02-02-006 | M193: SERVICIOS DE ALOJAMIENTO; SERVICIOS DE SUMINISTRO DE COMIDAS Y BEBIDAS; SERVICIOS DE TRANSPORTE; Y SERVICIOS DE DISTRIBUCIÓN DE ELECTRICIDAD, GAS Y AGUA | N193: Nación | O193: RECURSOS CORRIENTES | P193: CSF | Q193: 1010547 | R193: 0 | S193: 1010547 | T193: 0 | U193: NIT | V193: 890201230 | W193: ELECTRIFICADORA DE SANTANDER S.A. ESP | X193: Abono en cuenta | Y193: Corriente | Z193: 184021558 | AA193: Activa | AB193: 860002964 | AC193: BANCO DE BOGOTA S. A. | AD193: 8619 | AE193: 6919 | AF193: 18819 | AG193: 6519 | AH193: 6219 | AI193: 4861219 | AK193: 2019-01-21 00:00:00 | AL193: FACTURA | AM193: 150527103 | AN193: ORFEO 20197080000122, FACTURA DE 01 DICIEMBRE A 31 DIC/2018, PRESTADO EN SANTANDER, PAGO A ESSA, CONCEPTO: SERVICIO ENERGIA E IMPUESTO ALUMBRADO PUBLICO SEDE BUCARAMANGA AOP. NO. 08
A194: 825001677 | B194: 0 | C194: 0 | D194: 10012068232 | E194: 10012068232 | F194: 18919 | G194: 2019-01-21 00:00:00 | H194: 2019-01-21 11:54:20 | I194: Con Obligacion | J194: 02 | K194: IDEAM-GG-SECRETARIA GENERAL | L194: A-02-02-02-009 | M194: SERVICIOS PARA LA COMUNIDAD, SOCIALES Y PERSONALES | N194: Nación | O194: RECURSOS CORRIENTES | P194: CSF | Q194: 7004 | R194: 0 | S194: 7004 | T194: 0 | U194: NIT | V194: 825001677 | W194: AVANZADAS SOLUCIONES DE ACUEDUCTO Y ALCANTARILLADO S.A. E.S.P. | X194: Giro | AD194: 9419 | AE194: 7119 | AF194: 18919 | AG194: 6419 | AH194: 6119 | AI194: 4836419 | AK194: 2019-01-21 00:00:00 | AL194: FACTURA | AM194: 10012068232 | AN194: ORFEO 20192060000201, FACTURA DE 14 DICIEMBRE A 14 ENE/2019, PRESTADO EN AOP NO. 11, PAGO A AVANZADAS SOLUCIONES DE ACUEDUCTO Y ALCANTARILLADO S.A., CONCEPTO: SERVICIO ACUEDUCTO SEDE RIOHACHA
A195: 1115857151 | B195: 0 | C195: 0 | D195: 492019 | E195: 492019 | F195: 19019 | G195: 2019-01-21 00:00:00 | H195: 2019-01-21 16:19:51 | I195: Con Obligacion | J195: 02 | K195: IDEAM-GG-SECRETARIA GENERAL | L195: A-02-02-02-008 | M195: SERVICIOS PRESTADOS A LAS EMPRESAS Y SERVICIOS DE PRODUCCIÓN | N195: Nación | O195: RECURSOS CORRIENTES | P195: CSF | Q195: 23256000 | R195: 0 | S195: 23256000 | T195: 13896000 | U195: Cédula de Ciudadanía | V195: 1115857151 | W195: PUERTA GUTIERREZ NASLY SUSANA | X195: Abono en cuenta | Y195: Ahorro | Z195: 35887715848 | AA195: Activa | AB195: 890903938 | AC195: BANCOLOMBIA S.A. | AD195: 6319 | AE195: 8319 | AF195: 19019 | AG195: 54719, 78919, 134319, 187619, 254619 | AH195: 152719, 194919, 250719, 309919, 375519 | AI195: 24651519, 41279319, 72835219, 104280819, 140487019 | AK195: 2019-01-21 00:00:00 | AL195: CONTRATO DE PRESTACION DE SERVICIOS | AM195: 0492019 | AN195: RENGLON 067, ACT PAA 00, PRESTAR LOS SERVICIOS DE APOYO A LA GESTIÓN PARA LA OPORTUNA ATENCIÓN Y TRÁMITE DE SOLICITUDES DE INFORMACIÓN BÁSICA HIDROMETEOROLÓGICA ALLEGADAS A TRAVÉS DE LOS DISTINTOS CANALES DE ATENCIÓN AL CIUDADAN
A196: =+V196+0 -> 900092385 | B196: =IFERROR(MID(AM196,SEARCH("CTO.",AM196)+5,7),0) -> 0 | C196: =IFERROR(MID(AM196,SEARCH("CTO ",AM196)+4,7),0) -> 0 | D196: =IFERROR(AM196+0,0) -> 124414584 | E196: =B196+C196+D196 -> 124414584 | F196: 19119 | G196: 2019-01-21 00:00:00 | H196: 2019-01-21 17:05:44 | I196: Con Obligacion | J196: 02 | K196: IDEAM-GG-SECRETARIA GENERAL | L196: A-02-02-02-008 | M196: SERVICIOS PRESTADOS A LAS EMPRESAS Y SERVICIOS DE PRODUCCIÓN | N196: Nación | O196: RECURSOS CORRIENTES | P196: CSF | Q196: 60870 | R196: 0 | S196: 60870 | T196: 0 | U196: NIT | V196: 900092385 | W196: UNE EPM TELECOMUNICACIONES S.A. | X196: Abono en cuenta | Y196: Ahorro | Z196: 379038235 | AA196: Activa | AB196: 860002964 | AC196: BANCO DE BOGOTA S. A. | AD196: 8819 | AE196: 8819 | AF196: 19119 | AG196: 6319 | AH196: 6019 | AI196: 4850119 | AK196: 2019-01-21 00:00:00 | AL196: FACTURA | AM196: 124414584 | AN196: ORFEO 20197090000263, FACTURA DE 01 DICIEMBRE A 31 DIC/2018, PRESTADO EN VALLE, PAGO A UNE EPM TELECOMINICACIONES S.A., CONCEPTO: SERVICIO TELEFONO AEROPUERTO MATECAÑA PEREIRA AOP. NO. 09
A197: 890200162 | B197: 0 | C197: 0 | D197: 4177105 | E197: 4177105 | F197: 19219 | G197: 2019-01-22 00:00:00 | H197: 2019-01-22 08:30:08 | I197: Con Obligacion | J197: 02 | K197: IDEAM-GG-SECRETARIA GENERAL | L197: A-02-02-02-009 | M197: SERVICIOS PARA LA COMUNIDAD, SOCIALES Y PERSONALES | N197: Nación | O197: RECURSOS CORRIENTES | P197: CSF | Q197: 441390 | R197: 0 | S197: 441390 | T197: 0 | U197: NIT | V197: 890200162 | W197: ACUEDUCTO METROPOLITANO DE BUCARAMANGA S.A. E.S.P. | X197: Abono en cuenta | Y197: Ahorro | Z197: 184536746 | AA197: Activa | AB197: 860002964 | AC197: BANCO DE BOGOTA S. A. | AD197: 9419 | AE197: 7119 | AF197: 19219 | AG197: 6019, 7019 | AH197: 5719, 6619 | AI197: 5425219 | AK197: 2019-01-22 00:00:00 | AL197: FACTURA | AM197: 4177105 | AN197: ORFEO 20197080000212, FACTURA DE 01 NOVIEMBRE A 30 NOV/2018, PRESTADO EN SANTANDER, PAGO A AMB, CONCEPTO: SERVICIO ACUEDUCTO ALCANTARILLADO Y ASEO SEDE BUCARAMANGA AOP. NO. 08
A198: 892002210 | B198: 0 | C198: 0 | D198: 201901207410514 | E198: 201901207410514 | F198: 19319 | G198: 2019-01-22 00:00:00 | H198: 2019-01-22 08:35:10 | I198: Con Obligacion | J198: 02 | K198: IDEAM-GG-SECRETARIA GENERAL | L198: A-02-02-02-006 | M198: SERVICIOS DE ALOJAMIENTO; SERVICIOS DE SUMINISTRO DE COMIDAS Y BEBIDAS; SERVICIOS DE TRANSPORTE; Y SERVICIOS DE DISTRIBUCIÓN DE ELECTRICIDAD, GAS Y AGUA | N198: Nación | O198: RECURSOS CORRIENTES | P198: CSF | Q198: 19948 | R198: 0 | S198: 19948 | T198: 0 | U198: NIT | V198: 892002210 | W198: ELECTRIFICADORA DEL META S.A. EMPRESA DE SERVICIOS PUBLICOS | X198: Abono en cuenta | Y198: Ahorro | Z198: 364051102 | AA198: Activa | AB198: 860002964 | AC198: BANCO DE BOGOTA S. A. | AD198: 8619 | AE198: 6919 | AF198: 19319 | AG198: 6119 | AH198: 5819 | AI198: 4832719 | AK198: 2019-01-22 00:00:00 | AL198: FACTURA | AM198: 201901207410514 | AN198: ORFEO 20197030000062, FACTURA DE 12 DICIEMBRE A 11 ENE/2019, PRESTADO EN META, PAGO A EMSA, CONCEPTO: SERVICIO ENERGIA SEDE VILLAVICENCIO AOP. NO. 03
A199: 822000268 | B199: 0 | C199: 0 | D199: 25444997 | E199: 25444997 | F199: 19419 | G199: 2019-01-22 00:00:00 | H199: 2019-01-22 08:40:00 | I199: Con Obligacion | J199: 02 | K199: IDEAM-GG-SECRETARIA GENERAL | L199: A-02-02-02-009 | M199: SERVICIOS PARA LA COMUNIDAD, SOCIALES Y PERSONALES | N199: Nación | O199: RECURSOS CORRIENTES | P199: CSF | Q199: 41392 | R199: 0 | S199: 41392 | T199: 0 | U199: NIT | V199: 822000268 | W199: BIOAGRICOLA DEL LLANO S. A. EMPRESA DE SERVICIOS PUBLICOS | X199: Giro | AD199: 9419 | AE199: 7119 | AF199: 19419 | AG199: 6219 | AH199: 5919 | AI199: 4834019 | AK199: 2019-01-22 00:00:00 | AL199: FACTURA | AM199: 025444997 | AN199: ORFEO 20197030000062, FACTURA DE 12 DICIEMBRE A 11 ENE/2019, PRESTADO EN META, PAGO A BIOAGRICOLA, CONCEPTO: SERVICIO ASEO SEDE VILLACENCIO AOP. NO. 03
A200: 890201210 | B200: 0 | C200: 0 | D200: 0 | E200: 0 | F200: 19519 | G200: 2019-01-22 00:00:00 | H200: 2019-01-22 15:35:26 | I200: Con Obligacion | J200: 02 | K200: IDEAM-GG-SECRETARIA GENERAL | L200: A-02-02-02-008 | M200: SERVICIOS PRESTADOS A LAS EMPRESAS Y SERVICIOS DE PRODUCCIÓN | N200: Nación | O200: RECURSOS CORRIENTES | P200: CSF | Q200: 344675 | R200: 0 | S200: 344675 | T200: 0 | U200: NIT | V200: 890201210 | W200: EMPRESA DE TELECOMUNICACIONES DE BUCARAMANGA S.A. E.S.P TELEBUCARAMANGA | X200: Abono en cuenta | Y200: Ahorro | Z200: 184604213 | AA200: Activa | AB200: 860002964 | AC200: BANCO DE BOGOTA S. A. | AD200: 8819 | AE200: 8819 | AF200: 19519 | AG200: 6919 | AH200: 6519 | AI200: 6129219 | AK200: 2019-01-22 00:00:00 | AL200: FACTURA | AM200: TBCL-1192311 | AN200: ORFEO 20197080000132, FACTURA DE 01 DICIEMBRE A 31 DIC/2018, PRESTADO EN SANTANDER, PAGO A TEELBUCARAMANGA, CONCEPTO: SERVICIO TELEFONIA LOCAL Y LARGA DISTANCIA SEDE BUCARAMANGA AOP. NO. 08
... 2209 more rows

Sheet A-GF-F004 Información
B1: INGRESO DE INFORMACIÓN CONTRATO | C1: Código: A-GF-F004
C2: Versión: 04
C3: Fecha: 16/10/2018
C4: Página: 1 de 1
A6: INFORMACION DEL CONTRATO
A7: MODALIDAD DEL CONTRATO
A8: FECHA INICIO DEL CONTRATO
A9: OBJETO DEL CONTRATO
A10: Ha habido modificaciones al Contrato?
A11: En que consisten?
A12: FECHA DE INICIO DE EJECUCIÓN (SEGÚN CONTRATO)
A13: FECHA FINALIZACIÓN DE EJECUCIÓN (SEGÚN CONTRATO)
A14: Valor del contrato ($)
A15: Valor de la modificación ($)
A17: INFORMACION DEL CONTRATISTA
A18: IDENTIFICACIÓN
A19: CONTRATISTA | C19: =IFERROR(VLOOKUP(C18,'BASE RP'!A:W,23,FALSE),"documento no valido") -> documento no valido
A20: No. CONTRATO | C20: =IFERROR(VLOOKUP(C18,'BASE RP'!A:AR,5,FALSE),"documento no valido") -> documento no valido
A21: CDP CONTRATISTA | C21: =IFERROR(VLOOKUP($C$18,'BASE RP'!A:AE,31,FALSE)+0,"documento no valido") -> documento no valido
A22: RP CONTRATISTA | C22: =IFERROR(VLOOKUP($C$18,'BASE RP'!A:AE,6,FALSE)+0,"documento no valido") -> documento no valido
A23: DIRECCIÓN
A24: TELÉFONO
A25: CODIGÓ CPC
A26: CIUDAD:
A27: EXPEDIENTE
A28: CORREO ELECTRÓNICO
A30: INFORMACION DE CUENTA Y PERIODO A FACTURAR
A31: PERIODO A CERTIFICAR (FECHA INICIAL)
A32: PERIODO A CERTIFICAR (FECHA FINAL)
A33: CUOTAS A PAGAR (SEGÚN CONTRATO)
A34: CUOTA QUE ESTA COBRANDO
A35: VALOR A COBRAR
A36: SALDO ACTUAL (ANTES DE ESTE PAGO)
A37: DEPENDENCIA
A38: N° A. OP
A39: NOMBRE AREA OPERATIVA
A40: NOMBRE SUPERVISOR 1
A41: CARGO SUPERVISOR 1
A42: NOMBRE SUPERVISOR 2
A43: CARGO SUPERVISOR 2
A44: FECHA EXPEDICION CERTIFICADO SUPERVISION
A46: DOCUMENTOS ANEXOS AL CERTIFICADO DE SUPERVISION
A47: No. DEL DOCUMENTO EQUIVALENTE
A48: ENTRADA DE ALMACEN
A49: ACTA DE
A50: OTROS (ESPECIFICAR)
A51: Actividad Económica CIIU No.
A52: Régimen
A53: Ciudad
A56: HISTORIAL DE CAMBIOS
A58: VERSIÓN | B58: FECHA | C58: DESCRIPCIÓN
A59: 01 | B59: 2015-02-27 | C59: Creación del documento
A60: 02 | B60: 2016-05-13 | C60: Actualización del documento
A61: 03 | B61: 2017-06-28 | C61: Actualización del documento
A62: 04 | B62: 2018-10-16 | C62: Actualización del documento
A64: ELABORÓ: DENNISSE A. MONROY ESPITIA Grupo de Contabilidad | B64: REVISÓ: SANDRA M. SANJUAN ACERO Coordinadora Grupo de Contabilidad | C64: APROBÓ: ANDREA SABOGAL PORTILLA Secretaria General ( E)

Sheet A-GF-F005 Supervisión
C1: CERTIFICADO DE SUPERVISIÓN CONTRATISTAS | G1: Código: A-GF-F005
G2: Versión: 02
G3: Fecha: 28/06/2017
G4: Página: 1 de 1
A6: Contrato No. | B6: =+'A-GF-F004 Información'!C20 -> documento no valido | C6: Año | D6: =RIGHT(B6,4) -> lido | E6: Modalidad del contrato | F6: =+'A-GF-F004 Información'!C7 -> 0 | G6: Fecha acta de inicio | H6: =+'A-GF-F004 Información'!C12 -> 00:00:00
A7: Contratista | B7: =+'A-GF-F004 Información'!C19 -> documento no valido | G7: C.C. o NIT | H7: =+'A-GF-F004 Información'!C18 -> 0
A8: Objeto del Contrato | B8: =+'A-GF-F004 Información'!C9 -> 0
A9: ¿El contrato ha tenido modificaciones? | C9: =+'A-GF-F004 Información'!C10 -> 0 | E9: Descripción de la modificación | F9: =+'A-GF-F004 Información'!C11 -> 0
A10: Periodo de ejecución (de acuerdo al contrato) | D10: del | E10: =+'A-GF-F004 Información'!C12 -> 00:00:00 | F10: al | G10: =+'A-GF-F004 Información'!C13 -> 00:00:00
A11: Periodo a certificar | D11: del | E11: =+'A-GF-F004 Información'!C31 -> 00:00:00 | F11: al | G11: =+'A-GF-F004 Información'!C32 -> 00:00:00
A12: Cuota a pagar | B12: =+'A-GF-F004 Información'!C34 -> 0 | C12: de | D12: =+'A-GF-F004 Información'!C33 -> 0
A15: INFORMACION FINANCIERA DEL CONTRATO
B17: Valor inicial | C17: Modificaciones | D17: Valor total contrato | E17: Saldo Actual | F17: Menos este pago | G17: Nuevo saldo
B18: =+'A-GF-F004 Información'!C14 -> 0 | C18: =+'A-GF-F004 Información'!C15 -> 0 | D18: =B18+C18 -> 0 | E18: =+'A-GF-F004 Información'!C36 -> 0 | F18: =+'A-GF-F004 Información'!C35 -> 0 | G18: =E18-F18 -> 0
A20: Valor a pagar | B20: =UPPER(CLetras(F18)) -> CERO PESOS M/CTE
A23: COMO SUPERVISOR DEL CONTRATO ME PERMITO CERTIFICAR (PARA PAGO PARCIAL)
A24: SI NO
B25: Que el contratista cumplió con el OBJETO para el cual se suscribió el contrato.
B26: Que el contratista cumplió con las OBLIGACIONES estipuladas en el contrato.
B27: Que el contratista cumplió con la entrega de los bienes y su ingreso fue reportado al almacén.
B28: Que se recibió el informe o productos o bienes parciales del contrato, lo cual fue revisado, aprobado y anexado al expediente.
B29: Que copia de esta certificación con sus soportes se entregó en la Oficina Jurídica para ser anexado a la carpeta del contrato.
B30: Que el contratista dio cumplimiento a lo establecido en las dispocisiones legales vigentes sobre el regimen de seguridad social, y cumplió con los aportes a salud y pensión.
B31: El Contratista expide certificación firmada por Representante Legal ó Revisor fiscal, según corresponda, donde indica que no tiene personal con relación laboral
A34: COMO SUPERVISOR DEL CONTRATO ME PERMITO CERTIFICAR (PARA PAGO TOTAL O ULTIMO PAGO)
A35: SI NO
B36: Que el contratista cumplió con el OBJETO para el cual se suscribió el contrato.
B37: Que el contratista cumplió con las OBLIGACIONES estipuladas en el contrato.
B38: Que el contratista cumplió con el reintegro los elementos entregados bajo su responsabilidad.
B39: Que el contratista cumplió con la entrega de los bienes y su ingreso fue reportado al almacén.
B40: Que el contratista dio pleno cumplimiento al contrato, dentro de los términos establecidos en el mismo.
B41: Que se recibieron los informes, productos o bienes solicitados en el contrato, los cuales una vez revisados y aprobados fueron anexados al expediente.
B42: Que copia de esta certificación con sus soportes se entregó en la Oficina Jurídica para ser anexado a la carpeta del contrato.
B43: Que el contratista dio cumplimiento a lo establecido en las dispocisiones legales vigentes sobre el regimen de seguridad social, y cumplió con los aportes a salud y pensión.
B44: Que el contratista entregó la totalidad de los productos en medio fisico y magnetico
B45: El Contratista expide certificación firmada por Representante Legal ó Revisor fiscal, según corresponda, donde indica que no tiene personal con relación laboral
B48: DISCRIMINACIÓN PRESUPUESTAL A CAUSAR | G48: RECIBIDO A SATISFACCIÓN
B49: CDP CONTRATO | C49: RP CONTRATO | D49: VALOR | G49: Por lo anterior, autorizo el pago correspondiente, conforme se señala en la cláusula de valor y forma de pago del contrato.
B50: =+'A-GF-F004 Información'!C21 -> documento no valido | C50: =+'A-GF-F004 Información'!C22 -> documento no valido | D50: =+F18 -> 0
A55: Se adjunta los siguientes documentos requeridos en el proceso:
A57: FACTURA No. | B57: =IF('A-GF-F004 Información'!C47>0,'A-GF-F004 Información'!C47,"") ->  | E57: ENTRADA DE ALMACÉN | F57: =IF('A-GF-F004 Información'!C48>0,'A-GF-F004 Información'!C48,"") -> 
A59: ACTA DE | B59: =IF('A-GF-F004 Información'!C49>0,'A-GF-F004 Información'!C49,"") ->  | E59: OTROS (ESPECIFICAR) | F59: =IF('A-GF-F004 Información'!C50>0,'A-GF-F004 Información'!C50,"") -> 
A61: Fecha de Expedición del Certificado de Supervisión | D61: =+'A-GF-F004 Información'!C44 -> 00:00:00
B63: FIRMA | F63: FIRMA
A64: SUPERVISOR (1) | B64: =IF('A-GF-F004 Información'!C40>0,'A-GF-F004 Información'!C40,"") ->  | E64: SUPERVISOR (2) | F64: =IF('A-GF-F004 Información'!C42>0,'A-GF-F004 Información'!C42,"") -> 
A65: Cargo | B65: =IF('A-GF-F004 Información'!C41>0,'A-GF-F004 Información'!C41,"") ->  | E65: Cargo | F65: =IF('A-GF-F004 Información'!C43>0,'A-GF-F004 Información'!C43,"") -> 
A70: HISTORIAL DE CAMBIOS
A72: VERSIÓN | B72: FECHA | D72: DESCRIPCIÓN
A73: 01 | B73: 2015-02-27 | D73: Creación del documento
A74: 02 | B74: 2017-06-28 | D74: Actualización del documento
A76: ELABORÓ: CAROLINE SAIZ MENESES | B76: REVISÓ: CAROLINA ROZO PRIETO | D76: APROBÓ: ADRIANA YAZMIN PORTILLO

Sheet A-GF-F006 Equivalente
C1: DOCUMENTO EQUIVALENTE | G1: Código: A-GF-F006 | I1: DOCUMENTO EQUIVALENTE A LA FACTURA
G2: Versión: 03
G3: Fecha: 16/10/2018
G4: Página: 1 de 1
A5: Instituto de Hidrología, Meteorología y Estudios Ambientales | I5: =+'A-GF-F004 Información'!C47 -> 0
A6: NIT. 830.000.602 - 5
A7: Calle 25 D No. 96B-70 | I7: CONSECUTIVO CONTABILIDAD
A8: TELEFONO: 3527160
A9: www.ideam.gov.co
A10: CLIENTE | H10: NO MODIFICAR | I10: F E C H A
A11: NOMBRE: | C11: =+'A-GF-F004 Información'!C19 -> documento no valido
A12: NIT/CC | C12: =+'A-GF-F004 Información'!C18 -> 0 | I12: DIA | J12: MES | K12: AÑO
A13: DIRECCIÓN | C13: =+'A-GF-F004 Información'!C23 -> 0
A14: TELÉFONO | C14: =+'A-GF-F004 Información'!C24 -> 0 | I14: =+'A-GF-F004 Información'!C44 -> 00:00:00
A15: CIUDAD: | C15: =+'A-GF-F004 Información'!C26 -> 0
A16: EXPEDIENTE | C16: =+'A-GF-F004 Información'!C27 -> 0
A17: =+'A-GF-F004 Información'!A25:B25 -> CODIGÓ CPC | C17: =+'A-GF-F004 Información'!C25 -> 0
A18: CORREO ELECTRÓNICO | C18: =+'A-GF-F004 Información'!C28 -> 0
A19: CONCEPTO | I19: VALOR
A20: CONTRATO No. | C20: =+'A-GF-F004 Información'!C20 -> documento no valido | E20: PAGO No. | F20: =+'A-GF-F004 Información'!C34 -> 0
A21: BREVE DESCRIPCIÓN DEL OBJETO | C21: =+'A-GF-F004 Información'!C9 -> 0
I22: =+'A-GF-F004 Información'!C35 -> 0
A26: PERIODO A PAGAR | C26: =+'A-GF-F004 Información'!C31 -> 00:00:00 | E26: al | F26: =+'A-GF-F004 Información'!C32 -> 00:00:00
A28: DATOS DE LA CUENTA
A29: NÚMERO DE LA CUENTA | D29: =VLOOKUP(C12,'BASE RP'!A:AN,26,FALSE) -> 
A30: ENTIDAD FINANCIERA | D30: =VLOOKUP(C12,'BASE RP'!A:AN,29,FALSE) -> 
A31: TIPO DE CUENTA | D31: =VLOOKUP(C12,'BASE RP'!A:AN,25,FALSE) -> 
B32: SON: | C32: =+'A-GF-F005 Supervisión'!B20 -> CERO PESOS M/CTE | G32: SUB-TOTAL | I32: =+I22 -> 0
B34: VALOR NETO A PAGAR | I34: =+I32 -> 0
A35: Declaro que los aportes al Sistema de Seguridad Social, derivados del presente cobro, fueron pagados mediante planillas de las cuales se adjunta fotocopia.
A36: FIRMA SUPERVISOR | D36: FIRMA SUPERVISOR | G36: FIRMA Y C.C. CONTRATISTA
A37: =+'A-GF-F005 Supervisión'!B64 ->  | D37: =+'A-GF-F005 Supervisión'!F64 ->  | G37: =+'A-GF-F004 Información'!C19 -> documento no valido
A38: =+'A-GF-F005 Supervisión'!B65 ->  | D38: =+'A-GF-F005 Supervisión'!F65 ->  | G38: =+'A-GF-F004 Información'!C18 -> 0
B39: RÉGIMEN: | C39: =+'A-GF-F004 Información'!C52 -> 0 | D39: Actividad Económica CIIU No. | F39: =+'A-GF-F004 Información'!C51 -> 0 | G39: De la ciudad de | H39: =IF(+'A-GF-F004 Información'!C53=0,"",'A-GF-F004 Información'!C53) -> 
B43: HISTORIAL DE CAMBIOS
B45: VERSIÓN | C45: FECHA | E45: DESCRIPCIÓN
B46: 01 | C46: 2015-02-27 | E46: Creación del documento
B47: 02 | C47: 2017-06-28 | E47: Actualización del documento
B48: 03 | C48: 2018-10-16 | E48: Actualización del documento
B50: ELABORÓ: DENNISSE A. MONROY ESPITIA Grupo de Contabilidad | C50: REVISÓ: SANDRA M. SANJUAN ACERO Coordinadora Grupo de Contabilidad | E50: APROBÓ: ANDREA SABOGAL PORTILLA Secretaria General ( E)

Sheet A-GF-F017 Lista
G1: LISTA DE CHEQUEO Y REVISIÓN DE DOCUMENTOS DOCUMENTO EQUIVALENTE Y/O FACTURA CONTRATISTAS | R1: Código: A-GF-F017
R2: Versión: 01
R3: Fecha: 16/10/2018
R4: Página: 1 de 1
R5: RADICADO CONTABILIDAD
C6: NOMBRE: | F6: =+'A-GF-F004 Información'!C19 -> documento no valido
C7: CEDULA: | F7: =+'A-GF-F004 Información'!C18 -> 0
C8: DEPENDENCIA: | F8: =+'A-GF-F004 Información'!C37 -> 0
C9: N° CONTRATO: | F9: =+'A-GF-F004 Información'!C20 -> documento no valido | O9: ORFEO
J10: FOLIOS
D12: AREA OPERATIVA | G12: N° A. OP | H12: =+'A-GF-F004 Información'!C38 -> 0 | I12: =+'A-GF-F004 Información'!C39 -> 0
L14: ENTREGA | N14: OBSERVACIONES
C15: 1. | D15: DOCUMENTO EQUIVALENTE O FACTURA
C16: 2. | D16: CERTIFICADO DE SUPERVISIÓN
C17: 3. | D17: DECLARACIÓN JURAMENTADA
C18: 4. | D18: PLANILLA DE SEGURIDAD SOCIAL
C19: 5. | D19: INFORME DE CONTRATISTA
C20: 6. | D20: PAGO O FORMATO PARA PAGO DE AFC
C21: 7. | D21: REGISTRO CIVIL - IDENTIFICACION DE DEPENDIENTES
C22: 8. | D22: CERTIFICADO VIGENTE DE PAGO DE INTERESES DE VIVIENDA
C23: 9. | D23: SOPORTE DE PAGO MEDICINA PREPAGADA, SEGUROS O PLANES COMPLEMENTARIOS
C24: 10. | D24: OTRO
D25: RECIBIÓ: _________________________________________________
C43: CUENTA POR PAGAR | M43: NOMBRE RESPONSABLE
C44: OBLIGACIÓN | M44: NOMBRE RESPONSABLE
E47: REVISÓ:
B49: HISTORIAL DE CAMBIOS
B51: VERSIÓN | F51: FECHA | H51: DESCRIPCIÓN
B52: 01 | F52: 2018-10-16 | H52: Creación del documento
B54: ELABORÓ: DENNISSE A. MONROY ESPITIA Grupo de Contabilidad | F54: REVISÓ: SANDRA M. SANJUAN ACERO Coordinadora Grupo de Contabilidad | H54: APROBÓ: ANDREA SABOGAL PORTILLA Secretaria General ( E)
R59: ,

Sheet Criterios (hidden)
A1: Tipo Documento Soporte | B1: SI | C1: Inclusión de obligaciones y Cesión del contrato | D1: Simplificado
A2: CONTRATO DE PRESTACION DE SERVICIOS | B2: NO | C2: Modificación en tiempo de ejecución | D2: Común
A3: CONTRATO DE CONSULTORIA | C3: Modificación en tiempo de ejecución y valor del contrato
C4: Modificación en valor del contrato
C5: Terminación anticipada del contrato
